Workbook

Sheet BT - Baixa Tensão
H1: JANEIRO 2019 | J1: FEVEREIRO 2019 | L1: MARÇO 2019 | N1: ABRIL 2019 | P1: MAIO 2019 | R1: JUNHO 2019 | T1: JULHO 2019 | V1: AGOSTO 2019 | X1: SETEMBRO 2019 | Z1: OUTUBRO 2019 | AB1: NOVEMBRO 2019 | AD1: DEZEMBRO 2019 | AF1: JANEIRO 2020 | AH1: FEVEREIRO 2020 | AJ1: MARÇO 2020 | AL1: ABRIL 2020 | AN1: MAIO 2020 | AP1: JUNHO 2020 | AR1: JULHO 2020 | AT1: AGOSTO 2020 | AV1: SETEMBRO 2020 | AX1: OUTUBRO 2020 | AZ1: NOVEMBRO 2020 | BB1: DEZEMBRO 2020 | BD1: JANEIRO 2021 | BF1: FEVEREIRO 2021 | BH1: MARÇO 2021 | BJ1: ABRIL 2021 | BL1: MAIO 2021 | BN1: JUNHO 2021 | BP1: JULHO 2021
A2: Nome da Unidade | B2: CNPJ | C2: Tarifa Classe | D2: Tipo de Instalação | E2: Endereço | F2: Bairro | G2: UC | H2: kWh | I2: Valor | J2: kWh | K2: Valor | L2: kWh | M2: Valor | N2: kWh | O2: Valor | P2: kWh | Q2: Valor | R2: kWh | S2: Valor | T2: kWh | U2: Valor | V2: kWh | W2: Valor | X2: kWh | Y2: Valor | Z2: kWh | AA2: Valor | AB2: kWh | AC2: Valor | AD2: kWh | AE2: Valor | AF2: kWh | AG2: Valor | AH2: kWh | AI2: Valor | AJ2: kWh | AK2: Valor | AL2: kWh | AM2: Valor | AN2: kWh | AO2: Valor | AP2: kWh | AQ2: Valor | AR2: kWh | AS2: Valor | AT2: kWh | AU2: Valor | AV2: kWh | AW2: Valor | AX2: kWh | AY2: Valor | AZ2: kWh | BA2: Valor | BB2: kWh | BC2: Valor | BD2: kWh | BE2: Valor | BF2: kWh | BG2: Valor | BH2: kWh | BI2: Valor | BJ2: kWh | BK2: Valor | BL2: kWh | BM2: Valor | BN2: kWh | BO2: Valor | BP2: kWh | BQ2: Valor
A3: MUNICIPIO DE PORTO ALEGRE | B3: 92.963.560/0001-60 | C3: ILUMINACAO PUBLICA | D3: MONOFÁSICO | E3: RUA DA ILUMINACAO PUBLICA, 10 | F3: CENTRO | G3: 24636703 | H3: 6133237 | I3: 2467115.48 | J3: 5558246 | K3: 2269963.85 | L3: 5558691 | M3: 2277477.06 | N3: 6136606 | O3: 2478710.2 | P3: 5776129 | Q3: 2368558.41 | R3: 5586513 | S3: 2210678.93 | T3: 6165221 | U3: 2544210.15 | V3: 5779895 | W3: 2549670.54 | Z3: 5561323 | AA3: 2412108.83 | AB3: 5897753 | AC3: 2287298.43 | AD3: 5345964 | AE3: 2135147.34 | AF3: 5530609 | AG3: 2124461.02 | AH3: 5346465 | AI3: 2010268.84 | AJ3: 6083917 | AK3: 2367688.07 | AL3: 5346472 | AM3: 2016999.23 | AN3: 5357734 | AO3: 1961516.24 | AP3: 6238368 | AQ3: 2305352.53 | AR3: 5514705 | AS3: 2033544.68 | AT3: 5706766 | AU3: 2163621.65 | AV3: 5523215 | AW3: 2125105.69 | AX3: 5743554 | AY3: 2661033.52 | AZ3: 5711346 | BA3: 2447909.31 | BB3: 5135252 | BC3: 2128145.89 | BD3: 5685458 | BE3: 2446293.08 | BF3: 5495090 | BG3: 2317286.18 | BH3: 5683992 | BI3: 2709778.27 | BJ3: 5503043 | BK3: 2341359.82
A4: MUNICIPIO DE PORTO ALEGRE | B4: 92.963.560/0001-60 | C4: PODER PUBLICO | D4: TRIFÁSICO | E4: AV VENANCIO AIRES, 2000 - BL Â HPS | F4: CIDADE BAIXA | G4: 20798555 | H4: 399708 | I4: 330589.85 | J4: 446882 | K4: 377802.93 | L4: 354996 | M4: 308871.88 | N4: 313797 | O4: 272685.32 | P4: 326163 | Q4: 275162.85 | R4: 309243 | S4: 261915.55 | T4: 278120 | U4: 235787.75 | V4: 289030 | W4: 248191.65 | X4: 295052 | Y4: 286771.03 | Z4: 281103 | AA4: 282073.78 | AB4: 361395 | AC4: 328041.81 | AD4: 338409 | AE4: 315029.02 | AF4: 421724 | AG4: 370871.4 | AH4: 458177 | AI4: 395579.56 | AJ4: 362390 | AK4: 315432.59 | AL4: 371970 | AM4: 338283.65 | AN4: 309645 | AO4: 273538.92 | AP4: 226310 | AQ4: 212405.22 | AR4: 266608 | AS4: 238076.54 | AT4: 302245 | AU4: 283534.89 | AV4: 262740 | AW4: 237688.17 | AX4: 270269 | AY4: 254650.47 | AZ4: 239882 | BA4: 229565.98 | BB4: 362895 | BC4: 323001.62 | BD4: 393565 | BE4: 416609.18 | BF4: 442014 | BG4: 398232.34 | BH4: 374892 | BI4: 359862.57 | BJ4: 440315 | BK4: 404827.35 | BL4: 361104 | BM4: 327595.27 | BN4: 283676 | BO4: 268782.01 | BP4: 279156 | BQ4: 270368.7
A5: MUNICIPIO DE PORTO ALEGRE | B5: 92.963.560/0001-60 | C5: PODER PUBLICO | D5: TRIFÁSICO | E5: RUA SANTO ANTONIO, 535 - BL Â HMIPV-H.M.IÂ | F5: FLORESTA | G5: 30082552 | H5: 217917 | I5: 174623.89 | J5: 249445 | K5: 206522.8 | L5: 182241 | M5: 147601.86 | N5: 154202 | O5: 126010.24 | P5: 139277 | Q5: 112454.17 | R5: 122220 | S5: 101986.54 | T5: 121480 | U5: 99515.21 | V5: 127502 | W5: 106304.85 | X5: 134421 | Y5: 114690.85 | Z5: 114185 | AA5: 103105.95 | AB5: 146111 | AC5: 119426.36 | AD5: 147419 | AE5: 118992.41 | AF5: 207027 | AG5: 159036.31 | AH5: 226878 | AI5: 168561.68 | AJ5: 162269 | AK5: 121462.71 | AL5: 178693 | AM5: 138993.8 | AN5: 133638 | AO5: 103098.08 | AP5: 109301 | AQ5: 85071.28 | AR5: 130616 | AS5: 97612.79 | AT5: 145694 | AU5: 108520.61 | AV5: 125452 | AW5: 95012.5 | AX5: 113437 | AY5: 92033.64 | AZ5: 94462 | BA5: 77289.2 | BB5: 151414 | BC5: 115041 | BD5: 182456 | BE5: 163390.25 | BF5: 212414 | BG5: 170862.07 | BH5: 193733 | BI5: 155050.02 | BJ5: 212965 | BK5: 166769.26 | BL5: 162598 | BM5: 125294.75 | BN5: 141072 | BO5: 115289.98 | BP5: 140602 | BQ5: 118885.87
A6: MUNICIPIO DE PORTO ALEGRE | B6: 92.963.560/0001-60 | C6: PODER PUBLICO | D6: TRIFÁSICO | E6: RUA PROF MANOEL LOBATO, 151 - BL GDGCC-V.COMERC | F6: STA TERESA | G6: 54621135 | H6: 100641 | I6: 79804.09 | J6: 106365 | K6: 84151.6 | L6: 86741 | M6: 71321.81 | N6: 68384 | O6: 59793.61 | P6: 58342 | Q6: 48146.09 | R6: 49812 | S6: 42467.46 | T6: 66355 | U6: 53261.12 | V6: 58764 | W6: 49842.31 | X6: 54809 | Y6: 47753.99 | Z6: 50992 | AA6: 44618.92 | AB6: 62771 | AC6: 54041.76 | AD6: 81326 | AE6: 66018.55 | AF6: 104435 | AG6: 83084.36 | AH6: 103052 | AI6: 82237.79 | AJ6: 88444 | AK6: 68859.04 | AL6: 65503 | AM6: 51122.36 | AN6: 43983 | AO6: 36390.56 | AP6: 47223 | AQ6: 36611.89 | AR6: 56457 | AS6: 42120.91 | AT6: 50692 | AU6: 39371.37 | AV6: 46442 | AW6: 36023.73 | AX6: 44747 | AY6: 37029.7 | AZ6: 23585 | BA6: 20269.43 | BB6: 59752 | BC6: 49090.2 | BD6: 75762 | BE6: 70654.02 | BF6: 93815 | BG6: 76740.78 | BH6: 85487 | BI6: 72111.32 | BJ6: 92106 | BK6: 76449.66 | BL6: 65564 | BM6: 51863.95 | BN6: 48904 | BO6: 42296.8 | BP6: 55244 | BQ6: 48210.94
A7: MUNICIPIO DE PORTO ALEGRE | B7: 92.963.560/0001-60 | C7: PODER PUBLICO | D7: TRIFÁSICO | E7: RUA SIQUEIRA CAMPOS, 1300 | F7: CENTRO | G7: 24161446 | H7: 98244 | I7: 82950.16 | J7: 126816 | K7: 108959.14 | L7: 99852 | M7: 88226.98 | N7: 86004 | O7: 72966.19 | P7: 73344 | Q7: 61168.59 | R7: 61596 | S7: 51747.96 | T7: 59256 | U7: 49116.8 | V7: 70392 | W7: 59340.54 | X7: 66984 | Y7: 58935.35 | Z7: 60876 | AA7: 54644.22 | AB7: 65520 | AC7: 54814.86 | AD7: 80256 | AE7: 68688.72 | AF7: 94848 | AG7: 77994.1 | AH7: 120432 | AI7: 99086.83 | AJ7: 98268 | AK7: 77485.03 | AL7: 76764 | AM7: 62991.16 | AN7: 42540 | AO7: 33684.96 | AP7: 48852 | AQ7: 37367.84 | AR7: 49056 | AS7: 38425.69 | AT7: 52776 | AU7: 40806.84 | AV7: 47124 | AW7: 36349.4 | AX7: 51672 | AY7: 38839.19 | AZ7: 47280 | BA7: 37445.31 | BB7: 64032 | BC7: 51906.78 | BD7: 67056 | BE7: 63863.33 | BF7: 89016 | BG7: 75769.38 | BH7: 77868 | BI7: 69354.11 | BJ7: 65400 | BK7: 55553.31 | BL7: 57672 | BM7: 47870.09 | BN7: 54540 | BO7: 47093.18 | BP7: 62724 | BQ7: 55791.44
A8: MUNICIPIO DE PORTO ALEGRE | B8: 92.963.560/0001-60 | C8: PODER PUBLICO | D8: TRIFÁSICO | E8: RUA DA SINALEIRA, 1300 | F8: CENTRO - ALT 1300 DA SIQUEIRA CAMPOS | G8: 24636797 | H8: 90810 | I8: 76653.44 | J8: 91265 | K8: 78398.39 | L8: 91265 | M8: 78691.45 | N8: 91261 | O8: 77403.18 | Q8: 92118 | R8: 76151.94 | S8: 92118 | T8: 77999.83 | U8: 92788 | V8: 81188.14 | W8: 92820 | X8: 81655.24 | Y8: 92861 | Z8: 80470.63 | AA8: 92876 | AB8: 81380.62 | AC8: 92876 | AD8: 73570.28 | AE8: 92934 | AF8: 76419.02 | AG8: 92934 | AH8: 74895.88 | AI8: 93138 | AJ8: 73439.46 | AK8: 93138 | AL8: 76421.1 | AM8: 92958 | AN8: 73580.48 | AO8: 92958 | AP8: 71083.99 | AQ8: 92951 | AR8: 71049.74 | AS8: 93207 | AT8: 72044.02 | AU8: 93207 | AV8: 71865.95 | AW8: 93582 | AX8: 74500 | AY8: 93726 | AZ8: 75664.79 | BA8: 93843 | BB8: 86819.87 | BC8: 93707 | BD8: 83140.2 | BE8: 93678 | BF8: 79731.27 | BG8: 93678 | BH8: 83353.16 | BI8: 93938 | BJ8: 79777.42 | BK8: 97489 | BL8: 84252.29 | BM8: 91200 | BN8: 81195.11 | BO8: 97535 | BP8: 90589.42
A9: MUNICIPIO DE PORTO ALEGRE | B9: 92.963.560/0001-60 | C9: PODER PUBLICO | D9: TRIFÁSICO | E9: AV BORGES DE MEDEIROS, 2244 | F9: CENTRO | G9: 20800991 | H9: 74474 | I9: 62526.25 | J9: 89188 | K9: 74805.62 | L9: 63592 | M9: 59581.09 | N9: 51354 | O9: 50255.42 | P9: 34919 | Q9: 39404.16 | R9: 27788 | S9: 34493.39 | T9: 29034 | U9: 35566.61 | V9: 32174 | W9: 38137.79 | X9: 30850 | Y9: 37496.61 | Z9: 28807 | AA9: 36262.94 | AB9: 35967 | AC9: 39293.84 | AD9: 56027 | AE9: 51298.01 | AF9: 0 | AG9: 17063.92 | AI9: 84112 | AJ9: 66406.3 | AK9: 27250 | AL9: 35837.38 | AM9: 19683 | AN9: 30318.25 | AO9: 18575 | AP9: 28182.34 | AQ9: 20674 | AR9: 29342.51 | AS9: 20398 | AT9: 30362.13 | AU9: 21669 | AV9: 30430.65 | AW9: 20384 | AX9: 30560.66 | AY9: 17715 | AZ9: 27941.49 | BA9: 32987 | BB9: 37569.93 | BC9: 57792 | BD9: 62266.38 | BE9: 65645 | BF9: 61985.59 | BG9: 56610 | BH9: 57399.6 | BI9: 41000 | BJ9: 46235.23 | BK9: 30990 | BL9: 40320.9 | BM9: 22297 | BN9: 30865.81 | BO9: 20296 | BP9: 28745.86
A10: MUNICIPIO DE PORTO ALEGRE | B10: 92.963.560/0001-60 | C10: PODER PUBLICO | D10: TRIFÁSICO | E10: RUA VALENTIM VICENTINI, 75 - BL GDNHNI-CSIAPI | F10: PASSO DA AREIA | G10: 71557491 | H10: 60245 | I10: 46977.58 | J10: 67281 | K10: 56560.66 | L10: 54782 | M10: 46089.01 | N10: 40588 | O10: 35494.31 | P10: 33135 | Q10: 30388.17 | R10: 25386 | S10: 24859.4 | T10: 33390 | U10: 31362.33 | V10: 31174 | W10: 29184.73 | X10: 26927 | Y10: 27071.84 | Z10: 23883 | AA10: 25011.97 | AB10: 25603 | AC10: 25498.32 | AD10: 35955 | AE10: 30519.43 | AF10: 45190 | AG10: 36215.53 | AH10: 49271 | AI10: 38131.95 | AJ10: 43067 | AK10: 33819.7 | AL10: 29054 | AM10: 27394.19 | AN10: 22668 | AO10: 22942.53 | AP10: 20974 | AQ10: 20843.39 | AR10: 26565 | AS10: 23617.15 | AT10: 23983 | AU10: 22881.03 | AV10: 20446 | AW10: 20672.79 | AX10: 19284 | AY10: 20744.27 | AZ10: 10744 | BA10: 14986.95 | BB10: 25368 | BC10: 24290.43 | BD10: 36609 | BE10: 37552.47 | BF10: 42761 | BG10: 36560.49 | BH10: 38293 | BI10: 34578.44 | BJ10: 42076 | BK10: 36346.41 | BL10: 30578 | BM10: 28138.28 | BN10: 29611 | BO10: 27727.92 | BP10: 33307 | BQ10: 31033.95
A11: MUNICIPIO DE PORTO ALEGRE | B11: 92.963.560/0001-60 | C11: PODER PUBLICO | D11: TRIFÁSICO | E11: RUA MERCADO PUBLICO, 75 - BL I | F11: CENTRO | G11: 65332407 | H11: 57163 | I11: 48271.83 | J11: 56905 | K11: 50009.19 | L11: 48976 | M11: 42248.68 | N11: 46223 | O11: 39224.19 | P11: 49201 | Q11: 41039.58 | R11: 49594 | S11: 41667.43 | T11: 48108 | U11: 40878.53 | V11: 47488 | W11: 40039.29 | X11: 49748 | Y11: 43775.47 | Z11: 46542 | AA11: 41781.52 | AB11: 46514 | AC11: 38920.11 | AD11: 43270 | AE11: 37042.79 | AF11: 50664 | AG11: 41670.72 | AH11: 53473 | AI11: 44853.06 | AJ11: 48518 | AK11: 38266.15 | AL11: 49960 | AM11: 41002.22 | AN11: 50977 | AO11: 40359.68 | AP11: 44700 | AQ11: 34192.03 | AR11: 42577 | AS11: 32555.81 | AT11: 39517 | AU11: 30556.59 | AV11: 39268 | AW11: 30289.16 | AX11: 38843 | AY11: 30934.9 | AZ11: 36427 | BA11: 28851.01 | BB11: 35862 | BC11: 29080.29 | BD11: 39685 | BE11: 37804.02 | BF11: 42864 | BG11: 36495.07 | BH11: 38712 | BI11: 34852.74 | BJ11: 43398 | BK11: 37792.88 | BL11: 36763 | BM11: 31347.71 | BN11: 27005 | BO11: 24166.05 | BP11: 25488 | BQ11: 22687.07
A12: MUNICIPIO DE PORTO ALEGRE | B12: 92.963.560/0001-60 | C12: PODER PUBLICO | D12: TRIFÁSICO | E12: RUA DOS ANDRADAS, 680 | F12: CENTRO | G12: 65579402 | H12: 53423 | I12: 41998.93 | J12: 59437 | K12: 48196.54 | L12: 46852 | M12: 39742.46 | N12: 37686 | O12: 32674.01 | P12: 29187 | Q12: 27340.77 | R12: 21946 | S12: 22194.62 | T12: 29117 | U12: 26852.87 | V12: 34652 | W12: 31085.5 | X12: 33002 | Y12: 35773.32 | Z12: 26706 | AA12: 28460.39 | AB12: 30096 | AC12: 28980.91 | AD12: 37398 | AE12: 32810.43 | AF12: 48602 | AG12: 39152.51 | AH12: 56146 | AI12: 43660.24 | AJ12: 36399 | AK12: 30674.08 | AL12: 31901 | AM12: 29276.81 | AN12: 15778 | AO12: 18873.43 | AP12: 16570 | AQ12: 18056.22 | AR12: 19265 | AS12: 19697.61 | AT12: 21609 | AU12: 21113.31 | AV12: 17876 | AW12: 19168.66 | AX12: 16784 | AY12: 17583.4 | AZ12: 15592 | BA12: 18035.14 | BB12: 24377 | BC12: 21436.11 | BD12: 24511 | BE12: 28425.09 | BF12: 31428 | BG12: 28514.34 | BH12: 27977 | BI12: 29264.25 | BJ12: 23996 | BK12: 25705.98 | BL12: 21097 | BM12: 18352.83 | BN12: 20645 | BO12: 21280.93 | BP12: 24009 | BQ12: 24360.93
A13: MUNICIPIO DE PORTO ALEGRE | B13: 92.963.560/0001-60 | C13: PODER PUBLICO | D13: TRIFÁSICO | E13: PRC MONTEVIDEO, 10 | F13: CENTRO | G13: 42414873 | H13: 51141 | I13: 43494.71 | J13: 33768 | K13: 32325.52 | L13: 33097 | M13: 31093.88 | O13: 37395 | P13: 33209.42 | Q13: 31985 | R13: 28590.34 | S13: 22377 | T13: 22042.35 | U13: 18285 | V13: 19275.7 | W13: 24595 | X13: 24643 | Y13: 34010 | Z13: 32070.29 | AA13: 34355 | AB13: 31091.58 | AC13: 46598 | AD13: 39162.18 | AE13: 54568 | AF13: 44815.57 | AG13: 58363 | AH13: 47358.19 | AI13: 47176 | AJ13: 37884.04 | AK13: 33330 | AL13: 31562.28 | AM13: 22962 | AN13: 22882.82 | AO13: 13919 | AP13: 15413.06 | AQ13: 13221 | AR13: 14970.08 | AS13: 13294 | AT13: 14680.88 | AU13: 11919 | AV13: 14142.62 | AW13: 13241 | AX13: 15275.33 | AY13: 11540 | AZ13: 14222.21 | BA13: 27417 | BB13: 24628.51 | BC13: 40120 | BD13: 41990.73 | BE13: 52446 | BF13: 46216.6 | BG13: 46030 | BH13: 37065.73 | BI13: 42276 | BJ13: 39084.24 | BK13: 27302 | BL13: 21386.21 | BM13: 13289 | BN13: 10204.79 | BO13: 10901 | BP13: 13376.98
A14: MUNICIPIO DE PORTO ALEGRE | B14: 92.963.560/0001-60 | C14: PODER PUBLICO | D14: TRIFÁSICO | E14: RUA SAO FELIPE, 184 - BL GDLENO-BOMJESU | F14: VIL BOM JESUS | G14: 71529331 | H14: 33712 | I14: 27299.02 | J14: 23664 | K14: 20034.12 | L14: 28346 | M14: 23313.82 | N14: 20386 | O14: 17379.42 | P14: 21820 | Q14: 18206.53 | R14: 14735 | S14: 13008.96 | T14: 17286 | U14: 15191.6 | V14: 17401 | W14: 15238.91 | X14: 16456 | Y14: 15107.15 | Z14: 18020 | AA14: 16402.27 | AB14: 16693 | AC14: 14961.95 | AD14: 23134 | AE14: 18949.65 | AF14: 33726 | AG14: 25292.86 | AH14: 32104 | AI14: 24684.45 | AJ14: 30151 | AK14: 22236.67 | AL14: 19018 | AM14: 16194.1 | AN14: 14631 | AO14: 12485.44 | AP14: 13305 | AQ14: 11081.88 | AR14: 13918 | AS14: 11549.49 | AT14: 13876 | AU14: 11728.65 | AV14: 13022 | AW14: 10940.65 | AX14: 12520 | AY14: 11128.15 | AZ14: 8942 | BA14: 8754.86 | BB14: 19784 | BC14: 15187.34 | BD14: 25375 | BE14: 24201.21 | BF14: 31850 | BG14: 25619.7 | BH14: 28815 | BI14: 24085.05 | BJ14: 30379 | BK14: 24680.1 | BL14: 19309 | BM14: 16117 | BN14: 14399 | BO14: 12854.37 | BP14: 14967 | BQ14: 13493.97
A15: MUNICIPIO DE PORTO ALEGRE | B15: 92.963.560/0001-60 | C15: PODER PUBLICO | D15: TRIFÁSICO | E15: AV JOAO PESSOA, 325 - BL ADM-PREDIO SEDE | F15: CENTRO / FARROUPILHA | G15: 71547690 | H15: 31115 | I15: 24354.67 | J15: 33777 | K15: 26609.32 | L15: 27415 | M15: 23195.31 | N15: 21934 | O15: 19167.6 | P15: 18130 | Q15: 16411.46 | R15: 15697 | S15: 14665.76 | T15: 16548 | U15: 14983.48 | V15: 15768 | W15: 15106.7 | X15: 16681 | Y15: 15924.52 | Z15: 16194 | AA15: 15635.79 | AB15: 17054 | AC15: 15886.26 | AD15: 24631 | AE15: 20357.31 | AF15: 30039 | AG15: 23375.58 | AH15: 32021 | AI15: 24362.68 | AJ15: 26598 | AK15: 20406.1 | AL15: 17829 | AM15: 16400.66 | AN15: 14879 | AO15: 13764.15 | AP15: 13896 | AQ15: 12586.88 | AR15: 16179 | AS15: 14007.39 | AT15: 15612 | AU15: 13867.08 | AV15: 13926 | AW15: 12806.24 | AX15: 14271 | AY15: 13426.4 | AZ15: 7251 | BA15: 9390.99 | BB15: 16906 | BC15: 14989.76 | BD15: 23929 | BE15: 23485.8 | BF15: 30070 | BG15: 24285.96 | BH15: 26402 | BI15: 22798.77 | BJ15: 27470 | BK15: 23301.64 | BL15: 22027 | BM15: 19053.2 | BN15: 18501 | BO15: 16781.48 | BP15: 18514 | BQ15: 17209.07
A16: MUNICIPIO DE PORTO ALEGRE | B16: 92.963.560/0001-60 | C16: PODER PUBLICO | D16: TRIFÁSICO | E16: RUA CAP MONTANHA, 27 - BL GDC-STA.MARTA | F16: CENTRO | G16: 24154571 | H16: 26454 | I16: 22350.11 | J16: 26820 | K16: 23058.97 | L16: 19260 | M16: 16626.64 | N16: 20646 | O16: 17531.01 | P16: 15984 | Q16: 13528.11 | R16: 13812 | S16: 11459.47 | T16: 17658 | U16: 14944.61 | V16: 14862 | W16: 12961.41 | X16: 12858 | Y16: 11332.46 | Z16: 14010 | AA16: 12198.54 | AB16: 17364 | AC16: 14884.86 | AD16: 20652 | AE16: 16438.04 | AF16: 25086 | AG16: 20644.16 | AH16: 25614 | AI16: 20713.78 | AJ16: 23694 | AK16: 18697.73 | AL16: 15798 | AM16: 12979.15 | AN16: 12546 | AO16: 9948.09 | AP16: 13092 | AQ16: 10028.56 | AR16: 18588 | AS16: 14224.32 | AT16: 16062 | AU16: 12026.76 | AV16: 15228 | AW16: 11758.86 | AX16: 15816 | AY16: 12608.42 | AZ16: 15792 | BA16: 12632.93 | BB16: 24162 | BC16: 21980.33 | BD16: 26526 | BE16: 23934.83 | BF16: 28926 | BG16: 24635.64 | BH16: 29940 | BI16: 26069.98 | BJ16: 23946 | BK16: 20353.66 | BL16: 18348 | BM16: 15716.52 | BN16: 16074 | BO16: 14249.13 | BP16: 21378 | BQ16: 19726.82
A17: MUNICIPIO DE PORTO ALEGRE | B17: 92.963.560/0001-60 | C17: PODER PUBLICO | D17: TRIFÁSICO | E17: RUA DEMETRIO RIBEIRO, 1085 | F17: CENTRO | G17: 64852369 | H17: 23861 | I17: 24072.27 | J17: 27989 | K17: 28078.16 | L17: 23212 | M17: 24738.78 | N17: 18148 | O17: 18958.41 | P17: 18582 | Q17: 17001.6 | R17: 18376 | S17: 16703.66 | T17: 10436 | U17: 10113.48 | V17: 8429 | W17: 10367.36 | X17: 15614 | Y17: 15336.31 | Z17: 16233 | AA17: 18411.58 | AB17: 16155 | AC17: 15621.04 | AD17: 19759 | AE17: 20259.63 | AF17: 21618 | AG17: 21728.09 | AH17: 23732 | AI17: 22918.41 | AJ17: 18503 | AK17: 18439.1 | AL17: 12492 | AM17: 11835.39 | AN17: 12621 | AO17: 11370.32 | AP17: 11237 | AQ17: 10075.67 | AR17: 10283 | AS17: 9452.06 | AT17: 12247 | AU17: 10923.7 | AV17: 10623 | AW17: 9703.55 | AX17: 12164 | AY17: 11088.88 | AZ17: 15117 | BA17: 13502.72 | BB17: 7280 | BC17: 9830.43 | BD17: 4101 | BE17: 8797.58 | BF17: 3817 | BG17: 7447.66 | BH17: 2927 | BI17: 6935.63 | BJ17: 3032 | BK17: 5847.43 | BL17: 3428 | BM17: 5343.73 | BN17: 4170 | BO17: 5993.47 | BP17: 4304 | BQ17: 5666.35
A18: MUNICIPIO DE PORTO ALEGRE | B18: 92.963.560/0001-60 | C18: PODER PUBLICO | D18: TRIFÁSICO | E18: AV PADRE CACIQUE, 708 | F18: MENINO DEUS / PRAIA DE BELAS / CRISTAL | G18: 60252006 | H18: 23555 | I18: 19312.67 | J18: 25776 | K18: 21536.4 | L18: 20179 | M18: 18203.18 | N18: 14377 | O18: 14076.35 | P18: 10199 | Q18: 10687.06 | R18: 6748 | S18: 8323.98 | T18: 7478 | U18: 8697.03 | V18: 11633 | W18: 11425.26 | X18: 9933 | Y18: 10683.53 | Z18: 9032 | AA18: 10369.01 | AB18: 10347 | AC18: 10839.77 | AD18: 13826 | AE18: 13508.85 | AF18: 23270 | AG18: 19682.33 | AH18: 13567 | AI18: 13934.01 | AJ18: 17219 | AK18: 14793.28 | AL18: 15660 | AM18: 14273.65 | AN18: 7091 | AO18: 8364.58 | AP18: 6691 | AQ18: 7805.43 | AR18: 7823 | AS18: 8438.1 | AT18: 7749 | AU18: 8693.57 | AV18: 6288 | AW18: 7603.62 | AX18: 5354 | AY18: 7348.57 | AZ18: 4698 | BA18: 6831.4 | BB18: 10769 | BC18: 10916.1 | BD18: 10516 | BE18: 12860.87 | BF18: 9454 | BG18: 11208.01 | BH18: 12926 | BI18: 14161.4 | BJ18: 14356 | BK18: 14015.64 | BL18: 9828 | BM18: 10540.37 | BN18: 7115 | BO18: 8404.9 | BP18: 7464 | BQ18: 8628.48
A19: MUNICIPIO DE PORTO ALEGRE | B19: 92.963.560/0001-60 | C19: PODER PUBLICO | D19: TRIFÁSICO | E19: RUA ENG ANTONIO CARLOS TIBIRICA, 279 | F19: JARDIM BOTANICO | G19: 65693434 | H19: 23526 | I19: 19749.8 | J19: 25449 | K19: 20455.74 | L19: 22174 | M19: 18738.09 | N19: 18373 | O19: 16004.19 | P19: 22098 | Q19: 18216.8 | R19: 19390 | S19: 16327.34 | T19: 1476 | U19: 3863.42 | V19: 22530 | W19: 18809.25 | X19: 21185 | Y19: 18492.24 | Z19: 19377 | AA19: 17383.6 | AB19: 19106 | AC19: 16446.35 | AD19: 22122 | AE19: 19168.4 | AF19: 26402 | AG19: 21802.23 | AH19: 19973 | AI19: 16224.79 | AJ19: 19512 | AK19: 15433.29 | AL19: 18530 | AM19: 17281.73 | AN19: 15458 | AO19: 13149.92 | AP19: 17222 | AQ19: 13783.02 | AR19: 17681 | AS19: 13895.15 | AT19: 18726 | AU19: 14917.69 | AV19: 18115 | AW19: 14130.72 | AX19: 16458 | AY19: 13631.53 | AZ19: 9330 | BA19: 8821.31 | BB19: 17455 | BC19: 14009.87 | BD19: 19302 | BE19: 18305.71 | BF19: 19610 | BG19: 16335.31 | BH19: 18693 | BI19: 15824.34 | BJ19: 20773 | BK19: 17611.1 | BL19: 18111 | BM19: 15538.12 | BN19: 18531 | BO19: 16370.79 | BP19: 19185 | BQ19: 16831.26
A20: MUNICIPIO DE PORTO ALEGRE | B20: 92.963.560/0001-60 | C20: PODER PUBLICO | D20: TRIFÁSICO | E20: AV PADRE CACIQUE, 372 - BL Â CGVS | F20: MENINO DEUS / PRAIA DE BELAS / CRISTAL | G20: 71492992 | H20: 21426 | I20: 17337.92 | J20: 24935 | K20: 19895.5 | L20: 19351 | M20: 16813.63 | N20: 17012 | O20: 15304.55 | P20: 15015 | Q20: 13743.98 | R20: 13841 | S20: 13019.95 | T20: 13257 | U20: 12379.05 | V20: 16763 | W20: 15033.55 | X20: 14942 | Y20: 14284.47 | Z20: 13723 | AA20: 13576.92 | AB20: 15313 | AC20: 13919.58 | AD20: 17100 | AE20: 15154.95 | AF20: 21858 | AG20: 17588.97 | AH20: 23824 | AI20: 18776.07 | AJ20: 18115 | AK20: 14768.9 | AL20: 21073 | AM20: 17349.52 | AN20: 13578 | AO20: 12070.19 | AP20: 12782 | AQ20: 11238.36 | AR20: 14583 | AS20: 12238.06 | AT20: 17270 | AU20: 14064.33 | AV20: 15208 | AW20: 12621.56 | AX20: 13568 | AY20: 12175.77 | AZ20: 11330 | BA20: 10687.07 | BB20: 16308 | BC20: 13802.68 | BD20: 20219 | BE20: 19701.72 | BF20: 23758 | BG20: 19549.15 | BH20: 20463 | BI20: 17825.77 | BJ20: 21836 | BK20: 18582 | BL20: 16922 | BM20: 14756.3 | BN20: 15292 | BO20: 13892.04 | BP20: 16581 | BQ20: 15283.05
A21: MUNICIPIO DE PORTO ALEGRE | B21: 92.963.560/0001-60 | C21: PODER PUBLICO | D21: TRIFÁSICO | E21: RUA LUIZ VOELCKER, 49 | F21: TRES FIGUEIRAS | G21: 63749998 | H21: 21023 | I21: 16511.99 | J21: 23883 | K21: 18795.77 | L21: 18062 | M21: 15712.7 | N21: 15629 | O21: 13943.3 | P21: 12967 | Q21: 12041.62 | R21: 12699 | S21: 11919.2 | T21: 12052 | U21: 11316.42 | V21: 13545 | W21: 12635.36 | X21: 13234 | Y21: 12824.93 | Z21: 13253 | AA21: 12865.85 | AB21: 13230 | AC21: 12494.28 | AD21: 16271 | AE21: 14168.92 | AF21: 21683 | AG21: 17353.06 | AH21: 23582 | AI21: 18476.99 | AJ21: 20953 | AK21: 16187.59 | AL21: 9740 | AM21: 10259.55 | AN21: 9815 | AO21: 9898.83 | AP21: 11533 | AQ21: 10439.96 | AR21: 10552 | AS21: 9969.75 | AT21: 11628 | AU21: 10917.33 | AV21: 10486 | AW21: 10055.41 | AX21: 10766 | AY21: 10663.81 | AZ21: 6022 | BA21: 7429.22 | BB21: 11469 | BC21: 10970.05 | BD21: 13331 | BE21: 14640.87 | BF21: 15347 | BG21: 14196.12 | BH21: 13381 | BI21: 13232.49 | BJ21: 12546 | BK21: 12642.09 | BL21: 11458 | BM21: 11485.54 | BN21: 11146 | BO21: 11128.9 | BP21: 14634 | BQ21: 13949.41
A22: MUNICIPIO DE PORTO ALEGRE | B22: 92.963.560/0001-60 | C22: PODER PUBLICO | D22: TRIFÁSICO | E22: AV IPIRANGA, 3501 - BL Â SAMU-SEDE | F22: PARTENON | G22: 62887831 | H22: 17179 | I22: 14521.02 | J22: 18361 | K22: 15792.54 | L22: 13931 | M22: 12031.8 | N22: 12712 | O22: 10801.79 | P22: 9264 | Q22: 7849.89 | R22: 7500 | S22: 6231.75 | T22: 8201 | U22: 6952.63 | V22: 8623 | W22: 7530.54 | X22: 7742 | Y22: 6833.19 | Z22: 8908 | AA22: 7764.25 | AB22: 10200 | AC22: 8753.75 | AD22: 11612 | AE22: 9252.27 | AF22: 13074 | AG22: 10769.61 | AH22: 12960 | AI22: 10490.53 | AJ22: 12241 | AK22: 9669.47 | AL22: 9612 | AM22: 7904.78 | AN22: 6690 | AO22: 5314.06 | AP22: 7142 | AQ22: 5479.93 | AR22: 9053 | AS22: 6938.05 | AT22: 8900 | AU22: 6898.16 | AV22: 7996 | AW22: 6184.34 | AX22: 8360 | AY22: 6674.42 | AZ22: 8322 | BA22: 6667.17 | BB22: 10534 | BC22: 9598.05 | BD22: 13010 | BE22: 11751.02 | BF22: 12242 | BG22: 10439.67 | BH22: 11414 | BI22: 9953.08 | BJ22: 9887 | BK22: 8417.43 | BL22: 8033 | BM22: 6895.17 | BN22: 7242 | BO22: 6434.61 | BP22: 8887 | BQ22: 8217.7
A23: MUNICIPIO DE PORTO ALEGRE | B23: 92.963.560/0001-60 | C23: PODER PUBLICO | D23: TRIFÁSICO | E23: AV JOAO ELUSTONDO FILHO, 700 | F23: SARANDI | G23: 65505816 | H23: 16723 | I23: 18113.6 | J23: 21187 | K23: 21568.66 | L23: 18676 | M23: 20740.43 | N23: 18544 | O23: 20710.15 | P23: 17488 | Q23: 20699.57 | R23: 10413 | S23: 12052.29 | T23: 11035 | U23: 16582.12 | V23: 26766 | W23: 26395.69 | X23: 29487 | Y23: 29389.3 | Z23: 23997 | AA23: 26782.53 | AB23: 22780 | AC23: 23771.66 | AD23: 18724 | AE23: 21235.33 | AF23: 19324 | AG23: 22413.26 | AH23: 23101 | AI23: 23528.56 | AJ23: 18086 | AK23: 19476.39 | AL23: 13759 | AM23: 18465.87 | AN23: 16152 | AO23: 18811.28 | AP23: 19485 | AQ23: 20941.4 | AR23: 18463 | AS23: 20271.83 | AT23: 21965 | AU23: 22739.71 | AV23: 18183 | AW23: 20623.01 | AX23: 20417 | AY23: 22527.83 | AZ23: 10732 | BA23: 14011.45 | BB23: 18535 | BC23: 19174.33 | BD23: 19164 | BE23: 23489.54 | BF23: 18228 | BG23: 21005.77 | BH23: 17678 | BI23: 20193.4 | BJ23: 18356 | BK23: 20387.11 | BL23: 8968 | BM23: 11612.29 | BN23: 15206 | BO23: 19464.85 | BP23: 23640 | BQ23: 26518.52
A24: MUNICIPIO DE PORTO ALEGRE | B24: 92.963.560/0001-60 | C24: PODER PUBLICO | D24: TRIFÁSICO | E24: RUA MERCADO PUBLICO, 16 - BL S | F24: CENTRO | G24: 65689691 | H24: 15458 | I24: 13068.3 | J24: 14030 | K24: 12436.95 | L24: 15142 | M24: 13075.97 | N24: 13907 | O24: 11815.34 | P24: 14886 | Q24: 12432.1 | R24: 15508 | S24: 13043.15 | T24: 14818 | U24: 12600.99 | V24: 14906 | W24: 12584.69 | X24: 15734 | Y24: 13861.78 | Z24: 14652 | AA24: 13168.46 | AB24: 14984 | AC24: 12554.28 | AD24: 13597 | AE24: 11655.3 | AF24: 14458 | AG24: 11907.35 | AH24: 15144 | AI24: 12718.96 | AJ24: 13380 | AK24: 10567.33 | AL24: 12480 | AM24: 10257.42 | AN24: 11959 | AO24: 9483.57 | AP24: 10963 | AQ24: 8400.99 | AR24: 12659 | AS24: 9693.6 | AT24: 13316 | AU24: 10310.52 | AV24: 12434 | AW24: 9605.2 | AX24: 13379 | AY24: 10668.88 | AZ24: 12268 | BA24: 9730.43 | BB24: 11530 | BC24: 9367.9 | BD24: 12295 | BE24: 12770.15 | BF24: 11064 | BG24: 9437.36 | BH24: 10936 | BI24: 9894.39 | BJ24: 12818 | BK24: 11144.9 | BL24: 11328 | BM24: 9656.14 | BN24: 11197 | BO24: 9936.37 | BP24: 11688 | BQ24: 10419.46
A25: MUNICIPIO DE PORTO ALEGRE | B25: 92.963.560/0001-60 | C25: PODER PUBLICO | D25: TRIFÁSICO | E25: AV ERICO VERISSIMO, 307 | F25: MENINO DEUS | G25: 65681304 | H25: 14656 | I25: 15136.31 | J25: 19670 | K25: 20053.33 | L25: 12060 | M25: 13717.57 | N25: 14464 | O25: 16284.29 | P25: 15821 | Q25: 16800.01 | R25: 15267 | S25: 16720.02 | T25: 19704 | U25: 20890.31 | V25: 14329 | W25: 16157.59 | X25: 12976 | Y25: 15087.7 | Z25: 13131 | AA25: 15884.9 | AB25: 15090 | AC25: 16255.23 | AD25: 15597 | AE25: 17435.56 | AF25: 14761 | AG25: 15950.71 | AH25: 19774 | AI25: 20736.57 | AJ25: 13048 | AK25: 14042.59 | AL25: 10556 | AM25: 12892.13 | AN25: 5360 | AO25: 8686.57 | AP25: 6052 | AQ25: 8607.04 | AR25: 6501 | AS25: 8913.61 | AT25: 5737 | AU25: 8801.56 | AV25: 5076 | AW25: 8252.13 | AX25: 5635 | AY25: 8588.75 | AZ25: 4465 | BA25: 7818.55 | BB25: 6368 | BC25: 9357.55 | BD25: 5773 | BE25: 10491.51 | BF25: 6393 | BG25: 9604.89 | BH25: 5145 | BI25: 9404.31 | BJ25: 4177 | BK25: 9134.77 | BL25: 4004 | BM25: 8246.25 | BN25: 4694 | BO25: 7633.77 | BP25: 5880 | BQ25: 8159.62
A26: MUNICIPIO DE PORTO ALEGRE | B26: 92.963.560/0001-60 | C26: PODER PUBLICO | D26: TRIFÁSICO | E26: RUA XAVIER DE CARVALHO, 274 | F26: SARANDI | G26: 24570851 | H26: 13230 | I26: 12193.05 | J26: 8638 | K26: 7944.91 | L26: 7037 | M26: 6921.13 | N26: 11645 | O26: 11325.03 | P26: 12945 | Q26: 11665.24 | R26: 12252 | S26: 11412.74 | T26: 10743 | U26: 10173.55 | V26: 11102 | W26: 10097.35 | X26: 11894 | Y26: 11765.29 | Z26: 11643 | AA26: 11629.01 | AB26: 13573 | AC26: 12501.1 | AD26: 13323 | AE26: 12395.89 | AF26: 11762 | AG26: 11239.83 | AH26: 7888 | AI26: 6005.73 | AJ26: 9158 | AK26: 8108.71 | AL26: 7003 | AM26: 7066.43 | AN26: 4987 | AO26: 5184.55 | AP26: 3729 | AQ26: 4169.49 | AR26: 3932 | AS26: 4271 | AT26: 5260 | AU26: 5154.4 | AV26: 4491 | AW26: 4612.75 | AX26: 4850 | AY26: 4886.84 | AZ26: 3418 | BA26: 3532.54 | BB26: 6058 | BC26: 5826.46 | BD26: 6074 | BE26: 7003.27 | BF26: 5760 | BG26: 6127.96 | BH26: 5258 | BI26: 5972.68 | BJ26: 5820 | BK26: 6185.84 | BL26: 5597 | BM26: 5723.77 | BN26: 7345 | BO26: 6871.23 | BP26: 7218 | BQ26: 7323.3
A27: MUNICIPIO DE PORTO ALEGRE | B27: 92.963.560/0001-60 | C27: PODER PUBLICO | D27: TRIFÁSICO | E27: RUA JOAQUIM SILVEIRA, 50 | F27: SARANDI | G27: 46110313 | H27: 12727 | I27: 10718.9 | J27: 11198 | K27: 9890.64 | L27: 11307 | M27: 9971.57 | N27: 9371 | O27: 8622.05 | P27: 9851 | Q27: 8859.69 | R27: 9816 | S27: 8854.34 | T27: 9709 | U27: 8561.48 | V27: 10778 | W27: 1062.85 | X27: 12232 | Y27: 11106.54 | Z27: 12152 | AA27: 11074.45 | AC27: 12616 | AD27: 10361.77 | AE27: 13870 | AF27: 11011.29 | AG27: 11351 | AH27: 9488.25 | AI27: 12533 | AJ27: 10217.61 | AK27: 11201 | AL27: 9894.29 | AM27: 11322 | AN27: 9547.6 | AO27: 9815 | AP27: 8373.78 | AQ27: 10585 | AR27: 9378.17 | AS27: 10739 | AT27: 9097.12 | AU27: 9148 | AV27: 7992.67 | AW27: 9031 | AX27: 8137.73 | AY27: 4977 | AZ27: 5130.35 | BA27: 9948 | BB27: 8651.37 | BC27: 10242 | BD27: 10467.14 | BE27: 10645 | BF27: 9353.24 | BG27: 9351 | BH27: 8833.87 | BI27: 10464 | BJ27: 9659.08 | BK27: 9784 | BL27: 8898.78 | BM27: 10258 | BN27: 9370.42 | BO27: 10235 | BP27: 9590.67
A28: MUNICIPIO DE PORTO ALEGRE | B28: 92.963.560/0001-60 | C28: ILUMINACAO PUBLICA | D28: TRIFÁSICO | E28: PRQ FARROUPILHA, 60 | F28: FARROUPILHA | G28: 24368229 | H28: 12444 | I28: 5005.64 | J28: 11624 | K28: 4430.19 | L28: 12915 | M28: 5291.45 | N28: 15232 | O28: 6152.54 | P28: 17487 | Q28: 7016.9 | R28: 14637 | S28: 5924.41 | T28: 21638 | U28: 8663.42 | V28: 15251 | W28: 6371.4 | AA28: 13341 | AB28: 5709.25 | AC28: 13778 | AD28: 5502.82 | AE28: 12956 | AF28: 5148.94 | AG28: 13908 | AH28: 5229.4 | AI28: 15169 | AJ28: 5903.33 | AK28: 18154 | AL28: 6848.73 | AM28: 17154 | AN28: 6280.23 | AO28: 19965 | AP28: 7306.77 | AQ28: 14044 | AR28: 5189.85 | AS28: 15828 | AT28: 5836.55 | AU28: 15476 | AV28: 5867.44 | AW28: 13886 | AX28: 5239.26 | AY28: 13984 | AZ28: 5640.95 | BA28: 12889 | BB28: 6210.94 | BC28: 13798 | BD28: 5718.13 | BE28: 12973 | BF28: 5480.71 | BG28: 15478 | BH28: 6402.15 | BI28: 13200 | BJ28: 5439.16 | BK28: 13393 | BL28: 5950.21 | BM28: 17694 | BN28: 8309.54
A29: MUNICIPIO DE PORTO ALEGRE | B29: 92.963.560/0001-60 | C29: PODER PUBLICO | D29: TRIFÁSICO | E29: RUA JERONIMO DE ORNELAS, 55 - BL GDC-CSMODELO | F29: SANTANA | G29: 71475371 | H29: 12220 | I29: 15643.41 | J29: 19241 | K29: 18710.77 | L29: 13291 | M29: 15701.03 | N29: 11853 | O29: 14255.47 | P29: 10056 | Q29: 11742.87 | R29: 7474 | S29: 9270.68 | T29: 7161 | U29: 8917.54 | V29: 9753 | W29: 11087.38 | X29: 8337 | Y29: 10085.23 | Z29: 7759 | AA29: 10900.68 | AB29: 9416 | AC29: 11379.73 | AD29: 11499 | AE29: 13773.83 | AF29: 16467 | AG29: 19474.21 | AH29: 18981 | AI29: 20590.83 | AJ29: 13793 | AK29: 14837.16 | AL29: 15014 | AM29: 16988.76 | AN29: 6906 | AO29: 8622.86 | AP29: 6232 | AQ29: 7587.13 | AR29: 7279 | AS29: 8556.8 | AT29: 8722 | AU29: 9566.06 | AV29: 7133 | AW29: 8504.12 | AX29: 6668 | AY29: 8134.11 | AZ29: 6495 | BA29: 7964.31 | BB29: 10328 | BC29: 12390.15 | BD29: 13365 | BE29: 16165.42 | BF29: 15724 | BG29: 17777.86 | BH29: 13156 | BI29: 14163.61 | BJ29: 13176 | BK29: 14009.5 | BL29: 9669 | BM29: 10708.03 | BN29: 7060 | BO29: 8894 | BP29: 7460 | BQ29: 9286.6
A30: MUNICIPIO DE PORTO ALEGRE | B30: 92.963.560/0001-60 | C30: PODER PUBLICO | D30: TRIFÁSICO | E30: RUA DEZENOVE DE FEVEREIRO, 330 | F30: PROTASIO ALVES - CHACARA DA FUMACA | G30: 24582034 | H30: 11287 | I30: 9231.93 | J30: 9745 | K30: 8266.05 | L30: 12409 | M30: 10266.98 | N30: 11020 | O30: 9734.65 | P30: 11831 | Q30: 9499.42 | R30: 11893 | S30: 9977.21 | T30: 10504 | U30: 8829.03 | V30: 11420 | W30: 9757.28 | X30: 10923 | Y30: 9709.81 | Z30: 10888 | AA30: 9874.76 | AB30: 11628 | AC30: 9851.44 | AD30: 10854 | AE30: 9163.52 | AF30: 9915 | AG30: 8090.59 | AH30: 6584 | AI30: 5844.68 | AJ30: 11371 | AK30: 9018.94 | AL30: 6351 | AM30: 5751.66 | AN30: 5693 | AO30: 5041.38 | AP30: 5465 | AQ30: 4640.39 | AR30: 5196 | AS30: 4620.59 | AT30: 5830 | AU30: 5089.89 | AV30: 4309 | AW30: 3970.48 | AX30: 5681 | AY30: 5143.4 | AZ30: 3267 | BA30: 3406.71 | BB30: 7727 | BC30: 6484.09 | BD30: 6233 | BE30: 6516.4 | BF30: 5287 | BG30: 5076.58 | BH30: 4750 | BI30: 5020.03 | BJ30: 4874 | BK30: 5090.15 | BL30: 4951 | BM30: 4782.93 | BN30: 7818 | BO30: 6681.73 | BP30: 7935 | BQ30: 7243.38
A31: MUNICIPIO DE PORTO ALEGRE | B31: 92.963.560/0001-60 | C31: PODER PUBLICO | D31: TRIFÁSICO | E31: RUA FREDERICO MENTZ, 1315 - BL ADM-EMAT | F31: NAVEGANTES | G31: 71603727 | H31: 10508 | I31: 8959.69 | J31: 11775 | K31: 9900.71 | L31: 7256 | M31: 7001.94 | N31: 7276 | O31: 6944.63 | P31: 4593 | Q31: 5029.14 | R31: 4121 | S31: 4630.73 | T31: 4365 | U31: 4780.36 | V31: 3554 | W31: 4335.79 | X31: 3420 | Y31: 4304.54 | Z31: 5002 | AA31: 5369.59 | AB31: 7515 | AC31: 7063.43 | AD31: 10406 | AE31: 8110.83 | AF31: 11109 | AG31: 8818.97 | AH31: 10915 | AI31: 8635.35 | AJ31: 10140 | AK31: 7941.73 | AL31: 6411 | AM31: 6146.32 | AN31: 4094 | AO31: 4571.51 | AP31: 3382 | AQ31: 3974.89 | AR31: 3762 | AS31: 4232.64 | AT31: 3464 | AU31: 4086.35 | AV31: 2972 | AW31: 3818.67 | AX31: 4135 | AY31: 4569.47 | AZ31: 2025 | BA31: 3289.04 | BB31: 7961 | BC31: 7160.41 | BD31: 8537 | BE31: 8693.19 | BF31: 11092 | BG31: 9209.26 | BH31: 10954 | BI31: 9388.82 | BJ31: 10993 | BK31: 9115.89 | BL31: 7932 | BM31: 7044.88 | BN31: 4979 | BO31: 5262.84 | BP31: 3887 | BQ31: 4555.97
A32: MUNICIPIO DE PORTO ALEGRE | B32: 92.963.560/0001-60 | C32: PODER PUBLICO | D32: TRIFÁSICO | E32: AV NITEROI, 500 | F32: MEDIANEIRA | G32: 24587958 | H32: 10376 | I32: 8778.52 | J32: 9163 | K32: 7891.26 | L32: 4898 | M32: 4385.03 | N32: 5712 | O32: 4864.73 | P32: 11040 | Q32: 9306.11 | R32: 8899 | S32: 7501.65 | T32: 9691 | U32: 8043.17 | V32: 8626 | W32: 7450.55 | X32: 9557 | Y32: 8429.41 | Z32: 9414 | AA32: 8480.71 | AB32: 9874 | AC32: 8245.53 | AD32: 9494 | AE32: 8187.65 | AF32: 8614 | AG32: 7101.14 | AH32: 6381 | AI32: 5277.17 | AJ32: 5026 | AK32: 4144.82 | AL32: 7150 | AM32: 6001.06 | AN32: 2891 | AO32: 2415.28 | AP32: 2367 | AQ32: 1917.91 | AR32: 3106 | AS32: 2473.5 | AT32: 2392 | AU32: 1922.62 | AV32: 2336 | AW32: 1821.56 | AX32: 3373 | AY32: 2705.41 | AZ32: 4282 | BA32: 3372.11 | BB32: 4640 | BC32: 3762.7 | BD32: 2332 | BE32: 2203.01 | BF32: 2715 | BG32: 2227.54 | BH32: 2846 | BI32: 2566.25 | BJ32: 2723 | BK32: 2382.55 | BL32: 3715 | BM32: 3150.21 | BN32: 5257 | BO32: 4557.88 | BP32: 6229 | BQ32: 5538.1
A33: MUNICIPIO DE PORTO ALEGRE | B33: 92.963.560/0001-60 | C33: PODER PUBLICO | D33: TRIFÁSICO | E33: AV JOAO PESSOA, 10 | F33: CENTRO / FARROUPILHA | G33: 65784367 | H33: 10266 | I33: 10498.31 | J33: 10744 | K33: 10620.39 | L33: 10527 | M33: 10914.6 | N33: 10493 | O33: 10782.56 | P33: 12962 | Q33: 12155.66 | R33: 13223 | S33: 12212.7 | T33: 12240 | U33: 11679.4 | V33: 12807 | W33: 12310.38 | X33: 12859 | Y33: 12853.22 | Z33: 11081 | AA33: 11254.27 | AC33: 15522 | AD33: 13338.95 | AE33: 8008 | AF33: 9146.08 | AG33: 9539 | AH33: 9935.04 | AI33: 9042 | AJ33: 281.12 | AK33: 10543 | AL33: 10699.57 | AM33: 12589 | AN33: 11523.21 | AO33: 12274 | AP33: 10910.45 | AQ33: 12505 | AR33: 11041.98 | AS33: 13931 | AT33: 11904.78 | AU33: 9860 | AV33: 9743.12 | AW33: 8734 | AX33: 9406.52 | AY33: 1797 | AZ33: 5648.23 | BA33: 3251 | BB33: 6410.12 | BC33: 3482 | BD33: 7665 | BE33: 3781 | BF33: 7162.67 | BG33: 4125 | BH33: 7645 | BI33: 11204 | BJ33: 11497.41 | BK33: 11087 | BL33: 11096.64 | BM33: 11183 | BN33: 10975.02 | BO33: 10584 | BP33: 10735.8
A34: MUNICIPIO DE PORTO ALEGRE | B34: 92.963.560/0001-60 | C34: PODER PUBLICO | D34: TRIFÁSICO | E34: AV PROTASIO ALVES, 3801 | F34: PETROPOLIS | G34: 40378934 | H34: 10225 | I34: 8906.46 | J34: 12386 | K34: 11496.95 | L34: 11909 | M34: 10541.36 | N34: 12465 | O34: 11525.31 | P34: 14344 | Q34: 12876.54 | R34: 15352 | S34: 13822.08 | T34: 14802 | U34: 13129.59 | V34: 17045 | W34: 15336.44 | X34: 14487 | Y34: 13856.14 | Z34: 14171 | AA34: 13406.58 | AB34: 13426 | AC34: 12301.41 | AD34: 11448 | AE34: 10091.71 | AF34: 12854 | AG34: 10679.3 | AH34: 12384 | AI34: 10771.09 | AJ34: 13543 | AK34: 10881.09 | AL34: 14326 | AM34: 12922.09 | AN34: 17650 | AO34: 15361.44 | AP34: 17804 | AQ34: 14573.11 | AR34: 16181 | AS34: 13823.05 | AT34: 16063 | AU34: 14051.91 | AV34: 14028 | AW34: 11884.49 | AX34: 11133 | AY34: 10172.74 | AZ34: 5965 | BA34: 6177.58 | BB34: 10586 | BC34: 9657.98 | BD34: 10188 | BE34: 11008.53 | BF34: 11176 | BG34: 10585.78 | BH34: 9718 | BI34: 9482.81 | BJ34: 11518 | BK34: 11241.57 | BL34: 10192 | BM34: 10042.25 | BN34: 12345 | BO34: 11840.19 | BP34: 12740 | BQ34: 12631.68
A35: MUNICIPIO DE PORTO ALEGRE | B35: 92.963.560/0001-60 | C35: PODER PUBLICO | D35: TRIFÁSICO | E35: RUA GENTIL AMANCIO CLEMENTE, 116 | F35: CHACARA DA FUMACA | G35: 35189801 | H35: 10205 | I35: 8596.17 | J35: 7520 | K35: 6683.33 | L35: 5878 | M35: 5183.87 | N35: 10370 | O35: 9227.33 | P35: 10623 | Q35: 8832.73 | R35: 9895 | S35: 8034.84 | T35: 8395 | U35: 7194.31 | V35: 9417 | W35: 7980.06 | X35: 9978 | Y35: 8785.36 | Z35: 9165 | AA35: 8351.64 | AB35: 8781 | AC35: 7463.64 | AD35: 8765 | AE35: 7509.93 | AF35: 8485 | AG35: 6977.92 | AH35: 6168 | AI35: 5382.54 | AJ35: 9042 | AK35: 7153.85 | AL35: 6584 | AM35: 5621.67 | AN35: 5370 | AO35: 4556.25 | AP35: 4993 | AQ35: 4121.54 | AR35: 3919 | AS35: 3590.36 | AT35: 4116 | AU35: 3771.29 | AV35: 4690 | AW35: 3952.06 | AX35: 4775 | AY35: 4114.31 | AZ35: 2808 | BA35: 2854.15 | BB35: 5517 | BC35: 4578.27 | BD35: 4444 | BE35: 4784.5 | BF35: 4466 | BG35: 4262.76 | BH35: 4202 | BI35: 4347.38 | BJ35: 5425 | BK35: 5061.23 | BL35: 5820 | BM35: 5223.31 | BN35: 6045 | BO35: 5233.92 | BP35: 6439 | BQ35: 5854.86
A36: MUNICIPIO DE PORTO ALEGRE | B36: 92.963.560/0001-60 | C36: PODER PUBLICO | D36: TRIFÁSICO | E36: ACS L-S QUADRA DOIS, 607 | F36: VIL NOVA RESTINGA-PRIM UNID VICINAL | G36: 24574830 | H36: 10053 | I36: 9020.98 | J36: 6986 | K36: 6425.28 | L36: 5363 | M36: 5095.84 | N36: 8163 | O36: 7540.58 | P36: 12719 | Q36: 10474.95 | R36: 11857 | S36: 10393.87 | T36: 11370 | U36: 9617.06 | V36: 12873 | W36: 10839.46 | X36: 12531 | Y36: 11388.89 | Z36: 12698 | AA36: 11614.64 | AB36: 14621 | AC36: 12543.9 | AD36: 11803 | AE36: 9943.81 | AF36: 10509 | AG36: 8754.27 | AH36: 8231 | AI36: 6888.34 | AJ36: 8624 | AK36: 7031.5 | AL36: 9281 | AM36: 7611.25 | AN36: 6268 | AO36: 5392.17 | AP36: 6167 | AQ36: 5198.02 | AR36: 6375 | AS36: 5282.87 | AT36: 6825 | AU36: 5791.88 | AV36: 6944 | AW36: 5438.25 | AX36: 6846 | AY36: 5687.39 | AZ36: 4771 | BA36: 3919.74 | BB36: 9820 | BC36: 7714.94 | BD36: 7086 | BE36: 7048.95 | BF36: 6012 | BG36: 5058.59 | BH36: 4055 | BI36: 4493.97 | BJ36: 4068 | BK36: 4321.55 | BL36: 3134 | BM36: 3404.59 | BN36: 4463 | BO36: 4257.1 | BP36: 4341 | BQ36: 4185.39
A37: MUNICIPIO DE PORTO ALEGRE | B37: 92.963.560/0001-60 | C37: PODER PUBLICO | D37: TRIFÁSICO | E37: TRV DO CARMO, 84 | F37: CIDADE BAIXA | G37: 4938496 | H37: 9955 | I37: 8424.7 | J37: 11447 | K37: 9854.92 | L37: 10868 | M37: 9392.45 | N37: 9132 | O37: 7767.05 | P37: 8684 | Q37: 7257.25 | R37: 6468 | S37: 5457.87 | T37: 6348 | U37: 5276.22 | V37: 6836 | W37: 5776.16 | X37: 6670 | Y37: 5890.41 | Z37: 5924 | AA37: 5344.88 | AB37: 6865 | AC37: 5740.25 | AD37: 8501 | AE37: 7333.61 | AF37: 10027 | AG37: 8187.24 | AH37: 11783 | AI37: 9727.73 | AJ37: 10146 | AK37: 8018.01 | AL37: 8867 | AM37: 7293.67 | AN37: 4010 | AO37: 3193.3 | AP37: 3407 | AQ37: 2624.63 | AR37: 4087 | AS37: 3143.19 | AT37: 4231 | AU37: 3290.35 | AV37: 3568 | AW37: 2771.2 | AX37: 3689 | AY37: 2956.91 | AZ37: 4362 | BA37: 3473.22 | BB37: 5251 | BC37: 4254.6 | BD37: 5923 | BE37: 5651.99 | BF37: 6937 | BG37: 5925.81 | BH37: 5370 | BI37: 4694.99 | BJ37: 5550 | BK37: 4735.3 | BL37: 6334 | BM37: 5853.45 | BN37: 4315 | BO37: 3745.97 | BP37: 4846 | BQ37: 4314.48
A38: MUNICIPIO DE PORTO ALEGRE | B38: 92.963.560/0001-60 | C38: PODER PUBLICO | D38: TRIFÁSICO | E38: AV PRES JOAO GOULART, 551 | F38: CENTRO | G38: 63556022 | H38: 9599 | I38: 15192.72 | J38: 9280 | K38: 13728.78 | L38: 8833 | M38: 15986.27 | N38: 6964 | O38: 13129.3 | P38: 7442 | Q38: 13385.23 | R38: 7510 | S38: 13522.59 | T38: 6911 | U38: 12904.34 | V38: 6093 | W38: 12813.07 | X38: 5465 | Y38: 12214.53 | Z38: 5411 | AA38: 12055.56 | AB38: 6974 | AC38: 12469.96 | AD38: 7047 | AE38: 13480.76 | AF38: 9096 | AG38: 14972.47 | AH38: 5735 | AI38: 10986.49 | AJ38: 4615 | AK38: 10078.73 | AL38: 4009 | AM38: 11025.39 | AN38: 4551 | AO38: 10998.36 | AP38: 3830 | AQ38: 10078.74 | AR38: 4243 | AS38: 10238.77 | AT38: 4499 | AU38: 10514.86 | AV38: 3375 | AW38: 9217.37 | AX38: 3946 | AY38: 9125.8 | AZ38: 1801 | BA38: 8089.84 | BB38: 3555 | BC38: 9682.66 | BD38: 3182 | BE38: 11148.68 | BF38: 2306 | BG38: 9086.37 | BH38: 658 | BI38: 8655.26 | BJ38: 3916 | BK38: 10959.71 | BL38: 3918 | BM38: 4569.86 | BN38: 3931 | BO38: 3842.59 | BP38: 3753 | BQ38: 4268.64
A39: MUNICIPIO DE PORTO ALEGRE | B39: 92.963.560/0001-60 | C39: PODER PUBLICO | D39: TRIFÁSICO | E39: RUA SANTANA, 175 - AP 00001 | F39: SANTANA | G39: 68984651 | H39: 9556 | I39: 8086.35 | J39: 10913 | K39: 9394.56 | L39: 7913 | M39: 6842.9 | N39: 6875 | O39: 5851.12 | P39: 5723 | Q39: 4807.66 | R39: 5800 | S39: 4881.06 | T39: 6560 | U39: 5590.88 | V39: 6668 | W39: 5684.6 | X39: 6082 | Y39: 5501.03 | Z39: 5942 | AA39: 5319.31 | AB39: 6091 | AC39: 5143.83 | AD39: 6606 | AE39: 468.11 | AF39: 8171 | AG39: 6739.05 | AH39: 9068 | AI39: 7459.05 | AJ39: 8088 | AK39: 6688.19 | AL39: 7274 | AM39: 5986.93 | AN39: 4498 | AO39: 3579.46 | AP39: 5284 | AQ39: 4059.56 | AR39: 7188 | AS39: 5599.14 | AT39: 6570 | AU39: 5097.73 | AV39: 6418 | AW39: 4968.02 | AX39: 5584 | AY39: 4392.82 | AZ39: 5099 | BA39: 4158.81 | BB39: 5995 | BC39: 5012.62 | BD39: 6230 | BE39: 5902.33 | BF39: 6781 | BG39: 5752.2 | BH39: 6192 | BI39: 5410.11 | BJ39: 5609 | BK39: 4785.38 | BL39: 5660 | BM39: 4754.55 | BN39: 6302 | BO39: 5502.53 | BP39: 7597 | BQ39: 6825.3
A40: MUNICIPIO DE PORTO ALEGRE | B40: 92.963.560/0001-60 | C40: PODER PUBLICO | D40: TRIFÁSICO | E40: RUA A - NOSSA SRA DE FATIMA, 393 | F40: VILA BOM JESUS | G40: 31017584 | H40: 9296 | I40: 7650.27 | J40: 7413 | K40: 6468.09 | L40: 6185 | M40: 5151.3 | N40: 8301 | O40: 7192.59 | P40: 9215 | Q40: 7688.46 | R40: 8052 | S40: 6613.63 | T40: 8532 | U40: 7251.05 | V40: 9404 | W40: 7949.81 | X40: 9258 | Y40: 8202.58 | Z40: 9305 | AA40: 8061.21 | AB40: 9200 | AC40: 7786.97 | AD40: 8642 | AE40: 7021.63 | AF40: 9199 | AG40: 7334.15 | AH40: 6830 | AI40: 5571.8 | AJ40: 7244 | AK40: 5277.01 | AL40: 4850 | AM40: 4398.8 | AN40: 4199 | AO40: 3835.85 | AP40: 3581 | AQ40: 3256.26 | AR40: 3551 | AS40: 3314.75 | AT40: 4066 | AU40: 3702.87 | AV40: 4011 | AW40: 3501.39 | AX40: 4105 | AY40: 3606.66 | AZ40: 2421 | BA40: 2551.17 | BB40: 5931 | BC40: 4898.24 | BD40: 5478 | BE40: 5639.42 | BF40: 3726 | BG40: 3667.24 | BH40: 3992 | BI40: 4219.24 | BJ40: 4859 | BK40: 4742.41 | BL40: 4187 | BM40: 3934.87 | BN40: 4521 | BO40: 4038.41 | BP40: 4812 | BQ40: 4606.35
A41: MUNICIPIO DE PORTO ALEGRE | B41: 92.963.560/0001-60 | C41: PODER PUBLICO | D41: TRIFÁSICO | E41: RUA SETE DE SETEMBRO, 1123 | F41: CENTRO | G41: 48489361 | H41: 8904 | I41: 7536.01 | J41: 14266 | K41: 12274.85 | L41: 10865 | M41: 9388.21 | N41: 7397 | O41: 6293.86 | P41: 11974 | Q41: 9997.99 | R41: 11933 | S41: 10055.32 | T41: 10486 | U41: 8693.79 | V41: 10082 | W41: 8504 | X41: 9086 | Y41: 8015.18 | Z41: 8326 | AA41: 7513.41 | AB41: 11911 | AC41: 9941.03 | AD41: 12278 | AE41: 11133.26 | AF41: 15770 | AG41: 12985.88 | AH41: 20414 | AI41: 16838.55 | AJ41: 15751 | AK41: 12436.37 | AL41: 12062 | AM41: 9914.53 | AN41: 475 | AO41: 395.95 | AP41: 4462 | AQ41: 3431.16 | AR41: 4908 | AS41: 3770.6 | AT41: 10459 | AU41: 8102.83 | AV41: 0 | AW41: 98.03 | AX41: 0 | AY41: 100.54 | AZ41: 0 | BA41: 100.09 | BB41: 3199 | BC41: 2615.3 | BD41: 6415 | BE41: 6130.45 | BF41: 4534 | BG41: 3881.19 | BH41: 2993 | BI41: 2627.09 | BJ41: 1097 | BK41: 1034.85 | BL41: 1517 | BM41: 1277.93 | BN41: 2602 | BO41: 2266.85 | BP41: 3302 | BQ41: 2943.25
A42: MUNICIPIO DE PORTO ALEGRE | B42: 92.963.560/0001-60 | C42: PODER PUBLICO | D42: TRIFÁSICO | E42: RUA DR CAIO BRANDAO MELLO, 216 | F42: HUMAITA | G42: 72547774 | H42: 8662 | I42: 1262.47 | J42: 6509 | K42: 1325.57 | L42: 7321 | M42: 1176.89 | N42: 10687 | O42: 1263.53 | P42: 11309 | Q42: 1264.18 | R42: 10985 | S42: 1258.97 | T42: 9660 | U42: 1646.5 | V42: 0 | W42: 1162.84 | X42: 8940 | Y42: 1279.59 | Z42: 9655 | AA42: 1243.96 | AB42: 23669 | AC42: 2072.63 | AD42: 9976 | AE42: 1378.82 | AF42: 6139 | AG42: 1436.42 | AH42: 8 | AI42: 1378.7 | AJ42: 9030 | AK42: 2211.58 | AL42: 10780 | AM42: 2686.26 | AN42: 4093 | AO42: 1804.27 | AP42: 4590 | AQ42: 1737.5 | AR42: 3806 | AS42: 1657.51 | AT42: 3094 | AU42: 1646.71 | AV42: 3494 | AW42: 1601.38 | AX42: 3608 | AY42: 1672.16 | AZ42: 1952 | BA42: 1537.5 | BB42: 6096 | BC42: 1972.43 | BD42: 4724 | BE42: 2146.57 | BF42: 3614 | BG42: 1948.21 | BH42: 4907 | BI42: 2157.74 | BJ42: 3191 | BK42: 1932.59 | BL42: 3745 | BM42: 1863.31 | BN42: 5284 | BO42: 1755.66 | BP42: 6667 | BQ42: 1952.16
A43: MUNICIPIO DE PORTO ALEGRE | B43: 92.963.560/0001-60 | C43: PODER PUBLICO | D43: TRIFÁSICO | E43: RUA BISPO MARINO PRUDENCIO MOREIRA, 95 | F43: RESTINGA-QUINTA UNIDADE VICINAL | G43: 63282941 | H43: 8498 | I43: 7584.33 | J43: 6680 | K43: 5982.16 | L43: 3399 | M43: 3479.79 | N43: 6534 | O43: 6026.62 | P43: 7797 | Q43: 6889.35 | R43: 6855 | S43: 5900.38 | T43: 6175 | U43: 5446.67 | V43: 6575 | W43: 5817.44 | X43: 6073 | Y43: 5715.54 | Z43: 5919 | AA43: 5845.87 | AB43: 6571 | AC43: 5969.17 | AD43: 6543 | AE43: 6224.18 | AF43: 6115 | AG43: 6228.96 | AH43: 3685 | AI43: 3513.84 | AJ43: 4922 | AK43: 4714.76 | AL43: 3602 | AM43: 4263.51 | AN43: 1508 | AO43: 1899.64 | AP43: 1493 | AQ43: 1828.6 | AR43: 2240 | AS43: 2311.8 | AT43: 2583 | AU43: 2617.62 | AV43: 1576 | AW43: 1859.87 | AX43: 1443 | AY43: 1798.55 | AZ43: 1451 | BA43: 1841.2 | BB43: 2034 | BC43: 2195.36 | BD43: 1624 | BE43: 2376.03 | BF43: 1700 | BG43: 2173.26 | BH43: 2041 | BI43: 2525.99 | BJ43: 1475 | BK43: 2091.07 | BL43: 1149 | BM43: 1753.91 | BN43: 1402 | BO43: 1821.02 | BP43: 2248 | BQ43: 2448.74
A44: MUNICIPIO DE PORTO ALEGRE | B44: 92.963.560/0001-60 | C44: PODER PUBLICO | D44: TRIFÁSICO | E44: RUA GERVAZIO BRAGA PINHEIRO, 427 | F44: LOMBA DO PINHEIRO - VILA PANORAMA | G44: 31117953 | H44: 8296 | I44: 6880.21 | J44: 8337 | K44: 6557.43 | L44: 6480 | M44: 5718.25 | N44: 8984 | O44: 7813.16 | P44: 9577 | Q44: 8161.12 | R44: 9809 | S44: 8241.45 | T44: 8618 | U44: 7224.17 | V44: 8994 | W44: 7729.55 | X44: 9111 | Y44: 8308.35 | Z44: 9480 | AA44: 8917.59 | AB44: 10760 | AC44: 8959.67 | AD44: 9034 | AE44: 7790.52 | AF44: 8180 | AG44: 6778 | AH44: 6609 | AI44: 5284.96 | AJ44: 7655 | AK44: 6233.22 | AL44: 5159 | AM44: 5330.21 | AN44: 3197 | AO44: 3150.11 | AP44: 3142 | AQ44: 3044.6 | AR44: 2823 | AS44: 2745.42 | AT44: 3615 | AU44: 3436.05 | AV44: 3263 | AW44: 3049.93 | AX44: 2536 | AY44: 2480 | AZ44: 1991 | BA44: 2269.25 | BB44: 3616 | BC44: 3255.85 | BD44: 2632 | BE44: 3325.25 | BF44: 2591 | BG44: 2888.98 | BH44: 3122 | BI44: 3460.53 | BJ44: 2838 | BK44: 3248.7 | BL44: 2989 | BM44: 3112.32 | BN44: 5051 | BO44: 4434.31 | BP44: 6597 | BQ44: 6062.37
A45: MUNICIPIO DE PORTO ALEGRE | B45: 92.963.560/0001-60 | C45: PODER PUBLICO | D45: TRIFÁSICO | E45: RUA JAYME CYRINO MACHADO DE OLIVEIRA, 250 | F45: RUBEM BERTA | G45: 25796151 | H45: 8246 | I45: 6980.59 | J45: 6182 | K45: 5502.49 | L45: 4832 | M45: 3756.37 | N45: 7926 | O45: 6742.53 | P45: 7804 | Q45: 6576.73 | R45: 7216 | S45: 6030.65 | T45: 7016 | U45: 5908.84 | V45: 6754 | W45: 5823 | X45: 7283 | Y45: 5182.75 | Z45: 7682 | AA45: 6782.63 | AB45: 8012 | AC45: 6850.2 | AD45: 7933 | AE45: 6442.29 | AF45: 5993 | AG45: 4948.64 | AH45: 3431 | AI45: 2128.05 | AJ45: 6406 | AK45: 5183.43 | AL45: 3542 | AM45: 2925.58 | AN45: 3964 | AO45: 3268.19 | AP45: 3706 | AQ45: 2853.21 | AR45: 2948 | AS45: 2272.82 | AT45: 3251 | AU45: 2578.87 | AV45: 3157 | AW45: 2454.4 | AX45: 3662 | AY45: 2935.41 | AZ45: 3258 | BA45: 2599.47 | BB45: 3385 | BC45: 3007.41 | BD45: 3021 | BE45: 2797.47 | BF45: 3255 | BG45: 2738.61 | BH45: 3620 | BI45: 3172.57 | BJ45: 3344 | BK45: 3033.13 | BL45: 3953 | BM45: 3368.53 | BN45: 4282 | BO45: 3786.18 | BP45: 4014 | BQ45: 3683.47
A46: MUNICIPIO DE PORTO ALEGRE | B46: 92.963.560/0001-60 | C46: PODER PUBLICO | D46: TRIFÁSICO | E46: AV ECONOMISTA NILO WULFF, 250 | F46: RESTINGA | G46: 24575348 | H46: 8156 | I46: 7042.74 | J46: 6715 | K46: 5944.93 | L46: 4348 | M46: 4357.58 | N46: 6685 | O46: 6403.71 | P46: 6600 | Q46: 6085.71 | R46: 6628 | S46: 6193.29 | T46: 5989 | U46: 5653.96 | V46: 5946 | W46: 5571.41 | X46: 6071 | Y46: 5906.3 | Z46: 5604 | AA46: 5672.72 | AB46: 5918 | AC46: 5517.11 | AD46: 5574 | AE46: 5412.1 | AF46: 5530 | AG46: 5412.09 | AH46: 3099 | AI46: 3412.33 | AJ46: 5619 | AK46: 5187.16 | AL46: 2984 | AM46: 3395.42 | AN46: 2225 | AO46: 2742.19 | AP46: 1874 | AQ46: 2424.19 | AR46: 1962 | AS46: 2462.68 | AT46: 1630 | AU46: 2213.59 | AV46: 1445 | AW46: 2104.52 | AX46: 1975 | AY46: 2463.91 | AZ46: 819 | BA46: 1614.94 | BB46: 1702 | BC46: 2283.39 | BD46: 1479 | BE46: 2632.19 | BF46: 1239 | BG46: 2052.5 | BH46: 1276 | BI46: 2462.69 | BJ46: 1582 | BK46: 2557.76 | BL46: 1380 | BM46: 2271.05 | BN46: 2986 | BO46: 3157.11 | BP46: 3387 | BQ46: 3798
A47: MUNICIPIO DE PORTO ALEGRE | B47: 92.963.560/0001-60 | C47: PODER PUBLICO | D47: TRIFÁSICO | E47: RUA GUAIBA, 203 | F47: LOMBA DO PINHEIRO | G47: 31390188 | H47: 8080 | I47: 6999.94 | J47: 8178 | K47: 7123.99 | L47: 4537 | M47: 4178.2 | N47: 5336 | O47: 4893.53 | P47: 7212 | Q47: 6390.88 | R47: 8059 | S47: 6975.78 | T47: 6726 | U47: 5929.01 | V47: 6995 | W47: 6430.32 | X47: 7974 | Y47: 7223.55 | Z47: 7433 | AA47: 6863.76 | AB47: 8235 | AC47: 6819.5 | AD47: 7090 | AE47: 6191.97 | AF47: 7233 | AG47: 6209.13 | AH47: 5833 | AI47: 5151.8 | AJ47: 4175 | AK47: 3865.88 | AL47: 4378 | AM47: 4163.86 | AN47: 3768 | AO47: 3504.38 | AP47: 2061 | AQ47: 2294.41 | AR47: 2072 | AS47: 2329.12 | AT47: 2093 | AU47: 2390.35 | AV47: 2004 | AW47: 2256.15 | AX47: 2355 | AY47: 2527.14 | AZ47: 1832 | BA47: 2155.12 | BB47: 2974 | BC47: 2882.65 | BD47: 2686 | BE47: 3345.24 | BF47: 2240 | BG47: 2659.13 | BH47: 2062 | BI47: 2724.27 | BJ47: 2320 | BK47: 2834.66 | BL47: 3626 | BM47: 3491.07 | BN47: 5084 | BO47: 4445.63 | BP47: 5377 | BQ47: 4872.81
A48: MUNICIPIO DE PORTO ALEGRE | B48: 92.963.560/0001-60 | C48: PODER PUBLICO | D48: TRIFÁSICO | E48: RUA SAIBREIRA, 13 | F48: APARICIO BORGES-VIL SAO MIGUEL DOIS | G48: 28375149 | H48: 7966 | I48: 6744.25 | J48: 4321 | K48: 3877.79 | L48: 4149 | M48: 3597.47 | N48: 8169 | O48: 6948.63 | P48: 6170 | Q48: 5209.6 | R48: 6304 | S48: 5271 | T48: 6591 | U48: 5552.25 | V48: 5968 | W48: 5157.23 | X48: 6499 | Y48: 5740.01 | Z48: 6900 | AA48: 6094.41 | AB48: 7576 | AC48: 6494.28 | AD48: 7766 | AE48: 6307.13 | AF48: 5654 | AG48: 4669.97 | AH48: 3678 | AI48: 3016.95 | AJ48: 7723 | AK48: 6108.01 | AL48: 3764 | AM48: 3206.25 | AN48: 2174 | AO48: 1925.01 | AP48: 1916 | AQ48: 1520.43 | AR48: 3172 | AS48: 2582.69 | AT48: 1815 | AU48: 1475.77 | AV48: 2308 | AW48: 1799.97 | AX48: 2583 | AY48: 2079.13 | AZ48: 2277 | BA48: 1823.06 | BB48: 3184 | BC48: 2830.42 | BD48: 1807 | BE48: 1607.76 | BF48: 1712 | BG48: 1482.45 | BH48: 2579 | BI48: 2319.07 | BJ48: 2515 | BK48: 2221.3 | BL48: 5323 | BM48: 4527.17 | BN48: 9160 | BO48: 8081.72 | BP48: 7938 | BQ48: 7297.06
A49: MUNICIPIO DE PORTO ALEGRE | B49: 92.963.560/0001-60 | C49: PODER PUBLICO | D49: TRIFÁSICO | E49: AV GAMAL ABDEL NASSER, 500 | F49: RUBEM BERTA | G49: 24570273 | H49: 7908 | I49: 7345.6 | J49: 6067 | K49: 5818.05 | L49: 5189 | M49: 5174.29 | N49: 8999 | O49: 8265.1 | P49: 10081 | Q49: 8975.43 | R49: 9973 | S49: 9145.38 | T49: 8526 | U49: 7738.49 | V49: 9830 | W49: 8767.79 | X49: 8740 | Y49: 8251.4 | Z49: 8821 | AA49: 8505.34 | AB49: 9831 | AC49: 8842.19 | AD49: 9503 | AE49: 8192.82 | AF49: 6985 | AG49: 6143.92 | AH49: 6249 | AI49: 5543.63 | AJ49: 8543 | AK49: 6846.5 | AL49: 7849 | AM49: 7059.97 | AN49: 6052 | AO49: 5341.65 | AP49: 5701 | AQ49: 4980.09 | AR49: 5740 | AS49: 5066.35 | AT49: 6251 | AU49: 5510.06 | AV49: 5475 | AW49: 4805.64 | AX49: 5965 | AY49: 5173.17 | AZ49: 3458 | BA49: 3435.75 | BB49: 5703 | BC49: 4912.56 | BD49: 5565 | BE49: 5964.02 | BF49: 5134 | BG49: 4817.47 | BH49: 4839 | BI49: 5028.04 | BJ49: 5835 | BK49: 5716.69 | BL49: 5120 | BM49: 4842.55 | BN49: 6844 | BO49: 6028.84 | BP49: 6281 | BQ49: 5818.08
A50: MUNICIPIO DE PORTO ALEGRE | B50: 92.963.560/0001-60 | C50: PODER PUBLICO | D50: TRIFÁSICO | E50: RUA PIO X, 501 | F50: VIL BOM JESUS | G50: 26253585 | H50: 7871 | I50: 6387.03 | J50: 5393 | K50: 4148.17 | L50: 5092 | M50: 4301.23 | N50: 7203 | O50: 6244.93 | P50: 6874 | Q50: 5884.46 | R50: 7815 | S50: 6578.58 | T50: 6746 | U50: 5752.51 | V50: 7394 | W50: 6305.55 | X50: 7297 | Y50: 6599.13 | Z50: 7382 | AA50: 6718.78 | AB50: 7612 | AC50: 6408.81 | AD50: 7099 | AE50: 6024.04 | AF50: 7004 | AG50: 5649.15 | AH50: 3674 | AI50: 3256.42 | AJ50: 5905 | AK50: 4979.14 | AL50: 3075 | AM50: 3078.92 | AN50: 2796 | AO50: 2796.87 | AP50: 2812 | AQ50: 2664.39 | AR50: 2607 | AS50: 2638.62 | AT50: 3520 | AU50: 3249.99 | AV50: 3416 | AW50: 3064.65 | AX50: 4066 | AY50: 3580.12 | AZ50: 2474 | BA50: 2569.68 | BB50: 4480 | BC50: 3940.05 | BD50: 4327 | BE50: 4641.56 | BF50: 3080 | BG50: 3150.67 | BH50: 2409 | BI50: 2536.43 | BJ50: 3487 | BK50: 3517.67 | BL50: 3196 | BM50: 3019.26 | BN50: 3857 | BO50: 3580.05 | BP50: 4423 | BQ50: 4263.84
A51: MUNICIPIO DE PORTO ALEGRE | B51: 92.963.560/0001-60 | C51: COMERCIAL, SERVICOS, OUTRAS ATIVIDADES | D51: TRIFÁSICO | E51: AV JOAO PESSOA, 1105 | F51: CENTRO / FARROUPILHA | G51: 69455619 | H51: 7782 | I51: 10341.98 | J51: 7416 | K51: 10154.58 | L51: 8515 | M51: 12168.89 | N51: 8418 | O51: 11943.6 | P51: 7289 | Q51: 10515.23 | R51: 6105 | S51: 9633.76 | T51: 4574 | U51: 8270.95 | V51: 677 | W51: 4559.27 | X51: 594 | Y51: 1241.62 | Z51: 829 | AA51: 1474.32 | AB51: 207 | AC51: 955.54 | AD51: 46 | AE51: 4338.51 | AF51: 51 | AG51: 4859.61 | AH51: 44 | AI51: 4773.07 | AJ51: 149 | AK51: 4719.28 | AL51: 184 | AM51: 5070.62 | AN51: 157 | AO51: 4764.48 | AP51: 0 | AQ51: 4635.52 | AR51: 0 | AS51: 4504.16 | AT51: 0 | AU51: 4555.24
A52: MUNICIPIO DE PORTO ALEGRE | B52: 92.963.560/0001-60 | C52: PODER PUBLICO | D52: TRIFÁSICO | E52: RUA MAJOR MANOEL JOSE MONTEIRO, 570 | F52: PRQ DOS MAIAS UM | G52: 26666499 | H52: 7765 | I52: 6876.59 | J52: 4952 | K52: 4549.92 | L52: 3275 | M52: 3429.37 | N52: 7178 | O52: 6707.64 | P52: 7673 | Q52: 6936.95 | R52: 7944 | S52: 7266.66 | T52: 6350 | U52: 5776.41 | V52: 7209 | W52: 6517.33 | X52: 7929 | Y52: 7366.38 | Z52: 7616 | AA52: 7494.31 | AB52: 8360 | AC52: 7368.83 | AD52: 8105 | AE52: 7114.78 | AF52: 7015 | AG52: 5923.52 | AH52: 4911 | AI52: 4350.64 | AJ52: 5960 | AK52: 5337.44 | AL52: 5797 | AM52: 5346.31 | AN52: 4161 | AO52: 4222.21 | AP52: 4028 | AQ52: 4011.51 | AR52: 4498 | AS52: 4374.54 | AT52: 4647 | AU52: 4574.52 | AV52: 4294 | AW52: 4192.73 | AX52: 4809 | AY52: 4565.25 | AZ52: 2721 | BA52: 2927.15 | BB52: 4086 | BC52: 4033 | BD52: 3954 | BE52: 4674.1 | BF52: 3696 | BG52: 3856.3 | BH52: 3584 | BI52: 4061.66 | BJ52: 4547 | BK52: 4708.1 | BL52: 4169 | BM52: 4100.73 | BN52: 5989 | BO52: 5217.57 | BP52: 5974 | BQ52: 5529.11
A53: MUNICIPIO DE PORTO ALEGRE | B53: 92.963.560/0001-60 | C53: PODER PUBLICO | D53: TRIFÁSICO | E53: RUA ENG ANTONIO CARLOS TIBIRICA, 515 | F53: JARDIM BOTANICO | G53: 24581640 | H53: 7666 | I53: 6374.73 | J53: 8370 | K53: 6944.35 | L53: 7440 | M53: 6944.62 | N53: 6510 | O53: 6079.67 | P53: 6081 | Q53: 5732.87 | R53: 6288 | S53: 5786.12 | T53: 5907 | U53: 5941.46 | V53: 6509 | W53: 6041.83 | X53: 6324 | Y53: 6201.01 | Z53: 6027 | AA53: 5874.7 | AB53: 5628 | AC53: 5373.89 | AD53: 6262 | AE53: 5960.95 | AF53: 7903 | AG53: 6772.29 | AH53: 8015 | AI53: 7199.26 | AJ53: 7298 | AK53: 6192.97 | AL53: 4531 | AM53: 4741.51 | AN53: 4416 | AO53: 4275.45 | AP53: 5598 | AQ53: 4958.67 | AR53: 5736 | AS53: 4964.95 | AT53: 5779 | AU53: 4913.62 | AV53: 5573 | AW53: 4826.26 | AX53: 5013 | AY53: 4721.49 | AZ53: 2191 | BA53: 2792.43 | BB53: 4822 | BC53: 4577.47 | BD53: 5731 | BE53: 6241.63 | BF53: 6284 | BG53: 6044.96 | BH53: 5589 | BI53: 5569.94 | BJ53: 6078 | BK53: 6231 | BL53: 5178 | BM53: 5143.9 | BN53: 5121 | BO53: 5531.09 | BP53: 5226 | BQ53: 5130.43
A54: MUNICIPIO DE PORTO ALEGRE | B54: 92.963.560/0001-60 | C54: PODER PUBLICO | D54: TRIFÁSICO | E54: AV CAPIVARI, 1502 | F54: CRISTAL / SANTA TERESA | G54: 24553131 | H54: 7590 | I54: 6632.29 | J54: 6898 | K54: 6029.97 | L54: 2712 | M54: 2931.9 | N54: 6106 | O54: 5691.42 | P54: 8870 | Q54: 7808.74 | R54: 8244 | S54: 7198.39 | T54: 6902 | U54: 6084.88 | V54: 7094 | W54: 6283.35 | X54: 7158 | Y54: 6749.6 | Z54: 6582 | AA54: 6313.46 | AB54: 7283 | AC54: 6692.06 | AD54: 6396 | AE54: 5896.42 | AF54: 5772 | AG54: 5139.69 | AH54: 3793 | AI54: 3724.35 | AJ54: 4299 | AK54: 3971.53 | AL54: 4369 | AM54: 4244.14 | AN54: 2223 | AO54: 2597.79 | AP54: 2068 | AQ54: 2387.89 | AR54: 2680 | AS54: 2968.83 | AT54: 2332 | AU54: 2789.87 | AV54: 2135 | AW54: 2469.21 | AX54: 2200 | AY54: 2471.43 | AZ54: 1671 | BA54: 2166.93 | BB54: 2512 | BC54: 2707.59 | BD54: 2154 | BE54: 2977.21 | BF54: 2187 | BG54: 2755.75 | BH54: 2041 | BI54: 2871.23 | BJ54: 2074 | BK54: 2816.32 | BL54: 2109 | BM54: 2644.04 | BN54: 3977 | BO54: 3916.04 | BP54: 4706 | BQ54: 4655.25
A55: MUNICIPIO DE PORTO ALEGRE | B55: 92.963.560/0001-60 | C55: PODER PUBLICO | D55: TRIFÁSICO | E55: RUA MARIO DE ARTAGAO, 13 - BL GDPLP-MÂªCONCEIC | F55: PARTENON | G55: 63708035 | H55: 7567 | I55: 7382.97 | J55: 9147 | K55: 8857.36 | L55: 7686 | M55: 7575.59 | N55: 7133 | O55: 6951.12 | P55: 6364 | Q55: 5569.31 | R55: 5448 | S55: 4312.61 | T55: 4913 | U55: 4547.45 | V55: 5806 | W55: 5006.62 | X55: 6137 | Y55: 5363.91 | Z55: 5434 | AA55: 5709.23 | AB55: 6499 | AC55: 5863.36 | AD55: 6600 | AE55: 6698.28 | AF55: 7885 | AG55: 7887.34 | AH55: 8458 | AI55: 7282.19 | AJ55: 7211 | AK55: 7014.88 | AL55: 5634 | AM55: 6684.68 | AN55: 3742 | AO55: 3167.22 | AP55: 2234 | AQ55: 2150.71 | AR55: 2725 | AS55: 2416.57 | AT55: 2884 | AU55: 2684.26 | AV55: 2559 | AW55: 2375.36 | AX55: 2487 | AY55: 2412.08 | AZ55: 2309 | BA55: 2281.46 | BB55: 3631 | BC55: 3076.69 | BD55: 4287 | BE55: 4181.11 | BF55: 4506 | BG55: 3767.37 | BH55: 4291 | BI55: 3742.93 | BJ55: 4103 | BK55: 3582.99 | BL55: 3316 | BM55: 3003.64 | BN55: 3454 | BO55: 3118.34 | BP55: 3514 | BQ55: 3269.2
A56: MUNICIPIO DE PORTO ALEGRE | B56: 92.963.560/0001-60 | C56: PODER PUBLICO | D56: TRIFÁSICO | E56: RUA MERCADO PUBLICO, 15 - BL S | F56: CENTRO | G56: 68909403 | H56: 7375 | I56: 6245.37 | J56: 5385 | K56: 4793.77 | L56: 4803 | M56: 4161.36 | N56: 4473 | O56: 3813.86 | P56: 5007 | Q56: 4205.28 | R56: 4501 | S56: 3794.7 | T56: 5900 | U56: 5021 | V56: 7021 | W56: 5972.22 | X56: 6687 | Y56: 5905.36 | Z56: 6415 | AA56: 5748.66 | AB56: 5569 | AC56: 4697.79 | AD56: 5554 | AE56: 4739.14 | AF56: 6458 | AG56: 5330.9 | AH56: 6114 | AI56: 5147.94 | AJ56: 5726 | AK56: 4533.8 | AL56: 6078 | AM56: 5005.86 | AN56: 6124 | AO56: 4866.17 | AP56: 5591 | AQ56: 4294.25 | AR56: 6217 | AS56: 4770.86 | AT56: 5634 | AU56: 4374.46 | AV56: 6056 | AW56: 4688.98 | AX56: 5301 | AY56: 4239.84 | AZ56: 5283 | BA56: 4202.16 | BB56: 5353 | BC56: 4453.58 | BD56: 5300 | BE56: 5038.34 | BF56: 5234 | BG56: 4476.77 | BH56: 4953 | BI56: 4485.65 | BJ56: 5904 | BK56: 5149.22 | BL56: 5244 | BM56: 4496.07 | BN56: 5071 | BO56: 4539.41 | BP56: 4865 | BQ56: 4373.51
A57: MUNICIPIO DE PORTO ALEGRE | B57: 92.963.560/0001-60 | C57: PODER PUBLICO | D57: TRIFÁSICO | E57: RUA JOSE LUIZ MARTINS COSTA, 300 | F57: RUBEM BERTA-WENC. FONTOURA | G57: 33148538 | H57: 7360 | I57: 5822.76 | J57: 5102 | K57: 4576.31 | L57: 3728 | M57: 3663.48 | N57: 7235 | O57: 5916.99 | P57: 8042 | Q57: 6062.38 | R57: 7507 | S57: 6120.08 | T57: 6813 | U57: 5633.46 | V57: 7408 | W57: 6217.12 | X57: 7184 | Y57: 6229.9 | Z57: 6942 | AA57: 6052.7 | AB57: 6694 | AC57: 5530.37 | AD57: 6574 | AE57: 5138.69 | AF57: 5795 | AG57: 4771.53 | AH57: 5817 | AI57: 4958.1 | AJ57: 6777 | AK57: 5991.44 | AL57: 5098 | AM57: 4660.33 | AN57: 3080 | AO57: 3126.9 | AP57: 3225 | AQ57: 3121.08 | AR57: 2977 | AS57: 2976.28 | AT57: 3527 | AU57: 3324.64 | AV57: 3150 | AW57: 2995.63 | AX57: 3879 | AY57: 3505.23 | AZ57: 2503 | BA57: 2626.14 | BB57: 4585 | BC57: 3925.02 | BD57: 4125 | BE57: 4408.91 | BF57: 2703 | BG57: 2896.7 | BH57: 2071 | BI57: 2685.34 | BJ57: 2777 | BK57: 3060.37 | BL57: 2665 | BM57: 2892.79 | BN57: 3997 | BO57: 3743.68 | BP57: 4520 | BQ57: 4157.88
A58: MUNICIPIO DE PORTO ALEGRE | B58: 92.963.560/0001-60 | C58: PODER PUBLICO | D58: TRIFÁSICO | E58: AV DEPUTADO ADAO PRETTO, 1121 | F58: LOMBA DO PINHEIRO | G58: 31381936 | H58: 7264 | I58: 6360.27 | J58: 7294 | K58: 6042.69 | L58: 3562 | M58: 3892.59 | N58: 6756 | O58: 6030.68 | P58: 6916 | Q58: 6428.68 | R58: 7867 | S58: 7142.45 | T58: 5618 | U58: 4823.43 | V58: 7040 | W58: 6564.09 | X58: 7526 | Y58: 7007.35 | Z58: 6978 | AA58: 6848.34 | AB58: 7870 | AC58: 7110.27 | AD58: 7084 | AE58: 6134.81 | AF58: 6243 | AG58: 5739.49 | AH58: 5143 | AI58: 4390.09 | AJ58: 5149 | AK58: 4549.88 | AL58: 4510 | AM58: 4517.63 | AN58: 3165 | AO58: 3322.97 | AP58: 2886 | AQ58: 3097.47 | AR58: 3038 | AS58: 3216.86 | AT58: 3564 | AU58: 3596.69 | AV58: 3319 | AW58: 3396.49 | AX58: 3109 | AY58: 3226.22 | AZ58: 2760 | BA58: 2978.22 | BB58: 3482 | BC58: 3454.21 | BD58: 2887 | BE58: 3731.48 | BF58: 2687 | BG58: 3073.59 | BH58: 2417 | BI58: 3161.82 | BJ58: 2977 | BK58: 3527.82 | BL58: 2651 | BM58: 3105.64 | BN58: 3774 | BO58: 3646.41 | BP58: 3974 | BQ58: 3945.46
A59: MUNICIPIO DE PORTO ALEGRE | B59: 92.963.560/0001-60 | C59: PODER PUBLICO | D59: TRIFÁSICO | E59: AV ERICO VERISSIMO, 107 | F59: MENINO DEUS | G59: 14842939 | H59: 7251 | I59: 8274.79 | J59: 6004 | K59: 8372.41 | L59: 4278 | M59: 6580.7 | N59: 6575 | O59: 9139.04 | P59: 7458 | Q59: 9748.18 | R59: 8495 | S59: 10040.47 | T59: 7390 | U59: 9081.7 | V59: 9714 | W59: 11212.9 | X59: 9501 | Y59: 11348.41 | Z59: 9001 | AA59: 11109.87 | AB59: 9710 | AC59: 11069.65 | AD59: 9319 | AE59: 10395.61 | AF59: 7213 | AG59: 0 | AH59: 3143 | AI59: 2664.2 | AJ59: 3265 | AK59: 4811.1 | AL59: 3813 | AM59: 6213.04 | AN59: 1963 | AO59: 4575.74 | AP59: 1552 | AQ59: 4045.43 | AR59: 1809 | AS59: 4325.7 | AT59: 1934 | AU59: 4418.68 | AV59: 1581 | AW59: 4135.24 | AX59: 1551 | AY59: 4289.69 | AZ59: 1731 | BA59: 4539.82 | BB59: 2880 | BC59: 5630.35 | BD59: 4347 | BE59: 6507.7 | BF59: 2924 | BG59: 5208.73 | BH59: 3760 | BI59: 5858.34 | BJ59: 2077 | BK59: 5179.95 | BL59: 1960 | BM59: 4608.07 | BN59: 2853 | BO59: 5047.67 | BP59: 4575 | BQ59: 6553.97
A60: MUNICIPIO DE PORTO ALEGRE | B60: 92.963.560/0001-60 | C60: PODER PUBLICO | D60: TRIFÁSICO | E60: RUA CARLOS SUPPERTI, 84 | F60: VIL NOVA | G60: 29534976 | H60: 7230 | I60: 6275.03 | J60: 7646 | K60: 6553 | L60: 3716 | M60: 3813.9 | N60: 3256 | O60: 3339.89 | P60: 7874 | Q60: 6980.5 | R60: 8708 | S60: 7636.49 | T60: 7101 | U60: 6397.89 | V60: 8288 | W60: 7307 | X60: 8790 | Y60: 8087.2 | Z60: 7297 | AA60: 7241.92 | AB60: 8574 | AC60: 7815.54 | AD60: 8250 | AE60: 6894.67 | AF60: 8394 | AG60: 7140.58 | AH60: 7115 | AI60: 5963.66 | AJ60: 3524 | AK60: 3565.38 | AL60: 6349 | AM60: 5809.76 | AN60: 3379 | AO60: 3553.99 | AP60: 3829 | AQ60: 3756.73 | AR60: 3495 | AS60: 3417.83 | AT60: 4006 | AU60: 3795.74 | AV60: 3712 | AW60: 3616.33 | AX60: 3468 | AY60: 3347.76 | AZ60: 3801 | BA60: 3500.42 | BB60: 3906 | BC60: 3662.77 | BD60: 2924 | BE60: 3560.67 | BF60: 2245 | BG60: 2759.74 | BH60: 2161 | BI60: 2981.92 | BJ60: 2919 | BK60: 3392.62 | BL60: 2424 | BM60: 2805.65 | BN60: 3822 | BO60: 3655.77 | BP60: 4532 | BQ60: 4421.81
A61: MUNICIPIO DE PORTO ALEGRE | B61: 92.963.560/0001-60 | C61: PODER PUBLICO | D61: TRIFÁSICO | E61: RUA DR JOAO PITTA PINHEIRO FILHO, 176 - BL GDSCS-CAMAQUA | F61: CAMAQUA | G61: 71492917 | H61: 7200 | I61: 5822.47 | J61: 8169 | K61: 6556.22 | L61: 5905 | M61: 5023.02 | N61: 4670 | O61: 4163.49 | P61: 4043 | Q61: 3713.56 | R61: 3629 | S61: 3351.08 | T61: 3632 | U61: 3285.26 | V61: 5018 | W61: 4288.55 | X61: 4211 | Y61: 3992.87 | Z61: 3717 | AA61: 3683.51 | AB61: 4001 | AC61: 3732.23 | AD61: 4562 | AE61: 4164.63 | AF61: 6358 | AG61: 5373.06 | AH61: 6933 | AI61: 5900.58 | AJ61: 6016 | AK61: 4605.65 | AL61: 6448 | AM61: 5728.82 | AN61: 3428 | AO61: 3159.94 | AP61: 3379 | AQ61: 3022.68 | AR61: 3926 | AS61: 3329.33 | AT61: 4465 | AU61: 3751.46 | AV61: 3935 | AW61: 3302.82 | AX61: 3328 | AY61: 3023.29 | AZ61: 3233 | BA61: 2921.28 | BB61: 5149 | BC61: 4427.29 | BD61: 6321 | BE61: 6263.94 | BF61: 7098 | BG61: 6423.1 | BH61: 6424 | BI61: 5557.96 | BJ61: 7105 | BK61: 5871.9 | BL61: 5166 | BM61: 4389.31 | BN61: 4282 | BO61: 3782.51 | BP61: 4475 | BQ61: 4070.52
A62: MUNICIPIO DE PORTO ALEGRE | B62: 92.963.560/0001-60 | C62: PODER PUBLICO | D62: TRIFÁSICO | E62: RUA GERALDO TOLLENS LINCK, 611 | F62: ABERTA MORROS-LOT.MORADAS DA HIPICA | G62: 58685529 | H62: 6800 | I62: 5815.63 | J62: 3305 | K62: 2928.65 | L62: 2578 | M62: 2264.81 | N62: 5961 | O62: 5075.91 | P62: 6108 | Q62: 5142.55 | R62: 4995 | S62: 4193.4 | T62: 5148 | U62: 4318.19 | V62: 4333 | W62: 3725.44 | X62: 4833 | Y62: 4274.85 | Z62: 5075 | AA62: 4523.67 | AB62: 5182 | AC62: 4408.81 | AD62: 5240 | AE62: 4374.06 | AF62: 3352 | AG62: 2776.08 | AH62: 2045 | AI62: 1709.09 | AJ62: 4588 | AK62: 3535.98 | AL62: 2660 | AM62: 2271.02 | AN62: 1638 | AO62: 1433.64 | AP62: 1171 | AQ62: 916.45 | AR62: 1112 | AS62: 869.83 | AT62: 1203 | AU62: 969.25 | AV62: 1294 | AW62: 1018.37 | AX62: 1509 | AY62: 1161.41 | AZ62: 1534 | BA62: 1215.56 | BB62: 2998 | BC62: 2561.2 | BD62: 1212 | BE62: 1156.69 | BF62: 914 | BG62: 568.73 | BH62: 1245 | BI62: 1133.37 | BJ62: 1218 | BK62: 1083.88 | BL62: 1859 | BM62: 1582.57 | BN62: 3228 | BO62: 2838.15 | BP62: 3678 | BQ62: 3338.7
A63: MUNICIPIO DE PORTO ALEGRE | B63: 92.963.560/0001-60 | C63: PODER PUBLICO | D63: TRIFÁSICO | E63: RUA ANA AURORA DO AMARAL LISBOA, 60 | F63: PASSO DAS PEDRAS | G63: 26458811 | H63: 6752 | I63: 5737.67 | J63: 5456 | K63: 4782.24 | L63: 4088 | M63: 3501.82 | N63: 6057 | O63: 5226.11 | P63: 6007 | Q63: 4908.45 | R63: 5881 | S63: 5039.21 | T63: 5617 | U63: 4648.52 | V63: 6425 | W63: 5451.71 | X63: 5624 | Y63: 5004.52 | Z63: 5180 | AA63: 4668.29 | AB63: 5904 | AC63: 4975.15 | AD63: 5652 | AE63: 4605.29 | AF63: 4761 | AG63: 3955.96 | AH63: 4607 | AI63: 3916.88 | AJ63: 5089 | AK63: 4126.83 | AL63: 5030 | AM63: 4513.15 | AN63: 3434 | AO63: 3402.23 | AP63: 3059 | AQ63: 2958.21 | AR63: 3413 | AS63: 3227.84 | AT63: 3523 | AU63: 3325.66 | AV63: 2778 | AW63: 2752.58 | AX63: 2897 | AY63: 2829.43 | AZ63: 2466 | BA63: 2522.21 | BB63: 3863 | BC63: 3365.27 | BD63: 3677 | BE63: 4019.01 | BF63: 3033 | BG63: 3128.23 | BH63: 2941 | BI63: 3272.18 | BJ63: 3341 | BK63: 3490.2 | BL63: 2547 | BM63: 2660.17 | BN63: 3731 | BO63: 3424.74 | BP63: 3781 | BQ63: 3515.74
A64: MUNICIPIO DE PORTO ALEGRE | B64: 92.963.560/0001-60 | C64: PODER PUBLICO | D64: TRIFÁSICO | E64: AV ENG LUDOLFO BOEHL, 1406 | F64: TERESOPOLIS / CASCATA | G64: 14029375 | H64: 6741 | I64: 5662.92 | J64: 3895 | K64: 3771.37 | L64: 8590 | M64: 7733.83 | N64: 6445 | O64: 5750.39 | P64: 7520 | Q64: 6555.88 | R64: 7338 | S64: 6392.62 | T64: 7290 | U64: 6281.12 | V64: 7199 | W64: 6302.6 | X64: 7683 | Y64: 6886.98 | Z64: 6927 | AA64: 6246.47 | AB64: 7111 | AC64: 6259.11 | AD64: 7076 | AE64: 5957.12 | AF64: 6198 | AG64: 5225.63 | AH64: 4202 | AI64: 3866.18 | AJ64: 6193 | AK64: 4995.74 | AL64: 3059 | AM64: 3160.13 | AN64: 2666 | AO64: 2820.31 | AP64: 2606 | AQ64: 2633.68 | AR64: 1990 | AS64: 2259.8 | AT64: 2085 | AU64: 2435.91 | AV64: 2101 | AW64: 2397.85 | AX64: 2860 | AY64: 2757.23 | AZ64: 1725 | BA64: 2152.09 | BB64: 2972 | BC64: 3265.12 | BD64: 2983 | BE64: 3658.52 | BF64: 2449 | BG64: 2764.61 | BH64: 1922 | BI64: 2574.37 | BJ64: 2073 | BK64: 2700.95 | BL64: 1956 | BM64: 2366.32 | BN64: 3197 | BO64: 3085.54 | BP64: 3307 | BQ64: 3427.61
A65: MUNICIPIO DE PORTO ALEGRE | B65: 92.963.560/0001-60 | C65: PODER PUBLICO | D65: TRIFÁSICO | E65: RUA GEN LIMA E SILVA, 972 | F65: CIDADE BAIXA | G65: 24275735 | H65: 6606 | I65: 5596.26 | J65: 9062 | K65: 7804.5 | L65: 7204 | M65: 6380.01 | N65: 5740 | O65: 4888.46 | P65: 5105 | Q65: 4275.38 | R65: 3394 | S65: 2873.47 | T65: 3601 | U65: 3002.56 | V65: 5034 | W65: 4260 | X65: 4592 | Y65: 4062.89 | Z65: 3808 | AA65: 3421.04 | AB65: 3719 | AC65: 3120.89 | AD65: 5141 | AE65: 4443.75 | AF65: 6313 | AG65: 2090.82 | AH65: 6937 | AI65: 5735.24 | AJ65: 5946 | AK65: 4707.22 | AL65: 4584 | AM65: 3780.3 | AN65: 2142 | AO65: 1715.1 | AP65: 1639 | AQ65: 1349.52 | AR65: 1819 | AS65: 1410.08 | AT65: 2429 | AU65: 1885.94 | AV65: 2262 | AW65: 1764.52 | AX65: 2198 | AY65: 1770.26 | AZ65: 2444 | BA65: 1955.24 | BB65: 2746 | BC65: 2237.79 | BD65: 3188 | BE65: 3052.89 | BF65: 6400 | BG65: 5468.88 | BH65: 5550 | BI65: 4851.58 | BJ65: 5915 | BK65: 5045.19 | BL65: 4969 | BM65: 4137.91 | BN65: 4152 | BO65: 3605.49 | BP65: 5284 | BQ65: 4701.99
A66: MUNICIPIO DE PORTO ALEGRE | B66: 92.963.560/0001-60 | C66: PODER PUBLICO | D66: TRIFÁSICO | E66: RUA ABOLICAO, 500 | F66: RESTINGA-RESTINGA VELHA | G66: 24575640 | H66: 6589 | I66: 5810.66 | J66: 6468 | K66: 6083.53 | L66: 3465 | M66: 3524.86 | N66: 5812 | O66: 5327.08 | P66: 7020 | Q66: 6093.51 | R66: 6675 | S66: 6016.24 | T66: 6242 | U66: 5579.67 | V66: 6538 | W66: 5917.31 | X66: 6670 | Y66: 6197.78 | Z66: 6185 | AA66: 6101.16 | AB66: 6873 | AC66: 6173.93 | AD66: 6856 | AE66: 5989.41 | AF66: 6256 | AG66: 5600.87 | AH66: 5330 | AI66: 4926.85 | AJ66: 3653 | AK66: 3672.09 | AL66: 3180 | AM66: 3465.49 | AN66: 1859 | AO66: 2374.27 | AP66: 1682 | AQ66: 2191.12 | AR66: 2084 | AS66: 2380.06 | AT66: 1975 | AU66: 2363.14 | AV66: 2173 | AW66: 2629.46 | AX66: 2618 | AY66: 2830.56 | AZ66: 2037 | BA66: 2441.94 | BB66: 4505 | BC66: 4084.38 | BD66: 3609 | BE66: 4367.62 | BF66: 3214 | BG66: 3506 | BH66: 3387 | BI66: 3753.71 | BJ66: 3332 | BK66: 3728.84 | BL66: 3078 | BM66: 3301.88 | BN66: 4166 | BO66: 4000.59 | BP66: 4604 | BQ66: 4620.74
A67: MUNICIPIO DE PORTO ALEGRE | B67: 92.963.560/0001-60 | C67: PODER PUBLICO | D67: TRIFÁSICO | E67: AV SANTO DIAS DA SILVA, 450 | F67: LOMBA DO PINHEIRO | G67: 24559750 | H67: 6533 | I67: 5903.1 | J67: 4564 | K67: 4271.04 | L67: 2734 | M67: 2629.43 | N67: 6559 | O67: 6193.77 | P67: 7541 | Q67: 6916.17 | R67: 7396 | S67: 6804.98 | T67: 6751 | U67: 6289.4 | V67: 6902 | W67: 6407.8 | X67: 6805 | Y67: 6752.74 | Z67: 6072 | AA67: 6266.93 | AB67: 6822 | AC67: 6369.16 | AD67: 6126 | AE67: 5829 | AF67: 4945 | AG67: 4705.05 | AH67: 3282 | AI67: 3233.37 | AJ67: 4541 | AK67: 4193.53 | AL67: 3548 | AM67: 3843.17 | AN67: 2484 | AO67: 2826.63 | AP67: 2366 | AQ67: 2696.48 | AR67: 2450 | AS67: 2729.07 | AT67: 1867 | AU67: 2309.18 | AV67: 2125 | AW67: 2445.94 | AX67: 1953 | AY67: 2419.49 | AZ67: 1554 | BA67: 2102.02 | BB67: 2418 | BC67: 2711.78 | BD67: 2062 | BE67: 2980.8 | BF67: 2072 | BG67: 2663.82 | BH67: 2212 | BI67: 2961.77 | BJ67: 2242 | BK67: 2882.32 | BL67: 2699 | BM67: 3047.16 | BN67: 3689 | BO67: 3611.61 | BP67: 4301 | BQ67: 4294.67
A68: MUNICIPIO DE PORTO ALEGRE | B68: 92.963.560/0001-60 | C68: PODER PUBLICO | D68: TRIFÁSICO | E68: AV PRES FRANKLIN ROOSEVELT, 5 - BL GDNHNI-NAVEGANT | F68: NAVEGANTES / SAO GERALDO | G68: 71590226 | H68: 6499 | I68: 5363.75 | J68: 7491 | K68: 6221.98 | L68: 4466 | M68: 3851.4 | N68: 4582 | O68: 4503.11 | P68: 3335 | Q68: 3141.56 | R68: 3006 | S68: 2883.47 | T68: 3609 | U68: 3249.42 | V68: 3174 | W68: 3106.09 | X68: 2905 | Y68: 2957.64 | Z68: 2928 | AA68: 2932.19 | AB68: 3620 | AC68: 3757.74 | AD68: 4695 | AE68: 4300.11 | AF68: 6149 | AG68: 4604.55 | AH68: 6096 | AI68: 4756 | AJ68: 5381 | AK68: 3971.56 | AL68: 3853 | AM68: 3347.73 | AN68: 2928 | AO68: 2748.25 | AP68: 3241 | AQ68: 2810.15 | AR68: 4220 | AS68: 3378.16 | AT68: 3413 | AU68: 2985.7 | AV68: 2531 | AW68: 2483.54 | AX68: 2832 | AY68: 2707.37 | AZ68: 1574 | BA68: 1939.91 | BB68: 4672 | BC68: 3807.85 | BD68: 6034 | BE68: 6075.26 | BF68: 7304 | BG68: 6457.01 | BH68: 6893 | BI68: 6107.43 | BJ68: 7762 | BK68: 6348.96 | BL68: 5150 | BM68: 4315.13 | BN68: 3015 | BO68: 3109 | BP68: 3320 | BQ68: 4400.34
A69: MUNICIPIO DE PORTO ALEGRE | B69: 92.963.560/0001-60 | C69: PODER PUBLICO | D69: TRIFÁSICO | E69: RUA FRANCISCO MATOS TERRES, 40 | F69: ABERTA MORROS | G69: 27487199 | H69: 6419 | I69: 5691.71 | J69: 4451 | K69: 4095.45 | L69: 2710 | M69: 2942.09 | N69: 5850 | O69: 5291.43 | P69: 7357 | Q69: 6301.23 | R69: 7243 | S69: 6247.74 | T69: 5963 | U69: 5453.8 | V69: 5946 | W69: 5325.42 | X69: 6776 | Y69: 6113.72 | Z69: 5936 | AA69: 5725.77 | AB69: 7023 | AC69: 6203.29 | AD69: 6085 | AE69: 5411.62 | AF69: 6053 | AG69: 5168.74 | AH69: 3226 | AI69: 3353.52 | AJ69: 5044 | AK69: 4362.07 | AL69: 3790 | AM69: 3792.2 | AN69: 2856 | AO69: 2906.45 | AP69: 2274 | AQ69: 2485.19 | AR69: 2221 | AS69: 2506.8 | AT69: 2251 | AU69: 2531.47 | AV69: 1991 | AW69: 2266.61 | AX69: 2242 | AY69: 2532.16 | AZ69: 1626 | BA69: 2072.39 | BB69: 2335 | BC69: 2549.51 | BD69: 2638 | BE69: 3393.13 | BF69: 2470 | BG69: 2858.32 | BH69: 1888 | BI69: 2659.23 | BJ69: 2455 | BK69: 2943.73 | BL69: 1876 | BM69: 2408.38 | BN69: 2857 | BO69: 2930.14 | BP69: 3851 | BQ69: 3801.95
A70: MUNICIPIO DE PORTO ALEGRE | B70: 92.963.560/0001-60 | C70: PODER PUBLICO | D70: TRIFÁSICO | E70: RUA PEDRO RAIMUNDO, 115 | F70: CRUZAMENTO JUCA BAT C/ EST CHAPEU DO SOL | G70: 35874627 | H70: 6347 | I70: 5377.61 | J70: 4167 | K70: 3696.97 | L70: 2964 | M70: 2686.51 | N70: 6593 | O70: 5611.93 | P70: 7004 | Q70: 5934.86 | R70: 6881 | S70: 5733.37 | T70: 7412 | U70: 6266.63 | V70: 6378 | W70: 5557.49 | X70: 5943 | Y70: 5186.2 | Z70: 5740 | AA70: 5025.52 | AB70: 6148 | AC70: 5427.2 | AD70: 5739 | AE70: 4614.11 | AF70: 4287 | AG70: 3546.21 | AH70: 3064 | AI70: 2607.21 | AJ70: 5109 | AK70: 4121.48 | AL70: 2081 | AM70: 1730.5 | AN70: 1951 | AO70: 1563.96 | AP70: 2229 | AQ70: 1724.07 | AR70: 2069 | AS70: 1601.13 | AT70: 1973 | AU70: 1545.53 | AV70: 2155 | AW70: 1682.06 | AX70: 2341 | AY70: 1884.06 | AZ70: 2710 | BA70: 2209.22 | BB70: 2727 | BC70: 2486.9 | BD70: 2261 | BE70: 2116.09 | BF70: 2119 | BG70: 1868.07 | BH70: 2667 | BI70: 2327.98 | BJ70: 2422 | BK70: 2181.9 | BL70: 3114 | BM70: 2656.13 | BN70: 3517 | BO70: 3132.25 | BP70: 3303 | BQ70: 3058.77
A71: MUNICIPIO DE PORTO ALEGRE | B71: 92.963.560/0001-60 | C71: PODER PUBLICO | D71: TRIFÁSICO | E71: AV VILA SANTISSIMA TRINDADE, 121 | F71: CONJ. HABITACIONAL PORTO NOVO | G71: 64961176 | H71: 6324 | I71: 5358.21 | J71: 3759 | K71: 3354.42 | L71: 4070 | M71: 3294.19 | N71: 6319 | O71: 5379.54 | P71: 4769 | Q71: 4031.04 | R71: 5378 | S71: 4499.7 | T71: 5611 | U71: 4729.96 | V71: 5080 | W71: 4393.52 | X71: 5348 | Y71: 4727.77 | Z71: 5707 | AA71: 5044.49 | AB71: 6214 | AC71: 5331.12 | AD71: 5899 | AE71: 4796.17 | AF71: 5459 | AG71: 4509.64 | AH71: 3540 | AI71: 2904.52 | AJ71: 5107 | AK71: 4045.86 | AL71: 4546 | AM71: 3854.96 | AN71: 4098 | AO71: 3440.45 | AP71: 3309 | AQ71: 2730.62 | AR71: 3260 | AS71: 2655.27 | AT71: 3587 | AU71: 2847.83 | AV71: 3053 | AW71: 2374.23 | AX71: 2891 | AY71: 2321.8 | AZ71: 3016 | BA71: 2407.95 | BB71: 2922 | BC71: 2599.72 | BD71: 2891 | BE71: 2678.1 | BF71: 3555 | BG71: 3048.16 | BH71: 2074 | BI71: 1882.02 | BJ71: 2276 | BK71: 2018.63 | BL71: 4064 | BM71: 3465.26 | BN71: 4236 | BO71: 3745.81 | BP71: 4585 | BQ71: 4203.31
A72: MUNICIPIO DE PORTO ALEGRE | B72: 92.963.560/0001-60 | C72: PODER PUBLICO | D72: TRIFÁSICO | E72: RUA SANTA TEREZINHA, 572 | F72: FARROUPILHA | G72: 61650943 | H72: 6111 | I72: 5178.42 | J72: 4896 | K72: 4225.82 | L72: 880 | M72: 766.89 | N72: 5234 | O72: 4459.32 | P72: 5061 | Q72: 4259.22 | R72: 5126 | S72: 4307.24 | T72: 4709 | U72: 3845.17 | V72: 4104 | W72: 3512.03 | X72: 4576 | Y72: 4016.88 | Z72: 4428 | AA72: 3955.44 | AB72: 4935 | AC72: 4282.42 | AD72: 5639 | AE72: 4677.94 | AF72: 5874 | AG72: 4850.81 | AH72: 2920 | AI72: 2469.62 | AJ72: 6187 | AK72: 4857.46 | AL72: 4899 | AM72: 4092.2 | AN72: 4872 | AO72: 3875.44 | AP72: 4856 | AQ72: 3819.55 | AR72: 100 | AS72: 175.77 | AT72: 0 | AU72: 98.22 | AV72: 4107 | AW72: 3188.7 | AX72: 4068 | AY72: 3258.54 | AZ72: 0 | BA72: 165.55 | BB72: 0 | BC72: 111.48 | BD72: 3157 | BE72: 2975.59 | BF72: 0 | BG72: 108.39 | BH72: 2687 | BI72: 2433.28 | BJ72: 2396 | BK72: 2057.52 | BL72: 0 | BM72: 108.69 | BN72: 0 | BO72: 114 | BP72: 1376 | BQ72: 1267.4
A73: MUNICIPIO DE PORTO ALEGRE | B73: 92.963.560/0001-60 | C73: PODER PUBLICO | D73: TRIFÁSICO | E73: RUA SANTA TERESA, 541 - BL A | F73: SAO JOSE | G73: 30421861 | H73: 5724 | I73: 4851.74 | J73: 3929 | K73: 3409.13 | L73: 3127 | M73: 2620.78 | N73: 5886 | O73: 5012.29 | P73: 5362 | Q73: 4539.07 | R73: 5099 | S73: 4257.26 | T73: 5285 | U73: 4468.4 | V73: 4322 | W73: 3768.47 | X73: 4858 | Y73: 4296.84 | Z73: 4968 | AA73: 4371.62 | AB73: 4097 | AC73: 3106.23 | AD73: 3616 | AE73: 2923.38 | AF73: 3355 | AG73: 2780.04 | AH73: 1820 | AI73: 1354.74 | AJ73: 3501 | AK73: 2775.12 | AL73: 1636 | AM73: 1362.09 | AN73: 756 | AO73: 618.32 | AP73: 1629 | AQ73: 1265.41 | AR73: 2021 | AS73: 1564.45 | AT73: 1096 | AU73: 867.85 | AV73: 1345 | AW73: 1057.66 | AX73: 1285 | AY73: 876.98 | AZ73: 1357 | BA73: 1094.93 | BB73: 1555 | BC73: 1415.17 | BD73: 758 | BE73: 713.29 | BF73: 887 | BG73: 773.43 | BH73: 1530 | BI73: 1368.81 | BJ73: 1418 | BK73: 1244.54 | BL73: 1366 | BM73: 1187.33 | BN73: 1314 | BO73: 1183.98 | BP73: 1183 | BQ73: 1112.44
A74: MUNICIPIO DE PORTO ALEGRE | B74: 92.963.560/0001-60 | C74: PODER PUBLICO | D74: TRIFÁSICO | E74: RUA MANOEL FARIA ROSA PRIMO, 940 | F74: RESTINGA | G74: 24574431 | H74: 5696 | I74: 5033.21 | J74: 5675 | K74: 5245.13 | L74: 2766 | M74: 2946.19 | N74: 3116 | O74: 3380.56 | P74: 5392 | Q74: 4826.16 | R74: 6100 | S74: 5485.17 | T74: 5646 | U74: 5108.76 | V74: 6061 | W74: 5463.56 | X74: 6118 | Y74: 5749.06 | Z74: 5819 | AA74: 5517.88 | AB74: 6226 | AC74: 5542.52 | AD74: 5703 | AE74: 5174.14 | AF74: 5552 | AG74: 4923.5 | AH74: 4163 | AI74: 3923.12 | AJ74: 4195 | AK74: 3769.11 | AL74: 3904 | AM74: 3819 | AN74: 2762 | AO74: 2913.08 | AP74: 2792 | AQ74: 2771.21 | AR74: 3023 | AS74: 3014.4 | AT74: 2754 | AU74: 2861.44 | AV74: 2042 | AW74: 2213.25 | AX74: 1912 | AY74: 2203.11 | AZ74: 1162 | BA74: 1670.08 | BB74: 3046 | BC74: 2922.07 | BD74: 2774 | BE74: 3339.64 | BF74: 2277 | BG74: 2548.4 | BH74: 1875 | BI74: 2450.88 | BJ74: 2002 | BK74: 2167.02 | BL74: 2843 | BM74: 3213.33 | BN74: 3661 | BO74: 3450.49 | BP74: 3791 | BQ74: 3842.06
A75: MUNICIPIO DE PORTO ALEGRE | B75: 92.963.560/0001-60 | C75: PODER PUBLICO | D75: TRIFÁSICO | E75: RUA GOVERNADOR PERACCHI BARCELLOS, 4610 | F75: VIL.NOVA RESTINGA | G75: 65693337 | H75: 5662 | I75: 12045.57 | J75: 5924 | K75: 12834.56 | L75: 5577 | M75: 12475.94 | N75: 5486 | O75: 12278.24 | P75: 9524 | Q75: 14954.01 | R75: 15432 | S75: 17984.76 | T75: 14807 | U75: 17666.95 | V75: 7345 | W75: 13432.79 | X75: 6237 | Y75: 12803.12 | Z75: 5716 | AA75: 11968.22 | AB75: 5949 | AC75: 12144.53 | AD75: 5189 | AE75: 12139.34 | AF75: 6548 | AG75: 13806.53 | AH75: 6486 | AI75: 13559.3 | AJ75: 5716 | AK75: 12678.03 | AL75: 6836 | AM75: 14289.55 | AN75: 6345 | AO75: 13237.97 | AP75: 5138 | AQ75: 12012.56 | AR75: 7090 | AS75: 13137.89 | AT75: 5708 | AU75: 12534.22 | AV75: 5227 | AW75: 10678.68 | AX75: 3945 | AY75: 11336.52 | AZ75: 5850 | BA75: 11118.21 | BB75: 5192 | BC75: 12718.94 | BD75: 8130 | BE75: 17061.76 | BF75: 5976 | BG75: 13067.93 | BH75: 5928 | BI75: 15139.33 | BJ75: 5945 | BK75: 14708.63 | BL75: 14867 | BM75: 18768.74 | BN75: 0 | BO75: 9503.48 | BP75: 14772 | BQ75: 18975.72
A76: MUNICIPIO DE PORTO ALEGRE | B76: 92.963.560/0001-60 | C76: PODER PUBLICO | D76: TRIFÁSICO | E76: RUA PAULO MENDES DA COSTA, 60 | F76: LOT. TIMBAUVA | G76: 38100509 | H76: 5584 | I76: 0 | J76: 3562 | K76: 0 | L76: 3569 | M76: 227.16 | N76: 4568 | O76: 3874.35 | P76: 4906 | Q76: 4078.84 | R76: 4223 | S76: 3521.7 | T76: 5012 | U76: 4401.65 | V76: 4601 | W76: 3951.33 | X76: 4866 | Y76: 4268.75 | Z76: 5070 | AA76: 4496.25 | AB76: 5151 | AC76: 4484.91 | AD76: 4685 | AE76: 3759.47 | AF76: 4382 | AG76: 3660.41 | AH76: 3032 | AI76: 1685.95 | AJ76: 4440 | AK76: 3525.76 | AL76: 2396 | AM76: 2080.67 | AN76: 2210 | AO76: 1870.15 | AP76: 2696 | AQ76: 2290.92 | AR76: 2449 | AS76: 1977.82 | AT76: 2542 | AU76: 2138.45 | AV76: 2481 | AW76: 2190.24 | AX76: 2866 | AY76: 2337.91 | AZ76: 2658 | BA76: 2199.63 | BB76: 2707 | BC76: 2535.5 | BD76: 2860 | BE76: 2867.16 | BF76: 2728 | BG76: 2461.27 | BH76: 2647 | BI76: 2541.66 | BJ76: 2534 | BK76: 2288.72 | BL76: 3246 | BM76: 2824.03 | BN76: 3496 | BO76: 3090.75 | BP76: 3827 | BQ76: 3502.29
A77: MUNICIPIO DE PORTO ALEGRE | B77: 92.963.560/0001-60 | C77: PODER PUBLICO | D77: TRIFÁSICO | E77: RUA JACOB ISAKE ZYLBERSZTEIN, 150 | F77: STA TERESA-CR RODOVIARIO | G77: 13540998 | H77: 5512 | I77: 4680.4 | J77: 4658 | K77: 4248.16 | L77: 5197 | M77: 4706.24 | N77: 4886 | O77: 4459.32 | P77: 2882 | Q77: 2920.17 | R77: 5348 | S77: 4484.66 | T77: 5019 | U77: 4543.92 | V77: 5124 | W77: 4618.76 | X77: 5449 | Y77: 5073.64 | Z77: 4749 | AA77: 4518.73 | AB77: 5543 | AC77: 5041.31 | AD77: 5714 | AE77: 4876.17 | AF77: 5054 | AG77: 4478.03 | AH77: 3019 | AI77: 2473.52 | AJ77: 5014 | AK77: 4318.1 | AL77: 1826 | AM77: 2184.83 | AN77: 1313 | AO77: 1850.94 | AP77: 1426 | AQ77: 1820.18 | AR77: 1566 | AS77: 1864.46 | AT77: 1551 | AU77: 1914.17 | AV77: 1379 | AW77: 1780.2 | AX77: 2252 | AY77: 2347.61 | AZ77: 1226 | BA77: 1653.58 | BB77: 3192 | BC77: 3294.37 | BD77: 2414 | BE77: 3094.63 | BF77: 1628 | BG77: 1443.23 | BH77: 1466 | BI77: 2188.6 | BJ77: 1965 | BK77: 2393.31 | BL77: 1601 | BM77: 2068.81 | BN77: 3208 | BO77: 3056.9 | BP77: 3338 | BQ77: 3587.85
A78: MUNICIPIO DE PORTO ALEGRE | B78: 92.963.560/0001-60 | C78: PODER PUBLICO | D78: TRIFÁSICO | E78: RUA CHICO PEDRO, 390 | F78: CAMAQUA | G78: 24183539 | H78: 5459 | I78: 4671.96 | J78: 3201 | K78: 2823.91 | L78: 2656 | M78: 2327.11 | N78: 4476 | O78: 3816.42 | P78: 4919 | Q78: 4155.28 | R78: 4280 | S78: 3589.33 | T78: 4708 | U78: 3965.23 | V78: 4272 | W78: 3693.28 | X78: 4418 | Y78: 3909.89 | Z78: 4680 | AA78: 4152.09 | AB78: 4408 | AC78: 3783.57 | AD78: 4617 | AE78: 3773.62 | AF78: 3189 | AG78: 2643.59 | AH78: 1727 | AI78: 1436.15 | AJ78: 4401 | AK78: 3509.83 | AL78: 1364 | AM78: 1170.37 | AN78: 813 | AO78: 742.57 | AP78: 877 | AQ78: 789.13 | AR78: 843 | AS78: 769.17 | AT78: 907 | AU78: 813.74 | AV78: 2193 | AW78: 1761.41 | AX78: 3111 | AY78: 2552.11 | AZ78: 2379 | BA78: 1989.89 | BB78: 1575 | BC78: 1397.88 | BD78: 1208 | BE78: 1141.54 | BF78: 1246 | BG78: 1083.48 | BH78: 1416 | BI78: 1280.24 | BJ78: 1124 | BK78: 1000.7 | BL78: 1752 | BM78: 1531.91 | BN78: 3146 | BO78: 2782.52 | BP78: 3921 | BQ78: 3638.25
A79: MUNICIPIO DE PORTO ALEGRE | B79: 92.963.560/0001-60 | C79: PODER PUBLICO | D79: TRIFÁSICO | E79: AV CARLOS GOMES, 913 | F79: AUXILIADORA | G79: 43708129 | H79: 5432 | I79: 4993.43 | J79: 5706 | K79: 5445.59 | L79: 5419 | M79: 5121.89 | N79: 4944 | O79: 4862.9 | P79: 5762 | Q79: 5339.06 | R79: 5876 | S79: 5480.5 | T79: 6127 | U79: 5551.82 | V79: 7493 | W79: 6781.29 | X79: 6402 | Y79: 6198.35 | Z79: 5892 | AA79: 5759.84 | AB79: 5501 | AC79: 5297.56 | AD79: 4738 | AE79: 4426.37 | AF79: 5283 | AG79: 4836.01 | AH79: 5073 | AI79: 4800.47 | AJ79: 5793 | AK79: 5037.69 | AL79: 5129 | AM79: 4927.06 | AN79: 5950 | AO79: 5317.25 | AP79: 6275 | AQ79: 5274.8 | AR79: 6113 | AS79: 5261.68 | AT79: 6166 | AU79: 5564.28 | AV79: 6187 | AW79: 5257.66 | AX79: 5459 | AY79: 5025.12 | AZ79: 2805 | BA79: 2902.57 | BB79: 4712 | BC79: 4868.15 | BD79: 4670 | BE79: 5269.21 | BF79: 5039 | BG79: 4873.64 | BH79: 4660 | BI79: 4708.86 | BJ79: 5510 | BK79: 5452.79 | BL79: 5536 | BM79: 5205.27 | BN79: 5802 | BO79: 5508.41 | BP79: 5747 | BQ79: 5659.53
A80: MUNICIPIO DE PORTO ALEGRE | B80: 92.963.560/0001-60 | C80: PODER PUBLICO | D80: TRIFÁSICO | E80: BEC IMPERIO, 75 | F80: VIL NOVA | G80: 33285403 | H80: 5385 | I80: 4565.59 | J80: 4801 | K80: 4005.19 | L80: 2388 | M80: 2079.08 | N80: 4740 | O80: 4040.3 | P80: 4917 | Q80: 4138.66 | R80: 4762 | S80: 4002.8 | T80: 4117 | U80: 3454.7 | V80: 3604 | W80: 3092.7 | X80: 4236 | Y80: 3749.82 | Z80: 4395 | AA80: 3997.92 | AB80: 4554 | AC80: 3871.85 | AD80: 4709 | AE80: 3947.76 | AF80: 4416 | AG80: 3652.26 | AH80: 4303 | AI80: 3700.29 | AJ80: 3126 | AK80: 2484.25 | AL80: 4323 | AM80: 3646.26 | AN80: 4289 | AO80: 3414.07 | AP80: 4236 | AQ80: 3258.38 | AR80: 4192 | AS80: 3291.51 | AT80: 100 | AU80: 98.22 | AV80: 100 | AW80: 168.61 | AX80: 100 | AY80: 0 | AZ80: 100 | BA80: 0 | BB80: 2833 | BC80: 2220.19 | BD80: 871 | BE80: 844.13 | BF80: 1747 | BG80: 1357.66 | BH80: 2228 | BI80: 1982.12 | BJ80: 2526 | BK80: 2167.9 | BL80: 2759 | BM80: 2330.65 | BN80: 3194 | BO80: 2802.09 | BP80: 3789 | BQ80: 3418.83
A81: MUNICIPIO DE PORTO ALEGRE | B81: 92.963.560/0001-60 | C81: PODER PUBLICO | D81: TRIFÁSICO | E81: RUA SAUL CONSTANTINO, 1 | F81: SAO JOSE | G81: 42130620 | H81: 5383 | I81: 4563.91 | J81: 3554 | K81: 3180.58 | L81: 2268 | M81: 1975.63 | N81: 5224 | O81: 4450.81 | P81: 5161 | Q81: 4376.32 | R81: 4828 | S81: 4032.07 | T81: 5637 | U81: 4764.57 | V81: 4988 | W81: 4345.43 | X81: 4748 | Y81: 4195.95 | Z81: 4996 | AA81: 4396.12 | AB81: 4496 | AC81: 3986.55 | AD81: 5153 | AE81: 4156.6 | AF81: 4276 | AG81: 3467.57 | AH81: 2383 | AI81: 1767.95 | AJ81: 3483 | AK81: 2837.17 | AL81: 1588 | AM81: 1322.7 | AN81: 1418 | AO81: 1142.17 | AP81: 1653 | AQ81: 1283.75 | AR81: 1512 | AS81: 1175.49 | AT81: 1342 | AU81: 1057.94 | AV81: 2063 | AW81: 1611.13 | AX81: 2113 | AY81: 1642.14 | AZ81: 2341 | BA81: 1865.28 | BB81: 2046 | BC81: 1853.52 | BD81: 1405 | BE81: 1302.21 | BF81: 1329 | BG81: 1154.1 | BH81: 1785 | BI81: 1626.07 | BJ81: 1509 | BK81: 1304.44 | BL81: 2576 | BM81: 2216.61 | BN81: 3908 | BO81: 3468.17 | BP81: 3690 | BQ81: 3407.75
A82: MUNICIPIO DE PORTO ALEGRE | B82: 92.963.560/0001-60 | C82: PODER PUBLICO | D82: TRIFÁSICO | E82: RUA DR MARINO ABRAHAO, 230 | F82: PASSO DAS PEDRAS | G82: 24537802 | H82: 5353 | I82: 4334.79 | J82: 4634 | K82: 4072.86 | L82: 2844 | M82: 2892.5 | N82: 922 | O82: 1450.49 | P82: 5482 | Q82: 4490.66 | R82: 5111 | S82: 4315.69 | T82: 4837 | U82: 4147.32 | V82: 5040 | W82: 4260.09 | X82: 6219 | Y82: 5297.99 | Z82: 4895 | AA82: 4303.16 | AB82: 5342 | AC82: 4442.77 | AD82: 5345 | AE82: 4311.26 | AF82: 4421 | AG82: 3679.19 | AH82: 5645 | AI82: 4474.17 | AJ82: 4963 | AK82: 4094.69 | AL82: 4457 | AM82: 3902.18 | AN82: 4038 | AO82: 3648.74 | AP82: 2726 | AQ82: 2617.64 | AR82: 2445 | AS82: 2445.73 | AT82: 2935 | AU82: 2758.84 | AV82: 3681 | AW82: 3306.64 | AX82: 4395 | AY82: 3812.29 | AZ82: 2791 | BA82: 2810.16 | BB82: 3995 | BC82: 3563.97 | BD82: 4367 | BE82: 4663.49 | BF82: 3945 | BG82: 3929.12 | BH82: 3548 | BI82: 3837.39 | BJ82: 3438 | BK82: 3637.75 | BL82: 1944 | BM82: 2319.3 | BN82: 2966 | BO82: 2790.82 | BP82: 3150 | BQ82: 2999.06
A83: MUNICIPIO DE PORTO ALEGRE | B83: 92.963.560/0001-60 | C83: ILUMINACAO PUBLICA | D83: TRIFÁSICO | E83: RUA EDVALDO PEREIRA PAIVA, 71 - AP 00001 | F83: CENTRO - AV BEIRA RIO | G83: 999413210 | H83: 5266 | I83: 2118.25 | J83: 4254 | K83: 1674.38 | M83: 5769 | N83: 2330.22 | O83: 6749 | P83: 2720.37 | Q83: 6241 | R83: 2511.96 | S83: 6568 | T83: 2645.01 | U83: 7384 | V83: 3130.86 | W83: 5969 | X83: 2651.19 | Y83: 6455 | Z83: 2834.29 | AA83: 5423 | AB83: 2288.09 | AC83: 4819 | AD83: 1992.5 | AE83: 5259 | AF83: 2100.38 | AG83: 4831 | AH83: 1836.6 | AI83: 5534 | AJ83: 2019.41 | AK83: 5917 | AL83: 2302.7 | AM83: 6451 | AN83: 2433.66 | AO83: 6088 | AP83: 2228.86 | AQ83: 5892 | AR83: 2156.33 | AS83: 4257 | AT83: 1573.14 | AU83: 5676 | AV83: 2092.99 | AW83: 4353 | AX83: 1614.13 | AY83: 3755 | AZ83: 1411.05 | BA83: 2906 | BB83: 1213.45 | BC83: 3046 | BD83: 1432.3 | BE83: 4236 | BF83: 1730.52 | BG83: 2507 | BH83: 1058.8 | BI83: 365 | BJ83: 150.53 | BK83: 5652 | BL83: 2366.95 | BM83: 6146 | BN83: 2759.11 | BO83: 5279 | BP83: 2523.9
A84: MUNICIPIO DE PORTO ALEGRE | B84: 92.963.560/0001-60 | C84: PODER PUBLICO | D84: TRIFÁSICO | E84: EST BERICO JOSE BERNARDES, 2939 | F84: SAO TOME / LOMBA DO PINHEIRO | G84: 63391775 | H84: 5245 | I84: 4427.66 | J84: 5080 | K84: 4492.84 | L84: 5180 | M84: 4721.69 | N84: 4777 | O84: 4428.39 | P84: 5645 | Q84: 5018.93 | R84: 6826 | S84: 5781.77 | T84: 6332 | U84: 5472.04 | V84: 6621 | W84: 5896.71 | X84: 6014 | Y84: 5513.18 | Z84: 4374 | AA84: 4219.7 | AB84: 5003 | AC84: 4581.97 | AD84: 4630 | AE84: 4035.68 | AF84: 4618 | AG84: 3956.3 | AH84: 4714 | AI84: 4025.19 | AJ84: 4844 | AK84: 4113.7 | AL84: 4051 | AM84: 3892.48 | AN84: 5333 | AO84: 4541.17 | AP84: 4934 | AQ84: 4135.07 | AR84: 4582 | AS84: 3931.29 | AT84: 5181 | AU84: 4357.97 | AV84: 4041 | AW84: 3654.98 | AX84: 3228 | AY84: 3162.32 | AZ84: 1182 | BA84: 1619.65 | BB84: 2456 | BC84: 2717.86 | BD84: 4097 | BE84: 4467.54 | BF84: 4053 | BG84: 2925.6 | BH84: 3999 | BI84: 4336.03 | BJ84: 0 | BK84: 1266.02 | BL84: 1030 | BM84: 2699.36 | BN84: 2785 | BO84: 2934.52 | BP84: 3651 | BQ84: 3285.1
A85: MUNICIPIO DE PORTO ALEGRE | B85: 92.963.560/0001-60 | C85: PODER PUBLICO | D85: TRIFÁSICO | E85: RUA ESTADIO, 1 | F85: PASSO DAS PEDRAS | G85: 24535966 | H85: 5147 | I85: 4253.39 | J85: 4336 | K85: 3936.03 | L85: 3399 | M85: 3337.71 | N85: 5172 | O85: 4349.76 | P85: 6484 | Q85: 5095.52 | R85: 5150 | S85: 4295.56 | T85: 4836 | U85: 4065.51 | V85: 5865 | W85: 4870.36 | X85: 5661 | Y85: 4896.46 | Z85: 5149 | AA85: 4544.75 | AB85: 5669 | AC85: 4744.7 | AD85: 5536 | AE85: 4476.33 | AF85: 4508 | AG85: 3850.96 | AH85: 4262 | AI85: 3833.01 | AJ85: 4902 | AK85: 3942.91 | AL85: 4257 | AM85: 3807.78 | AN85: 3168 | AO85: 2963.45 | AP85: 2964 | AQ85: 2775.79 | AR85: 3174 | AS85: 2949.68 | AT85: 3524 | AU85: 3207.01 | AV85: 3319 | AW85: 3073.88 | AX85: 3849 | AY85: 3386.2 | AZ85: 2912 | BA85: 2887.53 | BB85: 4367 | BC85: 3697.16 | BD85: 1933 | BE85: 2649.14 | BF85: 1424 | BG85: 2023.09 | BH85: 1506 | BI85: 2219.38 | BJ85: 2137 | BK85: 2662.36 | BL85: 1935 | BM85: 2336.03 | BN85: 2906 | BO85: 2833.53 | BP85: 3096 | BQ85: 3020.53
A86: MUNICIPIO DE PORTO ALEGRE | B86: 92.963.560/0001-60 | C86: ILUMINACAO PUBLICA | D86: TRIFÁSICO | E86: RUA EDVALDO PEREIRA PAIVA, 71 - AP 00008 | F86: CENTRO - AV BEIRA RIO | G86: 999414411 | H86: 5080 | I86: 2043.42 | J86: 4520 | K86: 1845.93 | L86: 5400 | M86: 2212.46 | N86: 5820 | O86: 2350.82 | P86: 6720 | Q86: 2708.68 | R86: 6140 | S86: 3980.62 | T86: 5369 | U86: 2162.17 | V86: 3539 | W86: 1490.79 | X86: 5470 | Y86: 2429.54 | Z86: 5182 | AA86: 2293.27 | AB86: 5266 | AC86: 2205.63 | AD86: 4459 | AE86: 1862.08 | AF86: 4863 | AG86: 1942.24 | AH86: 5576 | AI86: 2199.14 | AJ86: 5210 | AK86: 1958.93 | AL86: 4806 | AM86: 1870.33 | AN86: 3692 | AO86: 1392.82 | AP86: 3376 | AQ86: 1235.97 | AR86: 3793 | AS86: 1388.15 | AT86: 3689 | AU86: 1363.24 | AV86: 3252 | AW86: 1199.17 | AX86: 2897 | AY86: 1098.32 | AZ86: 3176 | BA86: 1198.3 | BB86: 4634 | BC86: 1913.28 | BD86: 4624 | BE86: 2207.66 | BF86: 4972 | BG86: 2060.47 | BH86: 3538 | BI86: 1494.67 | BJ86: 973 | BK86: 381.07 | BL86: 3343 | BM86: 1389.57 | BN86: 6032 | BO86: 2693.11 | BP86: 5618 | BQ86: 2654.22
A87: MUNICIPIO DE PORTO ALEGRE | B87: 92.963.560/0001-60 | C87: PODER PUBLICO | D87: TRIFÁSICO | E87: RUA CRISTOVAO JAQUES, 55 | F87: SANTO AGOSTINHO - SARANDI | G87: 24570079 | H87: 5059 | I87: 4143.99 | J87: 4000 | K87: 3558.9 | L87: 2354 | M87: 2489.21 | N87: 4490 | O87: 3809.43 | P87: 5159 | Q87: 4251.77 | R87: 5344 | S87: 4445.59 | T87: 4787 | U87: 3964.43 | V87: 5026 | W87: 4209.92 | X87: 4289 | Y87: 3838.69 | Z87: 4340 | AA87: 3898.3 | AB87: 4581 | AC87: 3902.63 | AD87: 4478 | AE87: 3732.77 | AF87: 3891 | AG87: 3381.28 | AH87: 3216 | AI87: 3099.08 | AJ87: 3497 | AK87: 3134.75 | AL87: 3090 | AM87: 2948.07 | AN87: 1692 | AO87: 2041.83 | AP87: 1492 | AQ87: 1858.68 | AR87: 1854 | AS87: 2108.85 | AT87: 2039 | AU87: 2255.24 | AV87: 2339 | AW87: 2455.58 | AX87: 2122 | AY87: 2316.83 | AZ87: 1355 | BA87: 1811.33 | BB87: 2870 | BC87: 2729.44 | BD87: 2280 | BE87: 2880.17 | BF87: 1962 | BG87: 2407.21 | BH87: 2001 | BI87: 2591.31 | BJ87: 2853 | BK87: 3072.45 | BL87: 2071 | BM87: 2379.51 | BN87: 3806 | BO87: 3399.28 | BP87: 4139 | BQ87: 3790.26
A88: MUNICIPIO DE PORTO ALEGRE | B88: 92.963.560/0001-60 | C88: PODER PUBLICO | D88: TRIFÁSICO | E88: RUA CRUZEIRO DO SUL, 2704 | F88: SANTA TERESA | G88: 42808642 | H88: 4891 | I88: 4148.6 | J88: 4629 | K88: 3967.19 | L88: 4943 | M88: 4282.06 | N88: 4559 | O88: 3886.8 | P88: 5270 | Q88: 4425.01 | R88: 4333 | S88: 3653.82 | T88: 4489 | U88: 3747.92 | V88: 4554 | W88: 3854.67 | X88: 4583 | Y88: 4054.99 | Z88: 4579 | AA88: 4109.68 | AB88: 4526 | AC88: 3822.53 | AD88: 4224 | AE88: 3609.54 | AF88: 4210 | AG88: 3482.89 | AH88: 4575 | AI88: 3776.39 | AJ88: 3100 | AK88: 2242.52 | AL88: 4417 | AM88: 3643.34 | AN88: 734 | AO88: 600.92 | AP88: 1682 | AQ88: 1305.92 | AR88: 3806 | AS88: 2928.49 | AT88: 0 | AU88: 98.22 | AV88: 1500 | AW88: 1177.17 | AX88: 1738 | AY88: 1396.72 | AZ88: 2231 | BA88: 1786.68 | BB88: 3191 | BC88: 2665.71 | BD88: 2406 | BE88: 2299.94 | BF88: 2448 | BG88: 2097.11 | BH88: 2271 | BI88: 1998.97 | BJ88: 1514 | BK88: 1308.71 | BL88: 1728 | BM88: 1463.56 | BN88: 2043 | BO88: 1798.94 | BP88: 1472 | BQ88: 1343.77
A89: MUNICIPIO DE PORTO ALEGRE | B89: 92.963.560/0001-60 | C89: PODER PUBLICO | D89: TRIFÁSICO | E89: RUA ROMEU DE VASCONCELLOS ROSA, 10 | F89: CAVALHADA | G89: 5292191 | H89: 4888 | I89: 4146.08 | J89: 3643 | K89: 3067.64 | L89: 2172 | M89: 1892.83 | N89: 4695 | O89: 4002.14 | P89: 4630 | Q89: 3893.68 | R89: 4769 | S89: 4017 | T89: 4785 | U89: 4002.63 | V89: 4144 | W89: 3542.1 | X89: 4482 | Y89: 3966.18 | Z89: 4437 | AA89: 3934.74 | AB89: 4809 | AC89: 4058.94 | AD89: 5145 | AE89: 4375.65 | AF89: 4408 | AG89: 3645.67 | AH89: 2118 | AI89: 1832.51 | AJ89: 3899 | AK89: 3093.59 | AL89: 3459 | AM89: 2896.35 | AN89: 991 | AO89: 804.28 | AP89: 1230 | AQ89: 960.38 | AR89: 1326 | AS89: 1070.69 | AT89: 1030 | AU89: 816.86 | AV89: 1513 | AW89: 1209.49 | AX89: 978 | AY89: 799.28 | AZ89: 2001 | BA89: 1628.74 | BB89: 2862 | BC89: 2417.47 | BD89: 1446 | BE89: 1387.83 | BF89: 1485 | BG89: 1286.85 | BH89: 2252 | BI89: 2016.67 | BJ89: 1608 | BK89: 1388.52 | BL89: 1625 | BM89: 1388.9 | BN89: 2839 | BO89: 2493.63 | BP89: 3071 | BQ89: 2776.52
A90: MUNICIPIO DE PORTO ALEGRE | B90: 92.963.560/0001-60 | C90: PODER PUBLICO | D90: TRIFÁSICO | E90: RUA WASHINGTON LUIZ, 203 | F90: CENTRO | G90: 29247454 | H90: 4837 | I90: 4098.87 | J90: 2476 | K90: 2124 | L90: 1142 | M90: 1004.73 | N90: 2354 | O90: 2016.63 | P90: 2380 | Q90: 2006.2 | R90: 2159 | S90: 1834.52 | T90: 2138 | U90: 1793.37 | V90: 1523 | W90: 1306.38 | X90: 1668 | Y90: 1491.38 | Z90: 2037 | AA90: 1849.74 | AB90: 2144 | AC90: 1856.91 | AD90: 2115 | AE90: 1831.59 | AF90: 1981 | AG90: 1650.55 | AH90: 1227 | AI90: 984.24 | AJ90: 1501 | AK90: 1240.98 | AL90: 1936 | AM90: 1588.72 | AN90: 1901 | AO90: 1553.68 | AP90: 1861 | AQ90: 1442.75 | AR90: 1836 | AS90: 1456.4 | AT90: 100 | AU90: 98.22 | AV90: 0 | AW90: 143.89 | AX90: 0 | AY90: 98.4 | AZ90: 1028 | BA90: 833.22 | BB90: 1269 | BC90: 1054.7 | BD90: 1220 | BE90: 1184.75 | BF90: 1157 | BG90: 996.71 | BH90: 1151 | BI90: 1061.22 | BJ90: 509 | BK90: 497.54 | BL90: 760 | BM90: 655.81 | BN90: 1246 | BO90: 1098.61 | BP90: 1609 | BQ90: 1460.04
A91: MUNICIPIO DE PORTO ALEGRE | B91: 92.963.560/0001-60 | C91: PODER PUBLICO | D91: TRIFÁSICO | E91: RUA ABOLICAO, 850 - BL GDRES-RESTINGA | F91: RESTINGA-RESTINGA VELHA | G91: 24248037 | H91: 4798 | I91: 4070.1 | J91: 4249 | K91: 3645.68 | L91: 3665 | M91: 3067.04 | N91: 3348 | O91: 2859.68 | P91: 2758 | Q91: 2274.31 | R91: 2447 | S91: 2051.37 | T91: 4811 | U91: 4075.28 | V91: 3573 | W91: 3124.08 | X91: 3030 | Y91: 2689.2 | Z91: 2549 | AA91: 2243.98 | AB91: 2890 | AC91: 2505.82 | AD91: 3833 | AE91: 3089.01 | AF91: 3566 | AG91: 2953.52 | AH91: 4246 | AI91: 3207.66 | AJ91: 3767 | AK91: 2645.91 | AL91: 2519 | AM91: 2086.41 | AN91: 1885 | AO91: 1511.73 | AP91: 2498 | AQ91: 1929.71 | AR91: 3172 | AS91: 2444 | AT91: 2736 | AU91: 2135.11 | AV91: 2568 | AW91: 2000.39 | AX91: 2156 | AY91: 1040.3 | AZ91: 2430 | BA91: 1863.11 | BB91: 3909 | BC91: 3553.17 | BD91: 4082 | BE91: 3728.56 | BF91: 3836 | BG91: 3158.2 | BH91: 4133 | BI91: 3618.88 | BJ91: 3307 | BK91: 2830.96 | BL91: 2710 | BM91: 2338.7 | BN91: 4211 | BO91: 3745.04 | BP91: 4746 | BQ91: 4380.35
A92: MUNICIPIO DE PORTO ALEGRE | B92: 92.963.560/0001-60 | C92: PODER PUBLICO | D92: TRIFÁSICO | E92: RUA MARIETA MENNA BARRETO, 210 - BL GDLENO-MORSANT | F92: PROTASIO ALVES - LOT PIRATINI | G92: 38217872 | H92: 4798 | I92: 4070.1 | J92: 4692 | K92: 4050.59 | L92: 3053 | M92: 2652.46 | N92: 3671 | O92: 3133.64 | P92: 2957 | Q92: 2523.3 | R92: 2641 | S92: 2206.01 | T92: 3399 | U92: 2897.08 | V92: 3078 | W92: 2707.39 | X92: 2545 | Y92: 2262.66 | Z92: 2883 | AA92: 2523.13 | AB92: 3422 | AC92: 2957.66 | AD92: 3811 | AE92: 3045.99 | AF92: 3868 | AG92: 3201.76 | AH92: 3936 | AI92: 3194 | AJ92: 4644 | AK92: 3680.87 | AL92: 3473 | AM92: 2868.97 | AN92: 2612 | AO92: 2087.02 | AP92: 2850 | AQ92: 2198.83 | AR92: 4280 | AS92: 3290.68 | AT92: 3001 | AU92: 2339.87 | AV92: 3161 | AW92: 2457.48 | AX92: 3079 | AY92: 2459.72 | AZ92: 3370 | BA92: 2718.39 | BB92: 4692 | BC92: 4311.03 | BD92: 5260 | BE92: 4718.12 | BF92: 5360 | BG92: 4583.99 | BH92: 5849 | BI92: 5111.71 | BJ92: 4853 | BK92: 4143.52 | BL92: 3645 | BM92: 3164.47 | BN92: 3443 | BO92: 3817.08 | BP92: 4242 | BQ92: 3942.35
A93: MUNICIPIO DE PORTO ALEGRE | B93: 92.963.560/0001-60 | C93: PODER PUBLICO | D93: TRIFÁSICO | E93: RUA WOLFRAM METZLER, 600 | F93: RUBEM BERTA | G93: 993478018 | H93: 4723 | I93: 4096.68 | J93: 4312 | K93: 3839.49 | L93: 4443 | M93: 3850.95 | N93: 6229 | O93: 5303.21 | P93: 3432 | Q93: 3374.1 | R93: 6727 | S93: 5672.55 | T93: 5953 | U93: 5282.92 | V93: 6729 | W93: 6134.36 | X93: 6821 | Y93: 6523.39 | Z93: 6882 | AA93: 6779.32 | AB93: 8809 | AC93: 7790.29 | AD93: 8249 | AE93: 7273.19 | AF93: 6791 | AG93: 5903.03 | AH93: 7039 | AI93: 6109.73 | AJ93: 5152 | AK93: 4705.52 | AL93: 6146 | AM93: 5596.56 | AN93: 4865 | AO93: 4494.03 | AP93: 4604 | AQ93: 4154.34 | AR93: 5035 | AS93: 4421.19 | AT93: 5049 | AU93: 4478.41 | AV93: 2983 | AW93: 3051.27 | AX93: 3083 | AY93: 3196.71 | AZ93: 1500 | BA93: 2172.43 | BB93: 2872 | BC93: 3184.14 | BD93: 3072 | BE93: 3973.86 | BF93: 3014 | BG93: 3468.99 | BH93: 2660 | BI93: 3403.95 | BJ93: 3593 | BK93: 4068.79 | BL93: 4430 | BM93: 4438.9 | BN93: 5737 | BO93: 5195.63 | BP93: 6211 | BQ93: 6012.39
A94: MUNICIPIO DE PORTO ALEGRE | B94: 92.963.560/0001-60 | C94: PODER PUBLICO | D94: TRIFÁSICO | E94: AV MARIO MENEGHETTI, 940 | F94: PROTASIO ALVES | G94: 24545414 | H94: 4688 | I94: 3977.23 | J94: 25 | K94: 262.5 | L94: 0 | M94: 106.29 | N94: 0 | O94: 104.9 | P94: 1 | Q94: 106.65 | R94: 1 | S94: 102.84 | T94: 15 | U94: 106.66 | V94: 23 | W94: 111.61 | X94: 14 | Y94: 112.41 | Z94: 15 | AA94: 108.81 | AB94: 6 | AC94: 110.18 | AD94: 847 | AE94: 694.13 | AF94: 0 | AG94: 107.26 | AH94: 0 | AI94: 115.29 | AJ94: 77 | AK94: 98.9 | AL94: 83 | AM94: 102.12 | AN94: 90 | AO94: 99.2 | AP94: 98 | AQ94: 96.53 | AR94: 106 | AS94: 101.08 | AT94: 113 | AU94: 108.25 | AV94: 0 | AW94: 98.03 | AX94: 0 | AY94: 99.3 | AZ94: 0 | BA94: 99.67 | BB94: 118 | BC94: 134.62 | BD94: 57 | BE94: 112.52 | BF94: 62 | BG94: 108.39 | BH94: 0 | BI94: 109.72 | BJ94: 0 | BK94: 108.2 | BL94: 54 | BM94: 111.23 | BN94: 0 | BO94: 115.51 | BP94: 0 | BQ94: 121.57
A95: MUNICIPIO DE PORTO ALEGRE | B95: 92.963.560/0001-60 | C95: PODER PUBLICO | D95: TRIFÁSICO | E95: RUA C - VILA CASTELO, 205 | F95: RESTINGA | G95: 35480807 | H95: 4632 | I95: 3929.98 | J95: 1927 | K95: 1846.7 | L95: 2669 | M95: 2321.36 | N95: 4699 | O95: 4005.56 | P95: 3595 | Q95: 3058.87 | R95: 3814 | S95: 3183.95 | T95: 3655 | U95: 3108.11 | V95: 3588 | W95: 3141.58 | X95: 3701 | Y95: 3279.32 | Z95: 4022 | AA95: 3522.82 | AB95: 4097 | AC95: 3601.37 | AD95: 3569 | AE95: 2864.9 | AF95: 2467 | AG95: 2050.09 | AH95: 2167 | AI95: 1835.64 | AJ95: 3202 | AK95: 2544.17 | AL95: 1334 | AM95: 1114.35 | AN95: 1236 | AO95: 1053.78 | AP95: 1171 | AQ95: 915.27 | AR95: 1404 | AS95: 1092.95 | AT95: 1392 | AU95: 1096.58 | AV95: 1313 | AW95: 1033.02 | AX95: 2158 | AY95: 1738.43 | AZ95: 2402 | BA95: 1934.93 | BB95: 1824 | BC95: 1678.27 | BD95: 960 | BE95: 892.24 | BF95: 1133 | BG95: 987.35 | BH95: 1416 | BI95: 1255.15 | BJ95: 1020 | BK95: 889.26 | BL95: 2453 | BM95: 2120.09 | BN95: 2294 | BO95: 2054.73 | BP95: 2316 | BQ95: 2157.25
A96: MUNICIPIO DE PORTO ALEGRE | B96: 92.963.560/0001-60 | C96: PODER PUBLICO | D96: TRIFÁSICO | E96: RUA PORTO SEGURO, 261 - BL GDNHNI-VIVAMAR | F96: VILA IPIRANGA | G96: 24517569 | H96: 4438 | I96: 3766.22 | J96: 4579 | K96: 3953.51 | L96: 3574 | M96: 3101.68 | N96: 3471 | O96: 2964.01 | P96: 3060 | Q96: 2580.85 | R96: 2929 | S96: 2474.87 | T96: 2772 | U96: 2328.03 | V96: 2955 | W96: 2532.82 | X96: 2597 | Y96: 2308.41 | Z96: 2699 | AA96: 2428.2 | AB96: 2761 | AC96: 2345.02 | AD96: 3366 | AE96: 2870.32 | AF96: 5309 | AG96: 4374.15 | AH96: 5175 | AI96: 4265.41 | AJ96: 3702 | AK96: 2938.31 | AL96: 3445 | AM96: 2846 | AN96: 2267 | AO96: 1814.01 | AP96: 2237 | AQ96: 1730.2 | AR96: 3054 | AS96: 2353.83 | AT96: 2710 | AU96: 2115.02 | AV96: 2785 | AW96: 2167.66 | AX96: 2157 | AY96: 1737.65 | AZ96: 2539 | BA96: 2030.42 | BB96: 2951 | BC96: 2482.37 | BD96: 3394 | BE96: 3228.08 | BF96: 3824 | BG96: 3277.02 | BH96: 2922 | BI96: 2565.34 | BJ96: 2857 | BK96: 2417.07 | BL96: 2808 | BM96: 2378.84 | BN96: 2853 | BO96: 2511.51 | BP96: 6885 | BQ96: 6224.25
A97: MUNICIPIO DE PORTO ALEGRE | B97: 92.963.560/0001-60 | C97: ILUMINACAO PUBLICA | D97: TRIFÁSICO | E97: RUA EDVALDO PEREIRA PAIVA, 71 - AP 00004 | F97: CENTRO - AV BEIRA RIO | G97: 999413414 | H97: 4383 | I97: 1763.07 | J97: 15281 | K97: 6240.69 | M97: 4726 | N97: 1945.37 | O97: 5662 | P97: 2282.2 | Q97: 5428 | R97: 2184.74 | S97: 6313 | T97: 2542.32 | U97: 5067 | V97: 2148.4 | W97: 4710 | X97: 2092 | Y97: 4994 | Z97: 2192.78 | AA97: 4014 | AB97: 1693.58 | AC97: 3460 | AD97: 1430.57 | AE97: 4546 | AF97: 1815.62 | AG97: 4037 | AH97: 1588.81 | AI97: 4516 | AJ97: 1698 | AK97: 5446 | AL97: 2119.41 | AM97: 5280 | AN97: 1991.91 | AO97: 5169 | AP97: 1892.41 | AQ97: 6079 | AR97: 2224.78 | AS97: 5010 | AT97: 1851.4 | AU97: 4267 | AV97: 1573.44 | AW97: 3628 | AX97: 1375.48 | AY97: 3170 | AZ97: 1196.04 | BA97: 3469 | BB97: 1457.75 | BC97: 4086 | BD97: 1921.32 | BE97: 3674 | BF97: 1522.57 | BG97: 2531 | BH97: 1069.25 | BI97: 2244 | BJ97: 912.37 | BK97: 4816 | BL97: 2016.86 | BM97: 4663 | BN97: 2094.74 | BO97: 4376 | BP97: 2092.16
A98: MUNICIPIO DE PORTO ALEGRE | B98: 92.963.560/0001-60 | C98: PODER PUBLICO | D98: TRIFÁSICO | E98: RUA AE- ESQ SAN MARINO, 1 - BL A | F98: JARDIM DO SALSO | G98: 20702281 | H98: 4063 | I98: 3429.59 | J98: 1884 | K98: 1618.37 | L98: 2186 | M98: 1884.8 | N98: 3959 | O98: 3357.83 | P98: 3392 | Q98: 2850.02 | R98: 3539 | S98: 2947.8 | T98: 3213 | U98: 2695.86 | V98: 2707 | W98: 2324.77 | X98: 2923 | Y98: 2642.36 | Z98: 3284 | AA98: 2976.23 | AB98: 3310 | AC98: 2836.91 | AD98: 3268 | AE98: 2715.75 | AF98: 2601 | AG98: 2160.23 | AH98: 1724 | AI98: 1426.65 | AJ98: 3000 | AK98: 2384.94 | AL98: 1738 | AM98: 1476.74 | AN98: 1260 | AO98: 1017.13 | AP98: 1154 | AQ98: 996.35 | AR98: 1175 | AS98: 917.96 | AT98: 1220 | AU98: 963.67 | AV98: 1289 | AW98: 1033.36 | AX98: 1222 | AY98: 993.5 | AZ98: 1759 | BA98: 1413.1 | BB98: 2195 | BC98: 1937.55 | BD98: 874 | BE98: 832.35 | BF98: 786 | BG98: 692.09 | BH98: 1496 | BI98: 1324.77 | BJ98: 1609 | BK98: 1445.57 | BL98: 1489 | BM98: 1281.98 | BN98: 1820 | BO98: 1621.07 | BP98: 2122 | BQ98: 1951.58
A99: MUNICIPIO DE PORTO ALEGRE | B99: 92.963.560/0001-60 | C99: PODER PUBLICO | D99: TRIFÁSICO | E99: AV BENTO GONCALVES, 1129 | F99: PARTENON | G99: 24542768 | H99: 4001 | I99: 3399 | J99: 5717 | K99: 4932.74 | L99: 3477 | M99: 3019.68 | N99: 3845 | O99: 3282.88 | P99: 4257 | Q99: 3606.63 | R99: 3897 | S99: 3263.5 | T99: 3737 | U99: 3162.06 | V99: 3627 | W99: 3226.59 | X99: 2317 | Y99: 2063.79 | Z99: 2360 | AA99: 2097.7 | AB99: 2770 | AC99: 2436.43 | AD99: 4253 | AE99: 3449.42 | AF99: 3850 | AG99: 3188.61 | AH99: 5800 | AI99: 4743.32 | AJ99: 6600 | AK99: 5224.4 | AL99: 3874 | AM99: 3199.64 | AN99: 3473 | AO99: 2770.09 | AP99: 2632 | AQ99: 2033.91 | AR99: 2731 | AS99: 2108.75 | AT99: 2980 | AU99: 2323.65 | AV99: 2719 | AW99: 2116.77 | AX99: 3131 | AY99: 2512.81 | AZ99: 3425 | BA99: 2731.64 | BB99: 4346 | BC99: 3853.55 | BD99: 5168 | BE99: 4769.05 | BF99: 5464 | BG99: 4733.43 | BH99: 4519 | BI99: 4039.4 | BJ99: 3876 | BK99: 3417.34 | BL99: 3309 | BM99: 2823.89 | BN99: 2504 | BO99: 2225.23 | BP99: 2437 | BQ99: 2247.87
A100: MUNICIPIO DE PORTO ALEGRE | B100: 92.963.560/0001-60 | C100: PODER PUBLICO | D100: TRIFÁSICO | E100: RUA GRACIANO CAMOZATTO, 185 - BL GDNHNI-FARRAPOS | F100: FARRAPOS | G100: 24838993 | H100: 3994 | I100: 3391.44 | J100: 3523 | K100: 3046.41 | L100: 2630 | M100: 2287.76 | N100: 2727 | O100: 2332.99 | P100: 1639 | Q100: 1410.01 | R100: 1360 | S100: 1145.02 | T100: 1476 | U100: 1271.85 | V100: 1482 | W100: 1321.19 | X100: 1316 | Y100: 1181.82 | Z100: 1742 | AA100: 1531.2 | AB100: 2328 | AC100: 2019.25 | AD100: 3155 | AE100: 2520.5 | AF100: 4414 | AG100: 3650.62 | AH100: 4321 | AI100: 3474.17 | AJ100: 3998 | AK100: 3107.19 | AL100: 2626 | AM100: 2174.18 | AN100: 1532 | AO100: 1232.37 | AP100: 1414 | AQ100: 1101.04 | AR100: 1667 | AS100: 1293.93 | AT100: 1581 | AU100: 1242.62 | AV100: 1684 | AW100: 1318.98 | AX100: 2070 | AY100: 1644.96 | AZ100: 2580 | BA100: 2090.67 | BB100: 3163 | BC100: 2924.3 | BD100: 3718 | BE100: 3331.93 | BF100: 3377 | BG100: 2896.68 | BH100: 2093 | BI100: 1844.15 | BJ100: 4821 | BK100: 4116.35 | BL100: 1743 | BM100: 1524.27 | BN100: 1596 | BO100: 1831.52 | BP100: 2036 | BQ100: 1913.38
A101: MUNICIPIO DE PORTO ALEGRE | B101: 92.963.560/0001-60 | C101: PODER PUBLICO | D101: TRIFÁSICO | E101: RUA SANTANA, 762 - BL GDC-RESTERAP. | F101: SANTANA | G101: 68912773 | H101: 3920 | I101: 3328.97 | J101: 3800 | K101: 3284.34 | L101: 3120 | M101: 2710.22 | N101: 0 | O101: 104.9 | P101: 4320 | Q101: 3638.85 | R101: 1800 | S101: 1525.51 | T101: 2440 | U101: 2056.46 | V101: 2560 | W101: 2203.9 | X101: 2520 | Y101: 2240.68 | Z101: 1640 | AA101: 1478.84 | AB101: 1960 | AC101: 1680.33 | AD101: 2720 | AE101: 2289.59 | AF101: 4160 | AG101: 3441.79 | AH101: 3720 | AI101: 3066.56 | AJ101: 3320 | AK101: 2637.17 | AL101: 2600 | AM101: 2152.84 | AN101: 1760 | AO101: 1412.8 | AP101: 2000 | AQ101: 1549.04 | AR101: 3040 | AS101: 2343.11 | AT101: 2680 | AU101: 2091.84 | AV101: 2320 | AW101: 1809.22 | AX101: 1440 | AY101: 1167 | AZ101: 1320 | BA101: 1065.65 | BB101: 1440 | BC101: 1244.18 | BD101: 3480 | BE101: 3277.65 | BF101: 2880 | BG101: 2473.82 | BH101: 2800 | BI101: 2459.22 | BJ101: 2200 | BK101: 1891.12 | BL101: 1760 | BM101: 1500 | BN101: 2440 | BO101: 2151.86 | BP101: 3080 | BQ101: 2800.61
A102: MUNICIPIO DE PORTO ALEGRE | B102: 92.963.560/0001-60 | C102: PODER PUBLICO | D102: TRIFÁSICO | E102: RUA FREDERICO MENTZ, 857 - AP 00095 | F102: NAVEGANTES | G102: 45827443 | H102: 3903 | I102: 3316.28 | J102: 3206 | K102: 2775.72 | L102: 3008 | M102: 2615.3 | N102: 3008 | O102: 2572.96 | P102: 2529 | Q102: 2626.18 | R102: 2365 | S102: 1979.2 | T102: 2486 | U102: 2126.46 | V102: 2889 | W102: 2544.26 | X102: 3151 | Y102: 2803.14 | Z102: 2334 | AA102: 2048.53 | AB102: 1608 | AC102: 1404.42 | AD102: 2535 | AE102: 2035.16 | AF102: 2752 | AG102: 2286 | AH102: 2656 | AI102: 2163.47 | AJ102: 2610 | AK102: 2079.15 | AL102: 391 | AM102: 342.55 | AN102: 1560 | AO102: 1313.56 | AP102: 2278 | AQ102: 1771.99 | AR102: 3010 | AS102: 2356.17 | AT102: 2666 | AU102: 2119.96 | AV102: 2970 | AW102: 2312 | AX102: 2350 | AY102: 2105.38 | AZ102: 2186 | BA102: 1772.42 | BB102: 2381 | BC102: 2505.96 | BD102: 1893 | BE102: 1941.41 | BF102: 2246 | BG102: 2185.49 | BH102: 1339 | BI102: 1245.25 | BJ102: 1867 | BK102: 1656.57 | BL102: 1608 | BM102: 1407.77 | BN102: 1749 | BO102: 1793.78 | BP102: 1684 | BQ102: 1584.55
A103: MUNICIPIO DE PORTO ALEGRE | B103: 92.963.560/0001-60 | C103: PODER PUBLICO | D103: TRIFÁSICO | E103: RUA MERCADO PUBLICO, 31 - BL C | F103: CENTRO | G103: 35083786 | H103: 3845 | I103: 3265.67 | J103: 3820 | K103: 3388.24 | L103: 3863 | M103: 3350.87 | N103: 3565 | O103: 3043.73 | P103: 3676 | Q103: 3086.63 | R103: 3864 | S103: 3264.94 | T103: 3912 | U103: 3337.77 | V103: 4007 | W103: 3400.83 | X103: 4193 | Y103: 3712.02 | Z103: 4046 | AA103: 3652.31 | AB103: 4278 | AC103: 3601.78 | AD103: 3997 | AE103: 3441.78 | AF103: 4247 | AG103: 3513.31 | AH103: 4674 | AI103: 3935.79 | AJ103: 4151 | AK103: 3292.26 | AL103: 4044 | AM103: 3337.37 | AN103: 3835 | AO103: 3054.82 | AP103: 3473 | AQ103: 2675.1 | AR103: 3712 | AS103: 2856.66 | AT103: 3565 | AU103: 2775.69 | AV103: 3451 | AW103: 2681.01 | AX103: 3437 | AY103: 2756.33 | AZ103: 3023 | BA103: 2413.46 | BB103: 3102 | BC103: 2539.99 | BD103: 3217 | BE103: 3085.95 | BF103: 3065 | BG103: 2631.22 | BH103: 2836 | BI103: 2584.46 | BJ103: 2964 | BK103: 2606.39 | BL103: 2736 | BM103: 2356.04 | BN103: 2698 | BO103: 2412.65 | BP103: 2922 | BQ103: 2626.87
A104: MUNICIPIO DE PORTO ALEGRE | B104: 92.963.560/0001-60 | C104: PODER PUBLICO | D104: TRIFÁSICO | E104: RUA LUIZ OTAVIO, 347 | F104: BELEM VELHO-LOT RINCAO DA CANCELA | G104: 54861691 | H104: 3782 | I104: 3212.49 | J104: 2875 | K104: 2442.76 | L104: 1861 | M104: 1624.7 | N104: 3607 | O104: 3079.36 | P104: 3376 | Q104: 2845.08 | R104: 3454 | S104: 2914.89 | T104: 3692 | U104: 3052.02 | V104: 3361 | W104: 2877.45 | X104: 3697 | Y104: 3275.79 | Z104: 3657 | AA104: 3282.25 | AB104: 3620 | AC104: 3067 | AD104: 3765 | AE104: 3195.67 | AF104: 3485 | AG104: 2886.94 | AH104: 2614 | AI104: 2223.69 | AJ104: 2562 | AK104: 1996.4 | AL104: 2753 | AM104: 2327.07 | AN104: 1414 | AO104: 1139.01 | AP104: 1138 | AQ104: 890.05 | AR104: 1048 | AS104: 839.47 | AT104: 962 | AU104: 764.3 | AV104: 1420 | AW104: 1129.4 | AX104: 1276 | AY104: 1025.05 | AZ104: 1361 | BA104: 1120.73 | BB104: 2252 | BC104: 1899.52 | BD104: 1755 | BE104: 1679.41 | BF104: 1377 | BG104: 1109.72 | BH104: 1483 | BI104: 1354.3 | BJ104: 1366 | BK104: 1183.04 | BL104: 1355 | BM104: 1185.1 | BN104: 1931 | BO104: 1704.69 | BP104: 2236 | BQ104: 2029.56
A105: MUNICIPIO DE PORTO ALEGRE | B105: 92.963.560/0001-60 | C105: PODER PUBLICO | D105: TRIFÁSICO | E105: AV WENCESLAU ESCOBAR, 2442 - BL GDSCS-TRISTEZA AP 00002 | F105: CRISTAL / TRISTEZA | G105: 24184209 | H105: 3760 | I105: 3193.92 | J105: 3811 | K105: 3293.79 | L105: 2347 | M105: 2043.72 | N105: 3480 | O105: 2971.62 | P105: 2139 | Q105: 1827.81 | R105: 1592 | S105: 1341.69 | T105: 1944 | U105: 1660.91 | V105: 1695 | W105: 1494.88 | X105: 1639 | Y105: 1465.87 | Z105: 2069 | AA105: 1825.57 | AB105: 2869 | AC105: 2456.25 | AD105: 3726 | AE105: 2999.51 | AF105: 4001 | AG105: 3311.09 | AH105: 4553 | AI105: 3709.49 | AJ105: 4304 | AK105: 3360.61 | AL105: 1989 | AM105: 1651.65 | AN105: 1562 | AO105: 1256.14 | AP105: 1456 | AQ105: 1133.15 | AR105: 1749 | AS105: 1356.59 | AT105: 1634 | AU105: 1283.56 | AV105: 1580 | AW105: 1238.83 | AX105: 1754 | AY105: 1369.38 | AZ105: 1882 | BA105: 1515.4 | BB105: 3710 | BC105: 3373.64 | BD105: 4065 | BE105: 3713.09 | BF105: 4307 | BG105: 3687.73 | BH105: 4834 | BI105: 4228.71 | BJ105: 3845 | BK105: 3287.73 | BL105: 2205 | BM105: 1907.62 | BN105: 1884 | BO105: 1690.44 | BP105: 2217 | BQ105: 2062.72
A106: MUNICIPIO DE PORTO ALEGRE | B106: 92.963.560/0001-60 | C106: PODER PUBLICO | D106: TRIFÁSICO | E106: RUA DONA LEONOR, 340 | F106: RIO BRANCO | G106: 47513691 | H106: 3751 | I106: 3723.73 | J106: 6116 | K106: 5825.01 | L106: 5133 | M106: 5082.25 | N106: 3867 | O106: 4066.68 | P106: 3724 | Q106: 3852.18 | R106: 3762 | S106: 4124.1 | T106: 3047 | U106: 3414.17 | V106: 4649 | W106: 4621.8 | X106: 4120 | Y106: 4379.98 | Z106: 3816 | AA106: 4385.75 | AB106: 4643 | AC106: 4562.24 | AD106: 4326 | AE106: 4354.19 | AF106: 6803 | AG106: 6099.94 | AH106: 7900 | AI106: 6972.44 | AJ106: 6447 | AK106: 5447.09 | AL106: 5421 | AM106: 5139.19 | AN106: 3618 | AO106: 3684.18 | AP106: 3831 | AQ106: 3895.54 | AR106: 4849 | AS106: 4552.49 | AT106: 5766 | AU106: 5213.68 | AV106: 4599 | AW106: 4266.03 | AX106: 5004 | AY106: 4747.58 | AZ106: 3830 | BA106: 3990.35 | BB106: 4593 | BC106: 4581.09 | BD106: 5191 | BE106: 5944.23 | BF106: 5548 | BG106: 5556.46 | BH106: 5260 | BI106: 5596.33 | BJ106: 4401 | BK106: 5133.45 | BL106: 3768 | BM106: 3202.51 | BN106: 4042 | BO106: 4295.04 | BP106: 4995 | BQ106: 5088.34
A107: MUNICIPIO DE PORTO ALEGRE | B107: 92.963.560/0001-60 | C107: PODER PUBLICO | D107: TRIFÁSICO | E107: RUA DR CARLOS NIEDERAUER HOFMEISTER, 808 | F107: RESTINGA | G107: 24256064 | H107: 3745 | I107: 3181.24 | J107: 2372 | K107: 2196.06 | L107: 3378 | M107: 2932.69 | N107: 4027 | O107: 3435.59 | P107: 3469 | Q107: 2952.41 | R107: 3511 | S107: 2932.6 | T107: 3298 | U107: 2806.67 | V107: 3005 | W107: 2635.08 | X107: 3211 | Y107: 2848.38 | Z107: 3314 | AA107: 2906.58 | AB107: 3807 | AC107: 3283.57 | AD107: 3646 | AE107: 2926.19 | AF107: 811 | AG107: 688.74 | AH107: 25 | AI107: 163.72 | AJ107: 2959 | AK107: 2352.32 | AL107: 2924 | AM107: 2418.64 | AN107: 2832 | AO107: 2261.12 | AP107: 0 | AQ107: 96.53 | AR107: 1949 | AS107: 1509.43 | AT107: 1378 | AU107: 1087.35 | AV107: 1277 | AW107: 1225.1 | AX107: 1832 | AY107: 1679.39 | AZ107: 2011 | BA107: 1799.01 | BB107: 1633 | BC107: 1725.19 | BD107: 502 | BE107: 697.48 | BF107: 751 | BG107: 794.85 | BH107: 1671 | BI107: 1477.01 | BJ107: 1831 | BK107: 1577.86 | BL107: 2678 | BM107: 2312.23 | BN107: 2648 | BO107: 2367.63 | BP107: 2446 | BQ107: 2276.7
A108: MUNICIPIO DE PORTO ALEGRE | B108: 92.963.560/0001-60 | C108: PODER PUBLICO | D108: TRIFÁSICO | E108: AV MARTIM FELIX BERTA, 2351 | F108: RUBEM BERTA | G108: 30413141 | H108: 3745 | I108: 3178.17 | J108: 2967 | K108: 2568.79 | L108: 4489 | M108: 3890.61 | N108: 4447 | O108: 3791.81 | P108: 4017 | Q108: 3397.38 | R108: 4133 | S108: 3466.74 | T108: 4130 | U108: 3481.11 | V108: 3954 | W108: 3420.19 | X108: 3721 | Y108: 3296.92 | Z108: 3956 | AA108: 3513.19 | AB108: 4339 | AC108: 3722.38 | AD108: 4190 | AE108: 3426.65 | AF108: 2716 | AG108: 2254.76 | AH108: 3299 | AI108: 2785.44 | AJ108: 4394 | AK108: 3590.74 | AL108: 2912 | AM108: 2408.77 | AN108: 2906 | AO108: 2319.68 | AP108: 2836 | AQ108: 2188.12 | AR108: 2558 | AS108: 1974.8 | AT108: 2330 | AU108: 1908.08 | AV108: 2414 | AW108: 1881.67 | AX108: 2613 | AY108: 2100.56 | AZ108: 2672 | BA108: 2135.69 | BB108: 2924 | BC108: 2586.8 | BD108: 2444 | BE108: 2279.36 | BF108: 2859 | BG108: 2455.93 | BH108: 1407 | BI108: 1296.7 | BJ108: 2573 | BK108: 2257.72 | BL108: 1987 | BM108: 1712.93 | BN108: 2629 | BO108: 2339.44 | BP108: 2063 | BQ108: 1910.01
A109: MUNICIPIO DE PORTO ALEGRE | B109: 92.963.560/0001-60 | C109: PODER PUBLICO | D109: TRIFÁSICO | E109: AV INDEPENDENCIA, 453 | F109: CENTRO | G109: 2796554 | H109: 3695 | I109: 3278.23 | J109: 4905 | K109: 4233.56 | L109: 3805 | M109: 3300.87 | N109: 3154 | O109: 2695.14 | P109: 2342 | Q109: 1977.64 | R109: 1724 | S109: 1466.75 | T109: 1838 | U109: 1546.21 | V109: 2079 | W109: 1812.65 | X109: 1834 | Y109: 1637.39 | Z109: 1715 | AA109: 1558.63 | AB109: 1798 | AC109: 1530.16 | AD109: 2459 | AE109: 2149.47 | AF109: 3343 | AG109: 6280.73 | AH109: 4455 | AI109: 3682.09 | AJ109: 3530 | AK109: 2944.12 | AL109: 2545 | AM109: 2107.73 | AN109: 1382 | AO109: 1113.7 | AP109: 1249 | AQ109: 974.9 | AR109: 1397 | AS109: 1087.6 | AT109: 1224 | AU109: 966.75 | AV109: 1258 | AW109: 990.63 | AX109: 1348 | AY109: 1093.79 | AZ109: 1336 | BA109: 1078.31 | BB109: 2021 | BC109: 1674.39 | BD109: 2369 | BE109: 2272.9 | BF109: 4232 | BG109: 3661.57 | BH109: 3744 | BI109: 3330.41 | BJ109: 2745 | BK109: 2431.57 | BL109: 2137 | BM109: 1800.99 | BN109: 2021 | BO109: 1777.94 | BP109: 2054 | BQ109: 1860.12
A110: MUNICIPIO DE PORTO ALEGRE | B110: 92.963.560/0001-60 | C110: PODER PUBLICO | D110: TRIFÁSICO | E110: EST AFONSO LOURENCO MARIANTE, 4401 | F110: BELEM VELHO | G110: 25125451 | H110: 3691 | I110: 3135.68 | J110: 2460 | K110: 2193.5 | L110: 3942 | M110: 3268.83 | N110: 3860 | O110: 3293.94 | P110: 2567 | Q110: 2140.17 | R110: 2932 | S110: 2469.75 | T110: 2934 | U110: 2614.33 | V110: 4043 | W110: 3477.75 | X110: 3924 | Y110: 3526.04 | Z110: 4185 | AA110: 3734.23 | AB110: 3088 | AC110: 2637.11 | AD110: 3370 | AE110: 2732.51 | AF110: 4418 | AG110: 3653.9 | AH110: 3543 | AI110: 2956.72 | AJ110: 3567 | AK110: 2831.89 | AL110: 3826 | AM110: 3158.52 | AN110: 3533 | AO110: 2815.83 | AP110: 3451 | AQ110: 2658.28 | AR110: 3657 | AS110: 2814.62 | AT110: 4842 | AU110: 3472.37 | AV110: 3784 | AW110: 2937.7 | AX110: 4157 | AY110: 3329.37 | AZ110: 3770 | BA110: 3004.7 | BB110: 3827 | BC110: 3281.2 | BD110: 2567 | BE110: 2417.67 | BF110: 3710 | BG110: 3173.75 | BH110: 3724 | BI110: 3263.04 | BJ110: 5530 | BK110: 4718.3 | BL110: 4599 | BM110: 3888.36 | BN110: 3987 | BO110: 3478.55 | BP110: 4349 | BQ110: 4058.72
A111: MUNICIPIO DE PORTO ALEGRE | B111: 92.963.560/0001-60 | C111: PODER PUBLICO | D111: TRIFÁSICO | E111: RUA WOLFRAM METZLER, 675 - BL GDNEB-R.BERTA | F111: RUBEM BERTA | G111: 28597656 | H111: 3662 | I111: 3111.19 | J111: 3721 | K111: 3213.24 | L111: 2966 | M111: 2577.44 | N111: 2448 | O111: 2096.34 | P111: 2012 | Q111: 1713.69 | R111: 1952 | S111: 1564.69 | T111: 2273 | U111: 1930.2 | V111: 2306 | W111: 2007.72 | X111: 2152 | Y111: 1917.06 | Z111: 2141 | AA111: 1906.24 | AB111: 2202 | AC111: 1904.94 | AD111: 2639 | AE111: 2144.95 | AF111: 3169 | AG111: 2627.14 | AH111: 3362 | AI111: 2758.16 | AJ111: 3417 | AK111: 2713.66 | AL111: 2586 | AM111: 2141.38 | AN111: 2019 | AO111: 1617.76 | AP111: 2420 | AQ111: 1870.1 | AR111: 3228 | AS111: 2486.78 | AT111: 2655 | AU111: 2072.54 | AV111: 2609 | AW111: 2031.98 | AX111: 2138 | AY111: 1722.51 | AZ111: 2364 | BA111: 1891.91 | BB111: 3441 | BC111: 3056.7 | BD111: 3341 | BE111: 3091.31 | BF111: 3161 | BG111: 2712.91 | BH111: 3253 | BI111: 2853.29 | BJ111: 2723 | BK111: 2335.13 | BL111: 2257 | BM111: 1935.74 | BN111: 2220 | BO111: 2394.61 | BP111: 2342 | BQ111: 2161.36
A112: MUNICIPIO DE PORTO ALEGRE | B112: 92.963.560/0001-60 | C112: PODER PUBLICO | D112: TRIFÁSICO | E112: RUA MANOEL VITORINO, 4 - BL GDPLP-BANANEIRA | F112: PARTENON | G112: 34935312 | H112: 3650 | I112: 3101.07 | J112: 3873 | K112: 3339.84 | L112: 2792 | M112: 2427.42 | N112: 2237 | O112: 1917.39 | P112: 1557 | Q112: 1332.51 | R112: 1445 | S112: 1222.13 | T112: 2071 | U112: 1761.29 | V112: 1616 | W112: 1417.95 | X112: 1466 | Y112: 1313.75 | Z112: 1658 | AA112: 1479.13 | AB112: 1733 | AC112: 1506.49 | AD112: 2723 | AE112: 2216.97 | AF112: 3358 | AG112: 2782.52 | AH112: 3386 | AI112: 2775.28 | AJ112: 3203 | AK112: 2167.86 | AL112: 1857 | AM112: 1543.39 | AN112: 1330 | AO112: 1072.53 | AP112: 1199 | AQ112: 936.68 | AR112: 1740 | AS112: 1349.73 | AT112: 1597 | AU112: 1254.98 | AV112: 1630 | AW112: 1277.36 | AX112: 1466 | AY112: 1187.67 | AZ112: 1987 | BA112: 1593.54 | BB112: 2970 | BC112: 2642 | BD112: 3558 | BE112: 3276.12 | BF112: 3779 | BG112: 3215.31 | BH112: 3970 | BI112: 3477.05 | BJ112: 3252 | BK112: 2784.29 | BL112: 2105 | BM112: 1741.01 | BN112: 1801 | BO112: 1608.06 | BP112: 2018 | BQ112: 1866.42
A113: MUNICIPIO DE PORTO ALEGRE | B113: 92.963.560/0001-60 | C113: PODER PUBLICO | D113: TRIFÁSICO | E113: RUA JAPEJU, 390 | F113: ILHA DA PINTADA - ARQUIPELAGO | G113: 28351126 | H113: 3603 | I113: 3061.39 | J113: 2074 | K113: 1859.51 | L113: 3759 | M113: 3261.19 | N113: 3964 | O113: 3382.16 | P113: 3802 | Q113: 3196.73 | R113: 3090 | S113: 2613 | T113: 3095 | U113: 2588.59 | V113: 2983 | W113: 2548 | X113: 3029 | Y113: 2688.33 | Z113: 2896 | AA113: 2616.75 | AB113: 3477 | AC113: 2920.42 | AD113: 4678 | AE113: 4009.78 | AF113: 3546 | AG113: 2933.92 | AH113: 1650 | AI113: 1376.23 | AJ113: 5127 | AK113: 4126.75 | AL113: 4164 | AM113: 3463.84 | AN113: 1454 | AO113: 1170.66 | AP113: 1156 | AQ113: 903.8 | AR113: 1061 | AS113: 830.86 | AT113: 1146 | AU113: 924.08 | AV113: 1372 | AW113: 1078.5 | AX113: 1729 | AY113: 1370.16 | AZ113: 2195 | BA113: 1758.18 | BB113: 2968 | BC113: 2446.35 | BD113: 1555 | BE113: 1499.95 | BF113: 1375 | BG113: 1193.24 | BH113: 1555 | BI113: 1414.07 | BJ113: 1811 | BK113: 1560.88 | BL113: 756 | BM113: 617.32 | BN113: 2329 | BO113: 2044.79 | BP113: 2890 | BQ113: 2605.26
A114: MUNICIPIO DE PORTO ALEGRE | B114: 92.963.560/0001-60 | C114: PODER PUBLICO | D114: TRIFÁSICO | E114: AV ECONOMISTA NILO WULFF, 955 | F114: RESTINGA | G114: 15241629 | H114: 3566 | I114: 3030.15 | J114: 2254 | K114: 2093.26 | L114: 2770 | M114: 2408.46 | N114: 3893 | O114: 3321.93 | P114: 3626 | Q114: 3085.05 | R114: 3530 | S114: 2948.37 | T114: 3635 | U114: 3091.22 | V114: 3574 | W114: 3129.41 | X114: 3404 | Y114: 3018.1 | Z114: 3377 | AA114: 2961.38 | AB114: 4245 | AC114: 3724.1 | AD114: 3878 | AE114: 3111.02 | AF114: 2542 | AG114: 2111.71 | AH114: 2562 | AI114: 2160.69 | AJ114: 3687 | AK114: 2926.48 | AL114: 2237 | AM114: 1855.1 | AN114: 2188 | AO114: 1751.5 | AP114: 1847 | AQ114: 1432.06 | AR114: 1675 | AS114: 1300.05 | AT114: 1790 | AU114: 1378.34 | AV114: 1670 | AW114: 1308.19 | AX114: 1598 | AY114: 1216.73 | AZ114: 1931 | BA114: 1512.4 | BB114: 2025 | BC114: 1860.25 | BD114: 1950 | BE114: 1777.85 | BF114: 2749 | BG114: 2289.79 | BH114: 2057 | BI114: 1812.82 | BJ114: 2264 | BK114: 1945.45 | BL114: 2982 | BM114: 2571.83 | BN114: 2965 | BO114: 2647.86 | BP114: 2842 | BQ114: 2640.56
A115: MUNICIPIO DE PORTO ALEGRE | B115: 92.963.560/0001-60 | C115: PODER PUBLICO | D115: TRIFÁSICO | E115: RUA MONSENHOR RUBEN NEIS, 900 | F115: LOTEAMENTO CAVALHADA | G115: 30689929 | H115: 3556 | I115: 3021.72 | J115: 2420 | K115: 2228.54 | L115: 3427 | M115: 2974.95 | N115: 4725 | O115: 4027.59 | P115: 4629 | Q115: 3927.45 | R115: 4316 | S115: 3605.22 | T115: 5167 | U115: 4374.15 | V115: 4505 | W115: 3927.02 | X115: 4595 | Y115: 4065.57 | Z115: 4907 | AA115: 4318.22 | AB115: 4714 | AC115: 4067.72 | AD115: 4550 | AE115: 3668.05 | AF115: 3001 | AG115: 2496.91 | AH115: 4247 | AI115: 3464.7 | AJ115: 4398 | AK115: 3497.68 | AL115: 4479 | AM115: 3694.2 | AN115: 99 | AO115: 598.53 | AP115: 99 | AQ115: 576.14 | AR115: 4041 | AS115: 3291.16 | AT115: 3637 | AU115: 2831.34 | AV115: 3564 | AW115: 2769.7 | AX115: 3478 | AY115: 2799.26 | AZ115: 99 | BA115: 100.09 | BB115: 99 | BC115: 116.2 | BD115: 99 | BE115: 113.98 | BF115: 99 | BG115: 108.39 | BH115: 99 | BI115: 483.03 | BJ115: 1657 | BK115: 1492.79 | BL115: 1423 | BM115: 1309.6 | BN115: 1532 | BO115: 1432.36 | BP115: 1652 | BQ115: 1581.28
A116: MUNICIPIO DE PORTO ALEGRE | B116: 92.963.560/0001-60 | C116: PODER PUBLICO | D116: TRIFÁSICO | E116: RUA BUTUI, 221 | F116: CRISTAL | G116: 24183369 | H116: 3541 | I116: 2971.53 | J116: 2516 | K116: 2054.12 | L116: 2044 | M116: 1759.81 | N116: 3084 | O116: 2679.71 | P116: 2993 | Q116: 2519.56 | R116: 2861 | S116: 2312.35 | T116: 2958 | U116: 2503.99 | V116: 2657 | W116: 2306.3 | X116: 2741 | Y116: 2435.04 | Z116: 2893 | AA116: 2578.46 | AB116: 2897 | AC116: 2544.03 | AD116: 2880 | AE116: 2383.26 | AF116: 2490 | AG116: 2068.98 | AH116: 1270 | AI116: 1060.35 | AJ116: 2425 | AK116: 1987.88 | AL116: 1620 | AM116: 1372.85 | AN116: 930 | AO116: 756.02 | AP116: 853 | AQ116: 701.91 | AR116: 934 | AS116: 748.99 | AT116: 440 | AU116: 360.94 | AV116: 669 | AW116: 552.57 | AX116: 644 | AY116: 517.7 | AZ116: 929 | BA116: 756.2 | BB116: 1458 | BC116: 1280.61 | BD116: 879 | BE116: 839.21 | BF116: 868 | BG116: 761.76 | BH116: 865 | BI116: 794.81 | BJ116: 545 | BK116: 502.51 | BL116: 681 | BM116: 598.28 | BN116: 1161 | BO116: 1041.58 | BP116: 1435 | BQ116: 1326.94
A117: MUNICIPIO DE PORTO ALEGRE | B117: 92.963.560/0001-60 | C117: PODER PUBLICO | D117: TRIFÁSICO | E117: AV MARTIM FELIX BERTA, 2432 - BL GDLENO-CHAC.FUM | F117: RUBEM BERTA | G117: 27764133 | H117: 3530 | I117: 2999.76 | K117: 2885 | L117: 2507.59 | M117: 2512 | N117: 2150.61 | O117: 1978 | P117: 1684.06 | Q117: 1608 | R117: 1361.05 | S117: 2150 | T117: 1822.78 | U117: 1932 | V117: 1683.67 | W117: 1891 | X117: 1687.5 | Y117: 1826 | Z117: 1633.48 | AA117: 1888 | AB117: 1634.53 | AC117: 2949 | AD117: 2418.26 | AE117: 3180 | AF117: 2636.18 | AG117: 3350 | AH117: 2750.83 | AI117: 3361 | AJ117: 2669.5 | AK117: 2521 | AL117: 2088.04 | AM117: 1445 | AN117: 1163.54 | AO117: 1586 | AP117: 1232.51 | AQ117: 2485 | AR117: 1919.03 | AS117: 2033 | AT117: 1591.88 | AU117: 1861 | AV117: 1455.41 | AW117: 1491 | AX117: 1203.69 | AY117: 2091 | AZ117: 1675.86 | BA117: 3034 | BB117: 2683.1 | BC117: 3548 | BD117: 3298.51 | BE117: 3355 | BF117: 2877.96 | BG117: 3430 | BH117: 3007.27 | BI117: 2744 | BJ117: 2352.99 | BK117: 1969 | BL117: 1689.52 | BM117: 2078 | BN117: 1849.17 | BO117: 2323 | BP117: 2137.4
A118: MUNICIPIO DE PORTO ALEGRE | B118: 92.963.560/0001-60 | C118: PODER PUBLICO | D118: TRIFÁSICO | E118: RUA PADRE ANGELO COSTA, 175 | F118: SAO JOSE - VILA VARGAS | G118: 24542849 | H118: 3525 | I118: 2995.56 | J118: 2395 | K118: 2145.02 | L118: 1858 | M118: 1573.71 | N118: 3277 | O118: 2799.48 | P118: 3029 | Q118: 2407.56 | R118: 3568 | S118: 2986.31 | T118: 3251 | U118: 2754.71 | V118: 3009 | W118: 2622.61 | X118: 3196 | Y118: 2745.91 | Z118: 3773 | AA118: 3329.74 | AB118: 3711 | AC118: 3277.09 | AD118: 2863 | AE118: 2320.54 | AF118: 2843 | AG118: 2359.16 | AH118: 2517 | AI118: 1941.76 | AJ118: 2935 | AK118: 1871.48 | AL118: 2075 | AM118: 1722.19 | AN118: 1603 | AO118: 1288.59 | AP118: 1831 | AQ118: 1419.82 | AR118: 2036 | AS118: 1604.36 | AT118: 1679 | AU118: 1351.02 | AV118: 1453 | AW118: 1140.92 | AX118: 1726 | AY118: 1366.15 | AZ118: 1568 | BA118: 1261.94 | BB118: 1487 | BC118: 1343.71 | BD118: 1272 | BE118: 1188.3 | BF118: 1849 | BG118: 1568.02 | BH118: 503 | BI118: 493.35 | BJ118: 1514 | BK118: 1308.71 | BL118: 2049 | BM118: 1765.58 | BN118: 2384 | BO118: 2123.94 | BP118: 2303 | BQ118: 2134.15
A119: MUNICIPIO DE PORTO ALEGRE | B119: 92.963.560/0001-60 | C119: PODER PUBLICO | D119: TRIFÁSICO | E119: RUA URUGUAI, 155 - AP 01108 | F119: CENTRO | G119: 37134698 | H119: 3487 | I119: 2965.13 | J119: 4926 | K119: 4304.27 | L119: 3797 | M119: 3295.62 | N119: 3025 | O119: 2587.39 | P119: 2272 | Q119: 1921.9 | R119: 1564 | S119: 1385.53 | T119: 1584 | U119: 1338.41 | V119: 1346 | W119: 1166.36 | X119: 1518 | Y119: 1361.1 | Z119: 1790 | AA119: 1621.6 | AB119: 1991 | AC119: 1724.08 | AD119: 3228 | AE119: 2765.28 | AF119: 3761 | AG119: 1391.38 | AH119: 4365 | AI119: 3673.51 | AJ119: 3360 | AK119: 2738.22 | AL119: 2277 | AM119: 1889.54 | AN119: 977 | AO119: 849.74 | AP119: 1043 | AQ119: 859.7 | AR119: 1157 | AS119: 921.69 | AT119: 759 | AU119: 622.53 | AV119: 1061 | AW119: 859.71 | AX119: 1883 | AY119: 1464.64 | AZ119: 61 | BA119: 119.04 | BB119: 1996 | BC119: 1711.28 | BD119: 2486 | BE119: 2379.48 | BF119: 3108 | BG119: 2669.54 | BH119: 2292 | BI119: 2226.45 | BJ119: 1616 | BK119: 1397.05 | BL119: 1507 | BM119: 1472.8 | BN119: 846 | BO119: 792.77 | BP119: 1023 | BQ119: 994.35
A120: MUNICIPIO DE PORTO ALEGRE | B120: 92.963.560/0001-60 | C120: COMERCIAL, SERVICOS, OUTRAS ATIVIDADES | D120: TRIFÁSICO | E120: RUA MORRO ALTO, 433 | F120: ABERTA MORROS | G120: 24192244 | H120: 3429 | I120: 2914.52 | J120: 2300 | K120: 1950.6 | L120: 2189 | M120: 1894.6 | N120: 3406 | O120: 2908.89 | P120: 3078 | Q120: 2618.92 | R120: 3217 | S120: 2693.36 | T120: 3658 | U120: 3099.61 | V120: 2893 | W120: 2530.58 | X120: 2950 | Y120: 2618.85 | Z120: 3580 | AA120: 3156.43 | AB120: 3472 | AC120: 3034.91 | AD120: 3458 | AE120: 2796.58 | AF120: 2902 | AG120: 2391.92 | AH120: 2061 | AI120: 1691.69 | AJ120: 2909 | AK120: 2362.53 | AL120: 2351 | AM120: 1948.59 | AN120: 1753 | AO120: 1457.04 | AP120: 1669 | AQ120: 1295.98 | AR120: 1777 | AS120: 1403.92 | AT120: 1685 | AU120: 1299.88 | AV120: 2057 | AW120: 1606.49 | AX120: 1904 | AY120: 1536.27 | AZ120: 1654 | BA120: 1330 | BB120: 2027 | BC120: 1836.53 | BD120: 1075 | BE120: 1001.84 | BF120: 1471 | BG120: 1245.22 | BH120: 2759 | BI120: 2469.78 | BK120: 2287 | BL120: 0 | BM120: 2652 | BN120: 1236.57 | BO120: 2965 | BP120: 2566.36
A121: MUNICIPIO DE PORTO ALEGRE | B121: 92.963.560/0001-60 | C121: PODER PUBLICO | D121: TRIFÁSICO | E121: AV SEVERO DULLIUS, 165 | F121: ANCHIETA | G121: 39076849 | H121: 3428 | I121: 2913.67 | J121: 2275 | K121: 2060.53 | L121: 2934 | M121: 2549.86 | N121: 3970 | O121: 3387.23 | P121: 3403 | Q121: 2903.85 | R121: 3169 | S121: 2641.39 | T121: 3431 | U121: 2927.21 | V121: 3522 | W121: 3106.16 | X121: 3587 | Y121: 3179.05 | Z121: 4047 | AA121: 3528.08 | AB121: 3620 | AC121: 3191.86 | AD121: 4067 | AE121: 3242.68 | AF121: 2757 | AG121: 2288.46 | AH121: 2976 | AI121: 2486.58 | AJ121: 3457 | AK121: 2745.19 | AL121: 1499 | AM121: 1249.69 | AN121: 1224 | AO121: 988.67 | AP121: 1091 | AQ121: 854.11 | AR121: 1075 | AS121: 841.54 | AT121: 972 | AU121: 772.02 | AV121: 882 | AW121: 700.79 | AX121: 1477 | AY121: 1196.44 | AZ121: 1846 | BA121: 1501.86 | BB121: 1948 | BC121: 1801.18 | BD121: 1295 | BE121: 1175.69 | BF121: 1374 | BG121: 1230.42 | BH121: 1477 | BI121: 1308.23 | BJ121: 1401 | BK121: 1212.77 | BL121: 1395 | BM121: 1225.01 | BN121: 1665 | BO121: 1503.92 | BP121: 1580 | BQ121: 1491.4
A122: MUNICIPIO DE PORTO ALEGRE | B122: 92.963.560/0001-60 | C122: PODER PUBLICO | D122: TRIFÁSICO | E122: RUA DUQUE DE CAXIAS, 973 | F122: CENTRO | G122: 64956547 | H122: 3402 | I122: 2893.36 | J122: 3336 | K122: 2887.4 | L122: 2532 | M122: 2204.89 | N122: 2624 | O122: 2247.27 | P122: 1967 | Q122: 1685.77 | R122: 1307 | S122: 1104.2 | T122: 1802 | U122: 1546.56 | V122: 2071 | W122: 1828.86 | X122: 1566 | Y122: 1403.34 | Z122: 1878 | AA122: 1694.49 | AB122: 1946 | AC122: 1691.5 | AD122: 2286 | AE122: 2238.9 | AF122: 2819 | AG122: 2341.08 | AH122: 2492 | AI122: 2035.01 | AJ122: 1709 | AK122: 1368.89 | AL122: 340 | AM122: 300.7 | AN122: 552 | AO122: 458.6 | AP122: 860 | AQ122: 679.25 | AR122: 683 | AS122: 543.73 | AT122: 750 | AU122: 573.85 | AV122: 508 | AW122: 412.52 | AX122: 708 | AY122: 584.41 | AZ122: 616 | BA122: 512.9 | BB122: 992 | BC122: 928.27 | BD122: 1039 | BE122: 959.9 | BF122: 1670 | BG122: 1463.72 | BH122: 1754 | BI122: 1598.37 | BJ122: 1016 | BK122: 885.88 | BL122: 911 | BM122: 804.48 | BN122: 1231 | BO122: 1116.12 | BP122: 1603 | BQ122: 1506.31
A123: MUNICIPIO DE PORTO ALEGRE | B123: 92.963.560/0001-60 | C123: PODER PUBLICO | D123: TRIFÁSICO | E123: RUA FREDERICO MENTZ, 1824 - BL ADM-EMP | F123: NAVEGANTES | G123: 61618900 | H123: 3349 | I123: 2846.98 | J123: 2970 | K123: 2571.35 | L123: 2190 | M123: 1908.36 | N123: 2140 | O123: 1835.11 | P123: 1849 | Q123: 1583.96 | R123: 1895 | S123: 1592.04 | T123: 2116 | U123: 1808.67 | V123: 2111 | W123: 1858.41 | X123: 1873 | Y123: 1671.67 | Z123: 1909 | AA123: 1683.64 | AB123: 2267 | AC123: 1965.18 | AD123: 2772 | AE123: 2230.05 | AF123: 3181 | AG123: 2637.01 | AH123: 3373 | AI123: 2750.08 | AJ123: 2621 | AK123: 2086.19 | AL123: 1776 | AM123: 1476.93 | AN123: 1578 | AO123: 1268.78 | AP123: 1506 | AQ123: 1171.37 | AR123: 2125 | AS123: 1643.92 | AT123: 2047 | AU123: 1602.71 | AV123: 1789 | AW123: 1399.92 | AX123: 1852 | AY123: 1483.51 | AZ123: 1710 | BA123: 1383.52 | BB123: 2446 | BC123: 2241.38 | BD123: 2882 | BE123: 2631.88 | BF123: 2894 | BG123: 2485.74 | BH123: 3005 | BI123: 2637.53 | BJ123: 2178 | BK123: 1872.46 | BL123: 1708 | BM123: 1483.91 | BN123: 2040 | BO123: 1830.18 | BP123: 2273 | BQ123: 2117.76
A124: MUNICIPIO DE PORTO ALEGRE | B124: 92.963.560/0001-60 | C124: PODER PUBLICO | D124: TRIFÁSICO | E124: AV DA CAVALHADA, 6735 | F124: CAVALHADA | G124: 63644321 | H124: 3314 | I124: 3211.87 | J124: 2950 | K124: 3069.04 | L124: 3096 | M124: 3121.4 | N124: 3423 | O124: 3611.33 | P124: 3867 | Q124: 3828.71 | R124: 4323 | S124: 3983.73 | T124: 3636 | U124: 3506.83 | V124: 4337 | W124: 3942.4 | X124: 4069 | Y124: 3937.43 | Z124: 3711 | AA124: 3824 | AB124: 5116 | AC124: 4723.41 | AD124: 4950 | AE124: 4634.84 | AF124: 4123 | AG124: 0 | AH124: 3465 | AI124: 2476.35 | AJ124: 3618 | AK124: 3357.19 | AL124: 3820 | AM124: 3869.6 | AN124: 2700 | AO124: 2904.55 | AP124: 2902 | AQ124: 2850.97 | AR124: 3363 | AS124: 3155.27 | AT124: 3068 | AU124: 3001.44 | AV124: 2680 | AW124: 2728.68 | AX124: 2607 | AY124: 2773.92 | AZ124: 2637 | BA124: 2832.49 | BB124: 2647 | BC124: 2741.78 | BD124: 2393 | BE124: 3075.12 | BF124: 2537 | BG124: 2811.75 | BH124: 2813 | BI124: 3083.81 | BJ124: 3083 | BK124: 3459.28 | BL124: 3073 | BM124: 3224.5 | BN124: 3197 | BO124: 3246.02 | BP124: 3304 | BQ124: 3365.84
A125: MUNICIPIO DE PORTO ALEGRE | B125: 92.963.560/0001-60 | C125: PODER PUBLICO | D125: TRIFÁSICO | E125: RUA VIEIRA DA SILVA, 1016 - BL GDNEB-N.BRASILI | F125: SARANDI - VILA ELIZABETH | G125: 24550299 | H125: 3304 | I125: 2809 | J125: 2887 | K125: 2500.09 | L125: 2064 | M125: 1799.7 | N125: 2389 | O125: 2046.32 | P125: 1535 | Q125: 1320.49 | R125: 1419 | S125: 1194.57 | T125: 1969 | U125: 1687.5 | V125: 1828 | W125: 1608.42 | X125: 1586 | Y125: 1419.28 | Z125: 1626 | AA125: 1432.68 | AB125: 1851 | AC125: 1611.06 | AD125: 2470 | AE125: 1981.91 | AF125: 2541 | AG125: 2110.38 | AH125: 2565 | AI125: 2011.75 | AJ125: 1987 | AK125: 1331.53 | AL125: 2384 | AM125: 1975.67 | AN125: 1383 | AO125: 1114.49 | AP125: 1553 | AQ125: 1207.31 | AR125: 2007 | AS125: 1553.73 | AT125: 1684 | AU125: 1322.19 | AV125: 1768 | AW125: 1383.75 | AX125: 1485 | AY125: 1187.54 | AZ125: 1647 | BA125: 1266.45 | BB125: 2205 | BC125: 2040.26 | BD125: 3169 | BE125: 2851.78 | BF125: 3022 | BG125: 2563.3 | BH125: 2624 | BI125: 2306.09 | BJ125: 2194 | BK125: 1886.03 | BL125: 1775 | BM125: 1558.82 | BN125: 1972 | BO125: 2039.78 | BP125: 2469 | BQ125: 0
A126: MUNICIPIO DE PORTO ALEGRE | B126: 92.963.560/0001-60 | C126: PODER PUBLICO | D126: TRIFÁSICO | E126: RUA OTTO ERNST MEYER, 57 | F126: AZENHA | G126: 25113674 | H126: 3260 | I126: 2771.86 | J126: 1010 | K126: 887.68 | L126: 3686 | M126: 3198.26 | N126: 3418 | O126: 2919.07 | P126: 2800 | Q126: 2364.85 | R126: 2342 | S126: 1981.69 | T126: 2546 | U126: 2141.85 | V126: 2266 | W126: 1950.76 | X126: 2356 | Y126: 2096.45 | Z126: 2474 | AA126: 2264.99 | AB126: 2758 | AC126: 2346.14 | AD126: 3688 | AE126: 3118.43 | AF126: 2528 | AG126: 2083.43 | AH126: 1378 | AI126: 1150.31 | AJ126: 3919 | AK126: 3155.16 | AL126: 2296 | AM126: 1928.39 | AN126: 725 | AO126: 593.77 | AP126: 601 | AQ126: 479.52 | AR126: 643 | AS126: 511.43 | AT126: 550 | AU126: 445.94 | AV126: 644 | AW126: 528.18 | AX126: 724 | AY126: 591.59 | AZ126: 1075 | BA126: 882 | BB126: 1316 | BC126: 1126.13 | BD126: 978 | BE126: 938.37 | BF126: 884 | BG126: 741.43 | BH126: 935 | BI126: 860.03 | BJ126: 794 | BK126: 697.4 | BL126: 1147 | BM126: 983.75 | BN126: 1439 | BO126: 1277.22 | BP126: 1614 | BQ126: 1473.15
A127: MUNICIPIO DE PORTO ALEGRE | B127: 92.963.560/0001-60 | C127: PODER PUBLICO | D127: TRIFÁSICO | E127: EST JOAO DE OLIVEIRA REMIAO, 6749 - AP 00003 | F127: AGRONOMIA / LOMBA DO PINHEIRO | G127: 4606001 | H127: 3250 | I127: 2763.42 | J127: 2796 | K127: 2421.89 | L127: 2144 | M127: 1868.71 | N127: 1905 | O127: 1635.79 | P127: 1463 | Q127: 1257.9 | R127: 1391 | S127: 1173.98 | T127: 1931 | U127: 1652.46 | V127: 1772 | W127: 1563.9 | X127: 1418 | Y127: 1271.52 | Z127: 1257 | AA127: 1116.16 | AB127: 1546 | AC127: 1347.95 | AD127: 2095 | AE127: 1690.78 | AF127: 2631 | AG127: 997.71 | AH127: 2586 | AI127: 925.92 | AJ127: 2350 | AK127: 822.5 | AL127: 1428 | AM127: 1191.46 | AN127: 1207 | AO127: 975.19 | AP127: 1174 | AQ127: 917.58 | AR127: 1660 | AS127: 1288.58 | AT127: 1577 | AU127: 1239.53 | AV127: 1480 | AW127: 1161.75 | AX127: 1329 | AY127: 1078.65 | AZ127: 1503 | BA127: 1218.61 | BB127: 2292 | BC127: 2101.97 | BD127: 2552 | BE127: 2333.21 | BF127: 2828 | BG127: 2429.57 | BH127: 2881 | BI127: 2529.66 | BJ127: 2165 | BK127: 1861.41 | BL127: 1609 | BM127: 1399.34 | BN127: 1819 | BO127: 1634.86 | BP127: 1919 | BQ127: 1792.49
A128: MUNICIPIO DE PORTO ALEGRE | B128: 92.963.560/0001-60 | C128: PODER PUBLICO | D128: TRIFÁSICO | E128: RUA FLORENCIO FARIAS, 195 - BL GDRES-BELEMNOVO | F128: BELEM NOVO | G128: 24248665 | H128: 3244 | I128: 2758.35 | J128: 3622 | K128: 3131.43 | L128: 2673 | M128: 2324.82 | N128: 2323 | O128: 1990.33 | P128: 1726 | Q128: 1481.18 | R128: 1432 | S128: 1206.07 | T128: 2019 | U128: 1728.3 | V128: 1700 | W128: 1504.28 | X128: 1540 | Y128: 1378.83 | Z128: 1802 | AA128: 1588.23 | AB128: 2224 | AC128: 1927.8 | AD128: 2750 | AE128: 2207.97 | AF128: 3402 | AG128: 2818.66 | AH128: 3361 | AI128: 2738.54 | AJ128: 3136 | AK128: 2492.15 | AL128: 2135 | AM128: 1771.42 | AN128: 1816 | AO128: 1457.13 | AP128: 1907 | AQ128: 1477.92 | AR128: 2741 | AS128: 2114.63 | AT128: 2089 | AU128: 1635.16 | AV128: 2008 | AW128: 1568.73 | AX128: 2300 | AY128: 1851.44 | AZ128: 2732 | BA128: 2175.11 | BB128: 3748 | BC128: 3432.34 | BD128: 3888 | BE128: 3528.1 | BF128: 3547 | BG128: 3014.46 | BH128: 3612 | BI128: 3165.61 | BJ128: 3028 | BK128: 2594.09 | BL128: 2143 | BM128: 1860.25 | BN128: 2149 | BO128: 1928.71 | BP128: 2898 | BQ128: 2698.22
A129: MUNICIPIO DE PORTO ALEGRE | B129: 92.963.560/0001-60 | C129: PODER PUBLICO | D129: TRIFÁSICO | E129: AV ASSIS BRASIL, 6607 - BL GDNEB-ASSISBRAS | F129: SARANDI | G129: 24867152 | H129: 3072 | I129: 2613.17 | J129: 3264 | K129: 2823.9 | L129: 2158 | M129: 1880.76 | N129: 2655 | O129: 2271.93 | P129: 1631 | Q129: 1403.24 | R129: 2088 | S129: 1747.23 | T129: 1178 | U129: 1019.51 | V129: 1592 | W129: 1417.42 | X129: 1459 | Y129: 1307.57 | Z129: 1757 | AA129: 1544.21 | AB129: 2203 | AC129: 1912.17 | AD129: 2922 | AE129: 2335.95 | AF129: 3154 | AG129: 2614.79 | AH129: 3783 | AI129: 3067.99 | AJ129: 3216 | AK129: 2555.21 | AL129: 2378 | AM129: 1970.76 | AN129: 1896 | AO129: 1520.42 | AP129: 1888 | AQ129: 1463.4 | AR129: 2632 | AS129: 2031.36 | AT129: 2285 | AU129: 1786.61 | AV129: 2148 | AW129: 1676.65 | AX129: 2467 | AY129: 1984.36 | AZ129: 2841 | BA129: 2300.06 | BB129: 4295 | BC129: 3961.23 | BD129: 4352 | BE129: 3896.11 | BF129: 5100 | BG129: 4362.75 | BH129: 5197 | BI129: 4544.5 | BJ129: 3816 | BK129: 3263.12 | BL129: 2635 | BM129: 2291.37 | BN129: 2505 | BO129: 2981.28 | BP129: 2598 | BQ129: 2433.44
A130: MUNICIPIO DE PORTO ALEGRE | B130: 92.963.560/0001-60 | C130: PODER PUBLICO | D130: TRIFÁSICO | E130: AV SEN SALGADO FILHO, 2785 | F130: FAIXA VIAMAO PORTO ALEGRE | G130: 38339145 | H130: 3025 | I130: 2569.42 | J130: 2998 | K130: 2591.32 | L130: 2898 | M130: 2514.74 | N130: 2635 | O130: 2250.87 | P130: 2809 | Q130: 2357.77 | R130: 2604 | S130: 2204.45 | T130: 2764 | U130: 2305.9 | V130: 2772 | W130: 2350.04 | X130: 2619 | Y130: 2319.27 | Z130: 2511 | AA130: 2268.94 | AB130: 2654 | AC130: 2235.29 | AD130: 2190 | AE130: 1889.68 | AF130: 2207 | AG130: 1830.25 | AH130: 2317 | AI130: 1958.77 | AJ130: 1961 | AK130: 1561.81 | AL130: 2153 | AM130: 1782.09 | AN130: 2295 | AO130: 1832.07 | AP130: 2255 | AQ130: 1739.85 | AR130: 2440 | AS130: 1880.53 | AT130: 2451 | AU130: 1909.92 | AV130: 2056 | AW130: 1600.78 | AX130: 2471 | AY130: 1982.33 | AZ130: 2742 | BA130: 2186.13 | BB130: 2530 | BC130: 2065.63 | BD130: 2800 | BE130: 2681.61 | BF130: 2373 | BG130: 2035.09 | BH130: 2866 | BI130: 2509.3 | BJ130: 3210 | BK130: 2741.31 | BL130: 3098 | BM130: 2585.8 | BN130: 3221 | BO130: 2854.66 | BP130: 3258 | BQ130: 2912.95
A131: MUNICIPIO DE PORTO ALEGRE | B131: 92.963.560/0001-60 | C131: PODER PUBLICO | D131: TRIFÁSICO | E131: ACS N3, 20 - BL GDRES-5ÂªUNIDADE | F131: RESTINGA-QUINTA UNIDADE VICINAL | G131: 38840821 | H131: 3006 | I131: 2557.46 | J131: 2844 | K131: 2463.11 | L131: 2122 | M131: 1849.71 | N131: 2225 | O131: 1907.22 | P131: 1340 | Q131: 1155.55 | R131: 2149 | S131: 1786.62 | T131: 1427 | U131: 1229.08 | V131: 1951 | W131: 1714.67 | X131: 1366 | Y131: 746.76 | Z131: 1439 | AA131: 1209.93 | AB131: 1710 | AC131: 1483.25 | AD131: 1966 | AE131: 1582.05 | AF131: 2164 | AG131: 1800.98 | AH131: 1616 | AI131: 1253.39 | AJ131: 1777 | AK131: 1420.85 | AL131: 1235 | AM131: 1033.15 | AN131: 937 | AO131: 761.54 | AP131: 1195 | AQ131: 933.61 | AR131: 1799 | AS131: 1394.82 | AT131: 1388 | AU131: 1090.5 | AV131: 1292 | AW131: 1016.83 | AX131: 1193 | AY131: 947.07 | AZ131: 1405 | BA131: 1145.56 | BB131: 2115 | BC131: 1958.09 | BD131: 2143 | BE131: 1936.03 | BF131: 2143 | BG131: 1846.73 | BH131: 2326 | BI131: 2046.82 | BJ131: 1975 | BK131: 1700.09 | BL131: 1358 | BM131: 1191.4 | BN131: 1440 | BO131: 1302.71 | BP131: 1917 | BQ131: 1797.64
A132: MUNICIPIO DE PORTO ALEGRE | B132: 92.963.560/0001-60 | C132: PODER PUBLICO | D132: TRIFÁSICO | E132: RUA FRANCISCO PINTO DA FONTOURA, 341 - BL GDNEB-SARAND.I | F132: SARANDI | G132: 40296091 | H132: 2967 | I132: 2524.55 | J132: 3022 | K132: 2543.49 | L132: 1581 | M132: 1363.35 | N132: 1811 | O132: 1556.06 | P132: 1317 | Q132: 1135.44 | R132: 1211 | S132: 1023.03 | T132: 1925 | U132: 1648.85 | V132: 1710 | W132: 1504.95 | X132: 1431 | Y132: 1282.94 | Z132: 1489 | AA132: 1316.17 | AB132: 1821 | AC132: 1582.88 | AD132: 2497 | AE132: 2006.88 | AF132: 2648 | AG132: 2198.85 | AH132: 2698 | AI132: 2093.59 | AJ132: 2544 | AK132: 1986.82 | AL132: 1833 | AM132: 1523.68 | AN132: 1362 | AO132: 1097.86 | AP132: 1365 | AQ132: 1063.58 | AR132: 1808 | AS132: 1401.67 | AT132: 1645 | AU132: 1292.07 | AV132: 1345 | AW132: 1057.66 | AX132: 1532 | AY132: 1219.87 | AZ132: 1889 | BA132: 1488.84 | BB132: 2807 | BC132: 2577.36 | BD132: 3088 | BE132: 2806.94 | BF132: 2890 | BG132: 2452.83 | BH132: 3193 | BI132: 2801.1 | BJ132: 2063 | BK132: 1774.79 | BL132: 2528 | BM132: 2189.86 | BN132: 2198 | BO132: 1972.08 | BP132: 2667 | BQ132: 2485.47
A133: MUNICIPIO DE PORTO ALEGRE | B133: 92.963.560/0001-60 | C133: PODER PUBLICO | D133: TRIFÁSICO | E133: AV MACEDONIA, 750 - BL GDRES-MACEDONIA | F133: RESTINGA | G133: 24257656 | H133: 2931 | I133: 2494.15 | J133: 3418 | K133: 2867.78 | L133: 2567 | M133: 2233.41 | N133: 2137 | O133: 1832.56 | P133: 1465 | Q133: 1259.6 | R133: 1672 | S133: 1407.07 | T133: 2829 | U133: 2410.66 | V133: 2455 | W133: 2157.27 | X133: 2023 | Y133: 1803.59 | Z133: 1682 | AA133: 1486.08 | AB133: 2264 | AC133: 1962.6 | AD133: 2971 | AE133: 2388.58 | AF133: 3361 | AG133: 2784.98 | AH133: 4649 | AI133: 3782.84 | AJ133: 3629 | AK133: 2879.63 | AL133: 1632 | AM133: 1358.81 | AN133: 1334 | AO133: 1075.71 | AP133: 1205 | AQ133: 941.26 | AR133: 1549 | AS133: 1203.75 | AT133: 1680 | AU133: 6684.78 | AV133: 1805 | AW133: 1412.25 | AX133: 1901 | AY133: 1515.72 | AZ133: 2380 | BA133: 1857.72 | BB133: 3679 | BC133: 3357.64 | BD133: 3650 | BE133: 3327.01 | BF133: 3956 | BG133: 3276.86 | BH133: 3815 | BI133: 3342.21 | BJ133: 2654 | BK133: 2268.77 | BL133: 2319 | BM133: 2005.7 | BN133: 2408 | BO133: 2155.49 | BP133: 2847 | BQ133: 2645.14
A134: MUNICIPIO DE PORTO ALEGRE | B134: 92.963.560/0001-60 | C134: PODER PUBLICO | D134: TRIFÁSICO | E134: AV MERIDIONAL, 162 | F134: RESTINGA | G134: 32289111 | H134: 2813 | I134: 2394.56 | J134: 3005 | K134: 2677.36 | L134: 3997 | M134: 3466.41 | N134: 4781 | O134: 4075.07 | P134: 4365 | Q134: 3707 | R134: 3773 | S134: 3152.77 | T134: 4022 | U134: 3406.54 | V134: 3605 | W134: 3151.85 | X134: 4012 | Y134: 3552.81 | Z134: 3434 | AA134: 3015.43 | AB134: 3466 | AC134: 3079.29 | AD134: 3577 | AE134: 2884.18 | AF134: 1545 | AG134: 1292.13 | AH134: 2693 | AI134: 2267.29 | AJ134: 3688 | AK134: 2927.28 | AL134: 2097 | AM134: 1740.25 | AN134: 1938 | AO134: 1553.66 | AP134: 2071 | AQ134: 1603.31 | AR134: 1876 | AS134: 1453.64 | AT134: 1702 | AU134: 1336.11 | AV134: 2024 | AW134: 1581.07 | AX134: 2029 | AY134: 1635.75 | AZ134: 2175 | BA134: 1765.81 | BB134: 2125 | BC134: 1943.85 | BD134: 1459 | BE134: 1347.63 | BF134: 1725 | BG134: 1491.07 | BH134: 2119 | BI134: 1866.76 | BJ134: 1908 | BK134: 1643.2 | BL134: 3008 | BM134: 2594.91 | BN134: 2018 | BO134: 1812.8 | BP134: 2014 | BQ134: 1884.08
A135: MUNICIPIO DE PORTO ALEGRE | B135: 92.963.560/0001-60 | C135: PODER PUBLICO | D135: TRIFÁSICO | E135: ACS I-S. QUADRA DOIS, 2306 - AP 00050 | F135: SEGUN.UNID.VICINAL-VILA NOVA RESTINGA | G135: 24256820 | H135: 2803 | I135: 2415.43 | J135: 2569 | K135: 2228.55 | L135: 2412 | M135: 2101.41 | N135: 2180 | O135: 1870.69 | P135: 1660 | Q135: 1468.27 | R135: 1654 | S135: 1393.79 | T135: 1751 | U135: 1502.14 | V135: 1621 | W135: 1434.36 | X135: 1621 | Y135: 1451.7 | Z135: 1564 | AA135: 1413.65 | AB135: 1895 | AC135: 1647.22 | AD135: 2326 | AE135: 462.79 | AF135: 2593 | AG135: 2195.48 | AH135: 2566 | AI135: 2139.43 | AJ135: 2279 | AK135: 1818.22 | AL135: 1625 | AM135: 1397.76 | AN135: 1703 | AO135: 1408.44 | AP135: 1748 | AQ135: 1385.24 | AR135: 1869 | AS135: 1477.47 | AT135: 2218 | AU135: 1741.18 | AV135: 2014 | AW135: 1604.65 | AX135: 1983 | AY135: 1622.09 | AZ135: 2036 | BA135: 1597.15 | BB135: 2794 | BC135: 2591.76 | BD135: 3026 | BE135: 2752.95 | BF135: 2851 | BG135: 2389.86 | BH135: 2743 | BI135: 2625.07 | BJ135: 2812 | BK135: 2618.94 | BL135: 2260 | BM135: 2009.2 | BN135: 2372 | BO135: 2217.04 | BP135: 2425 | BQ135: 2311.86
A136: MUNICIPIO DE PORTO ALEGRE | B136: 92.963.560/0001-60 | C136: PODER PUBLICO | D136: TRIFÁSICO | E136: RUA PAPA PIO XII, 205 | F136: PASSO DAS PEDRAS | G136: 62502701 | H136: 2772 | I136: 2361.58 | J136: 4506 | K136: 3921.71 | L136: 3516 | M136: 3104.9 | N136: 2120 | O136: 1819.81 | P136: 2312 | Q136: 1964.77 | R136: 2213 | S136: 1865.59 | T136: 2405 | U136: 2076.59 | V136: 2184 | W136: 1900.1 | X136: 2032 | Y136: 1811.5 | Z136: 1877 | AA136: 1677.37 | AB136: 1829 | AC136: 1584.23 | AD136: 1529 | AE136: 0 | AF136: 2914 | AG136: 2004.62 | AH136: 4526 | AI136: 3709.43 | AJ136: 3533 | AK136: 2805.08 | AL136: 1968 | AM136: 1687.2 | AN136: 1741 | AO136: 1397.78 | AP136: 1990 | AQ136: 1541.38 | AR136: 1740 | AS136: 1349.73 | AT136: 1668 | AU136: 1309.85 | AV136: 1543 | AW136: 1210.29 | AX136: 1465 | AY136: 1213.54 | AZ136: 1306 | BA136: 1054.57 | BB136: 1300 | BC136: 1198.88 | BD136: 1334 | BE136: 1254.73 | BF136: 1305 | BG136: 1133.7 | BH136: 1337 | BI136: 1186.45 | BJ136: 1408 | BK136: 1218.69 | BL136: 2301 | BM136: 1970.12 | BN136: 2625 | BO136: 2328.83 | BP136: 2317 | BQ136: 2178.99
A137: MUNICIPIO DE PORTO ALEGRE | B137: 92.963.560/0001-60 | C137: PODER PUBLICO | D137: TRIFÁSICO | E137: RUA JAIME TOLPOLAR, 210 - BL GDNHNI-FRADVIZE | F137: FARRAPOS | G137: 61400424 | H137: 2727 | I137: 2321.96 | J137: 2400 | K137: 2081.73 | L137: 1849 | M137: 1614.33 | N137: 1821 | O137: 1564.56 | P137: 1238 | Q137: 1070.44 | R137: 1038 | S137: 856.05 | T137: 1489 | U137: 1282.84 | V137: 1364 | W137: 1217.93 | X137: 1120 | Y137: 1009.45 | Z137: 1251 | AA137: 1105.84 | AB137: 1759 | AC137: 1531.68 | AD137: 2263 | AE137: 1814.1 | AF137: 2378 | AG137: 1976.92 | AH137: 2116 | AI137: 1724.9 | AJ137: 2189 | AK137: 1745.63 | AL137: 1546 | AM137: 1288.26 | AN137: 1147 | AO137: 927.71 | AP137: 1104 | AQ137: 864.06 | AR137: 1457 | AS137: 1133.46 | AT137: 1287 | AU137: 1015.44 | AV137: 1185 | AW137: 934.35 | AX137: 1234 | AY137: 988.7 | AZ137: 1531 | BA137: 1249.15 | BB137: 1939 | BC137: 1802.41 | BD137: 2268 | BE137: 2041.59 | BF137: 2364 | BG137: 2034.76 | BH137: 2464 | BI137: 2166.88 | BJ137: 1943 | BK137: 1672.92 | BL137: 1303 | BM137: 1145.9 | BN137: 1133 | BO137: 1354.54 | BP137: 1384 | BQ137: 1310.05
A138: MUNICIPIO DE PORTO ALEGRE | B138: 92.963.560/0001-60 | C138: PODER PUBLICO | D138: TRIFÁSICO | E138: RUA DONA TEODORA, 1040 - BL GDNHNI-DIRPESTA | F138: VIL FARRAPOS-DONA TEODORA | G138: 38055872 | H138: 2678 | I138: 2280.58 | J138: 2596 | K138: 2250.08 | L138: 5700 | M138: 4934.79 | N138: 2759 | O138: 2360.13 | P138: 1967 | Q138: 1685.89 | R138: 1585 | S138: 1331.97 | T138: 2213 | U138: 1893.91 | V138: 2049 | W138: 1810.47 | X138: 1451 | Y138: 1300.54 | Z138: 1820 | AA138: 1600.95 | AB138: 2484 | AC138: 2153.63 | AD138: 2528 | AE138: 2027.98 | AF138: 5306 | AG138: 4290.23 | AH138: 4845 | AI138: 3917.58 | AJ138: 4414 | AK138: 3422.1 | AL138: 2653 | AM138: 2196.33 | AN138: 1820 | AO138: 1460.27 | AP138: 2764 | AQ138: 2133.07 | AR138: 2862 | AS138: 2207.11 | AT138: 388 | AU138: 320.75 | AV138: 2155 | AW138: 1682.06 | AX138: 2469 | AY138: 1976.99 | AZ138: 3397 | BA138: 2740.01 | BB138: 4376 | BC138: 4022.53 | BD138: 3121 | BE138: 2808.97 | BF138: 2939 | BG138: 2524.02 | BH138: 9307 | BI138: 8120.03 | BJ138: 3188 | BK138: 2729.94 | BL138: 3283 | BM138: 2844.24 | BN138: 3354 | BO138: 3706.59 | BP138: 1788 | BQ138: 1678.66
A139: MUNICIPIO DE PORTO ALEGRE | B139: 92.963.560/0001-60 | C139: PODER PUBLICO | D139: TRIFÁSICO | E139: RUA ALVARO DIFINI, 480 | F139: VILA NOVA RESTINGA | G139: 63471477 | H139: 2669 | I139: 2273 | J139: 1981 | K139: 1829.1 | L139: 2156 | M139: 1879.05 | N139: 2817 | O139: 2409.32 | P139: 2260 | Q139: 1931.13 | R139: 2407 | S139: 2016.81 | T139: 2347 | U139: 2003.68 | V139: 2357 | W139: 2072.12 | X139: 2453 | Y139: 2181.78 | Z139: 2612 | AA139: 2295.53 | AB139: 2765 | AC139: 2440.53 | AD139: 2609 | AE139: 2100.21 | AF139: 2135 | AG139: 1777.15 | AH139: 1557 | AI139: 1326.02 | AJ139: 2499 | AK139: 2033.89 | AL139: 1532 | AM139: 1302.37 | AN139: 1430 | AO139: 1151.67 | AP139: 1351 | AQ139: 1052.88 | AR139: 1362 | AS139: 1060.84 | AT139: 2055 | AU139: 1608.88 | AV139: 2030 | AW139: 1585.69 | AX139: 1995 | AY139: 1594.23 | AZ139: 100 | BA139: 34.28 | BB139: 100 | BC139: 118.23 | BD139: 100 | BE139: 112.52 | BF139: 100 | BG139: 38.82 | BH139: 100 | BI139: 110.3 | BJ139: 1021 | BK139: 887.45 | BL139: 979 | BM139: 865.97 | BN139: 941 | BO139: 860.63 | BP139: 907 | BQ139: 865.99
A140: MUNICIPIO DE PORTO ALEGRE | B140: 92.963.560/0001-60 | C140: PODER PUBLICO | D140: TRIFÁSICO | E140: RUA NAZARETH, 570 - BL GDLENO-VLJARDIM | F140: VIL BOM JESUS | G140: 53579003 | H140: 2661 | I140: 2266.26 | J140: 2503 | K140: 2170.2 | L140: 2211 | M140: 1926.46 | N140: 1833 | O140: 1574.73 | P140: 1435 | Q140: 1228.57 | R140: 1431 | S140: 1212.02 | T140: 1804 | U140: 1535.7 | V140: 1325 | W140: 1164 | X140: 1494 | Y140: 1338.37 | Z140: 1502 | AA140: 1343.9 | AB140: 1668 | AC140: 1448.88 | AD140: 2279 | AE140: 1866.46 | AF140: 3066 | AG140: 2542.48 | AH140: 3242 | AI140: 2660.45 | AJ140: 3500 | AK140: 2779.08 | AL140: 2275 | AM140: 1886.26 | AN140: 1680 | AO140: 1349.51 | AP140: 1931 | AQ140: 1496.27 | AR140: 2533 | AS140: 1955.69 | AT140: 1968 | AU140: 1541.67 | AV140: 1813 | AW140: 1418.43 | AX140: 1702 | AY140: 1375.51 | AZ140: 1844 | BA140: 1480.38 | BB140: 2855 | BC140: 2540.72 | BD140: 3469 | BE140: 3208.85 | BF140: 3228 | BG140: 2769.92 | BH140: 3293 | BI140: 2888.07 | BJ140: 3085 | BK140: 2642.5 | BL140: 2449 | BM140: 2098.27 | BN140: 2587 | BO140: 2743.1 | BP140: 2693 | BQ140: 2480.92
A141: MUNICIPIO DE PORTO ALEGRE | B141: 92.963.560/0001-60 | C141: PODER PUBLICO | D141: TRIFÁSICO | E141: RUA IRMAO ILDEFONSO LUIZ, 240 | F141: MARIO QUINTANA | G141: 64858421 | H141: 2620 | I141: 2231.63 | J141: 2096 | K141: 1837.97 | L141: 2437 | M141: 2121.32 | N141: 2331 | O141: 1997.13 | P141: 2722 | Q141: 2310.61 | R141: 2941 | S141: 2469.78 | T141: 2283 | U141: 1937.6 | V141: 2312 | W141: 2012.93 | X141: 1399 | Y141: 1254.82 | Z141: 2412 | AA141: 2144.75 | AB141: 2398 | AC141: 2072.33 | AD141: 2026 | AE141: 1661.72 | AF141: 2173 | AG141: 1808.38 | AH141: 2088 | AI141: 1720.62 | AJ141: 2403 | AK141: 1914.33 | AL141: 2283 | AM141: 1892.82 | AN141: 2475 | AO141: 1978.6 | AP141: 2340 | AQ141: 1808.94 | AR141: 2361 | AS141: 1824.26 | AT141: 2411 | AU141: 1883.98 | AV141: 2451 | AW141: 1910.22 | AX141: 2506 | AY141: 2015.4 | AZ141: 1982 | BA141: 1589.6 | BB141: 1832 | BC141: 1639.99 | BD141: 2014 | BE141: 1871.57 | BF141: 2056 | BG141: 1454.52 | BH141: 1905 | BI141: 1680.57 | BJ141: 2093 | BK141: 1800.27 | BL141: 2381 | BM141: 2040.72 | BN141: 2272 | BO141: 2021.56 | BP141: 2306 | BQ141: 2128.62
A142: MUNICIPIO DE PORTO ALEGRE | B142: 92.963.560/0001-60 | C142: PODER PUBLICO | D142: TRIFÁSICO | E142: RUA FREDERICO MENTZ, 857 - AP 00045 | F142: NAVEGANTES | G142: 58232940 | H142: 2609 | I142: 2224.01 | J142: 2583 | K142: 2240.57 | L142: 2496 | M142: 2173.85 | N142: 2656 | O142: 2274.42 | P142: 2275 | Q142: 2290.09 | R142: 2280 | S142: 1908.87 | T142: 2594 | U142: 2217.8 | V142: 2528 | W142: 2229.6 | X142: 2059 | Y142: 1839.86 | Z142: 2234 | AA142: 1961.79 | AB142: 2031 | AC142: 1767 | AD142: 2367 | AE142: 1901.87 | AF142: 2347 | AG142: 1953.09 | AH142: 2309 | AI142: 1883.67 | AJ142: 2348 | AK142: 1872.62 | AL142: 1400 | AM142: 1170.22 | AN142: 1576 | AO142: 1268.94 | AP142: 1394 | AQ142: 1087.47 | AR142: 1398 | AS142: 1128.51 | AT142: 1230 | AU142: 995.9 | AV142: 1303 | AW142: 1027.04 | AX142: 1093 | AY142: 892.54 | AZ142: 1295 | BA142: 1059.22 | BB142: 1455 | BC142: 1438.06 | BD142: 1341 | BE142: 1221.95 | BF142: 1371 | BG142: 1189.87 | BH142: 998 | BI142: 2983.77 | BJ142: 427 | BK142: 385.85 | BL142: 292 | BM142: 303.86 | BN142: 392 | BO142: 382.94 | BP142: 669 | BQ142: 646.44
A143: MUNICIPIO DE PORTO ALEGRE | B143: 92.963.560/0001-60 | C143: PODER PUBLICO | D143: TRIFÁSICO | E143: RUA COLINA, 160 - BL GDSCS-CAMPONOVO | F143: ABERTA MORROS | G143: 36518166 | H143: 2603 | I143: 2217.28 | J143: 3229 | K143: 2729.87 | L143: 2351 | M143: 2032.96 | N143: 2366 | O143: 2026.8 | P143: 1927 | Q143: 1572.62 | R143: 1381 | S143: 1178.21 | T143: 1493 | U143: 1261.27 | V143: 1575 | W143: 1358.7 | X143: 1518 | Y143: 1357.39 | Z143: 1436 | AA143: 1303.97 | AB143: 1423 | AC143: 1218.58 | AD143: 1864 | AE143: 1605.15 | AF143: 2366 | AG143: 1967.04 | AH143: 3414 | AI143: 2817.04 | AJ143: 3338 | AK143: 2651.38 | AL143: 3516 | AM143: 2904.24 | AN143: 1529 | AO143: 1230.01 | AP143: 1582 | AQ143: 1229.47 | AR143: 1676 | AS143: 1300.82 | AT143: 2069 | AU143: 1619.7 | AV143: 1804 | AW143: 1411.47 | AX143: 1515 | AY143: 1226.69 | AZ143: 1558 | BA143: 1224.2 | BB143: 2351 | BC143: 1971.1 | BD143: 2705 | BE143: 2582.85 | BF143: 3182 | BG143: 2730.79 | BH143: 3453 | BI143: 3027.27 | BJ143: 3434 | BK143: 2938.8 | BL143: 2256 | BM143: 1861.67 | BN143: 2008 | BO143: 1768.56 | BP143: 2091 | BQ143: 1896.46
A144: MUNICIPIO DE PORTO ALEGRE | B144: 92.963.560/0001-60 | C144: PODER PUBLICO | D144: TRIFÁSICO | E144: RUA FREDERICO MENTZ, 857 - AP 00220 | F144: NAVEGANTES | G144: 45827761 | H144: 2597 | I144: 2213.87 | J144: 2486 | K144: 2157.25 | L144: 2503 | M144: 2179.88 | N144: 2604 | O144: 2230.32 | P144: 2725 | Q144: 2665.91 | R144: 1793 | S144: 1505.79 | T144: 833 | U144: 728.29 | V144: 297 | W144: 284.98 | X144: 640 | Y144: 591.88 | Z144: 810 | AA144: 726.39 | AB144: 1270 | AC144: 1114.7 | AD144: 1787 | AE144: 1441.64 | AF144: 1695 | AG144: 1417.08 | AH144: 1620 | AI144: 1328.08 | AJ144: 1548 | AK144: 1241.98 | AL144: 1469 | AM144: 1226.82 | AN144: 1374 | AO144: 1143.06 | AP144: 1261 | AQ144: 1018.37 | AR144: 100 | AS144: 128.37 | AT144: 100 | AU144: 120.57 | AV144: 100 | AW144: 99.76 | AX144: 100 | AY144: 102.27 | AZ144: 100 | BA144: 102.72 | BB144: 100 | BC144: 156.21 | BD144: 100 | BE144: 124.01 | BF144: 100 | BG144: 112.61 | BH144: 538 | BI144: 495 | BJ144: 454 | BK144: 408.75 | BL144: 369 | BM144: 357.46 | BN144: 285 | BO144: 288.67 | BP144: 204 | BQ144: 217.49
A145: MUNICIPIO DE PORTO ALEGRE | B145: 92.963.560/0001-60 | C145: PODER PUBLICO | D145: TRIFÁSICO | E145: AV BORGES DE MEDEIROS, 2713 - AP 00001 | F145: CENTRO | G145: 42911729 | H145: 2591 | I145: 2208.69 | J145: 3749 | K145: 3242.18 | L145: 2248 | M145: 2009.74 | N145: 2039 | O145: 1751.1 | P145: 1628 | Q145: 1422.35 | R145: 1259 | S145: 1078.17 | T145: 1279 | U145: 1111.61 | V145: 1754 | W145: 1501.58 | X145: 1920 | Y145: 1713 | Z145: 1341 | AA145: 1225.27 | AB145: 1578 | AC145: 1344.01 | AD145: 1667 | AE145: 1448.27 | AF145: 2496 | AG145: 729.91 | AH145: 2899 | AI145: 2404.7 | AJ145: 2056 | AK145: 1689.48 | AL145: 1826 | AM145: 1574.51 | AN145: 904 | AO145: 735.43 | AP145: 1271 | AQ145: 991.72 | AR145: 1749 | AS145: 1356.59 | AT145: 1688 | AU145: 1325.29 | AV145: 1783 | AW145: 1395.3 | AX145: 1332 | AY145: 1081.06 | AZ145: 1532 | BA145: 1261.84 | BB145: 1767 | BC145: 1458.45 | BD145: 1775 | BE145: 1713.11 | BF145: 1715 | BG145: 1482.56 | BH145: 100 | BI145: 110.3 | BJ145: 1454 | BK145: 1294.3 | BL145: 1423 | BM145: 1205.77 | BN145: 1466 | BO145: 1293.31 | BP145: 1482 | BQ145: 1373.19
A146: MUNICIPIO DE PORTO ALEGRE | B146: 92.963.560/0001-60 | C146: PODER PUBLICO | D146: TRIFÁSICO | E146: RUA CLAUDIO MANOEL DA COSTA, 300 | F146: JARDIM ITU SABARA | G146: 16044002 | H146: 2570 | I146: 2189.43 | J146: 1920 | K146: 1581.41 | L146: 1333 | M146: 1169.42 | N146: 2083 | O146: 1778.05 | P146: 2005 | Q146: 1698.65 | R146: 2006 | S146: 1701.3 | T146: 2017 | U146: 1699.96 | V146: 1913 | W146: 1648.31 | X146: 2178 | Y146: 1939.92 | Z146: 2073 | AA146: 1870.1 | AB146: 2080 | AC146: 1750.37 | AD146: 2237 | AE146: 1914.95 | AF146: 2141 | AG146: 1782.09 | AH146: 1397 | AI146: 1202.48 | AJ146: 1802 | AK146: 1440.57 | AL146: 1628 | AM146: 1381.93 | AN146: 697 | AO146: 571.62 | AP146: 635 | AQ146: 505.51 | AR146: 630 | AS146: 501.48 | AT146: 454 | AU146: 383.43 | AV146: 543 | AW146: 427.05 | AX146: 508 | AY146: 444.57 | AZ146: 925 | BA146: 761.68 | BB146: 1105 | BC146: 949.91 | BD146: 778 | BE146: 757.47 | BF146: 787 | BG146: 692.94 | BH146: 818 | BI146: 734.5 | BJ146: 797 | BK146: 762.52 | BL146: 764 | BM146: 679.38 | BN146: 935 | BO146: 839.31 | BP146: 1265 | BQ146: 1160.95
A147: MUNICIPIO DE PORTO ALEGRE | B147: 92.963.560/0001-60 | C147: PODER PUBLICO | D147: TRIFÁSICO | E147: RUA ALBERTO SILVA, 1830 - BL GDNHNI-IPIRANGA | F147: VILA IPIRANGA | G147: 626104 | H147: 2477 | I147: 2110.92 | J147: 2731 | K147: 2366.07 | L147: 2099 | M147: 1829.9 | N147: 1614 | O147: 1389 | P147: 1198 | Q147: 1025.05 | R147: 921 | S147: 790.35 | T147: 1777 | U147: 1503.66 | V147: 1306 | W147: 1136.32 | X147: 1421 | Y147: 1274.17 | Z147: 1047 | AA147: 952.1 | AB147: 1159 | AC147: 1003.6 | AD147: 1925 | AE147: 1626.82 | AF147: 2591 | AG147: 2152.01 | AH147: 2850 | AI147: 2354.07 | AJ147: 2349 | AK147: 1871.74 | AL147: 2082 | AM147: 1727.93 | AN147: 990 | AO147: 803.5 | AP147: 1223 | AQ147: 955.02 | AR147: 1722 | AS147: 1335.97 | AT147: 1769 | AU147: 1387.88 | AV147: 1513 | AW147: 1187.17 | AX147: 1060 | AY147: 864.58 | AZ147: 1228 | BA147: 992.84 | BB147: 2126 | BC147: 1824.06 | BD147: 2160 | BE147: 2043.22 | BF147: 2428 | BG147: 2089.2 | BH147: 2559 | BI147: 2249.54 | BJ147: 2530 | BK147: 2171.29 | BL147: 1669 | BM147: 1424.21 | BN147: 1219 | BO147: 1088.53 | BP147: 1480 | BQ147: 0
A148: MUNICIPIO DE PORTO ALEGRE | B148: 92.963.560/0001-60 | C148: PODER PUBLICO | D148: TRIFÁSICO | E148: AV PRESIDENTE VARGAS, 396 - BL GDNHNI-ILHAPINT | F148: ARQUIPELAGO | G148: 45463913 | H148: 2429 | I148: 2069.32 | J148: 2602 | K148: 2221.23 | L148: 2038 | M148: 1777.31 | N148: 1699 | O148: 1461.1 | P148: 1235 | Q148: 1054.77 | R148: 1069 | S148: 916 | T148: 1371 | U148: 1162.58 | V148: 1445 | W148: 1251.03 | X148: 1346 | Y148: 1203.62 | Z148: 1185 | AA148: 1069.21 | AB148: 1338 | AC148: 1130.68 | AD148: 1839 | AE148: 1538.2 | AF148: 2518 | AG148: 2090.78 | AH148: 2891 | AI148: 2319.46 | AJ148: 2317 | AK148: 1846.51 | AL148: 2503 | AM148: 2073.28 | AN148: 1121 | AO148: 907.15 | AP148: 1005 | AQ148: 788.38 | AR148: 1132 | AS148: 885.1 | AT148: 1720 | AU148: 1342.69 | AV148: 1086 | AW148: 858.05 | AX148: 1075 | AY148: 876.5 | AZ148: 1225 | BA148: 990.46 | BB148: 1728 | BC148: 1470.27 | BD148: 2705 | BE148: 2575.92 | BF148: 2827 | BG148: 2389.16 | BH148: 3016 | BI148: 2647.11 | BJ148: 2613 | BK148: 2241.78 | BL148: 1829 | BM148: 1515.46 | BN148: 2338 | BO148: 2058.31 | BP148: 2497 | BQ148: 2675.42
A149: MUNICIPIO DE PORTO ALEGRE | B149: 92.963.560/0001-60 | C149: PODER PUBLICO | D149: TRIFÁSICO | E149: RUA DONA OTILIA, 497 | F149: SANTA TERESA | G149: 31662277 | H149: 2421 | I149: 2063.65 | J149: 1081 | K149: 948.66 | L149: 2390 | M149: 2080.82 | N149: 2359 | O149: 2020.87 | P149: 2278 | Q149: 1932.84 | R149: 2050 | S149: 1643.81 | T149: 2141 | U149: 1810.39 | V149: 2046 | W149: 1765.15 | X149: 2140 | Y149: 1906.48 | Z149: 2429 | AA149: 2170.03 | AB149: 2333 | AC149: 2003.7 | AD149: 2870 | AE149: 2396.66 | AF149: 2057 | AG149: 1713.01 | AH149: 1744 | AI149: 1331.54 | AJ149: 3112 | AK149: 2473.22 | AL149: 1880 | AM149: 1594.08 | AN149: 1028 | AO149: 833.56 | AP149: 1047 | AQ149: 820.48 | AR149: 1087 | AS149: 867.79 | AT149: 976 | AU149: 792.58 | AV149: 1142 | AW149: 901.21 | AX149: 1262 | AY149: 1025.34 | AZ149: 1439 | BA149: 1142.73 | BB149: 1543 | BC149: 1331.26 | BD149: 1400 | BE149: 1332.54 | BF149: 1238 | BG149: 1072.88 | BH149: 1268 | BI149: 1157.04 | BJ149: 1184 | BK149: 1028.54 | BL149: 1579 | BM149: 1348.04 | BN149: 1759 | BO149: 1558.81 | BP149: 1928 | BQ149: 1764.09
A150: MUNICIPIO DE PORTO ALEGRE | B150: 92.963.560/0001-60 | C150: PODER PUBLICO | D150: TRIFÁSICO | E150: RUA FREDERICO MENTZ, 857 - AP 00085 | F150: NAVEGANTES | G150: 45827397 | H150: 2384 | I150: 2034.07 | J150: 1711 | K150: 1491.49 | L150: 1707 | M150: 1493.54 | N150: 1713 | O150: 1474.61 | P150: 100 | Q150: 376.93 | R150: 100 | S150: 104.49 | T150: 100 | U150: 108.31 | V150: 5281 | W150: 4629.22 | X150: 0 | Y150: 117 | Z150: 1710 | AA150: 1507.18 | AB150: 1844 | AC150: 1606.7 | AD150: 1517 | AE150: 1227.41 | AF150: 100 | AG150: 105.91 | AH150: 100 | AI150: 102.36 | AJ150: 1189 | AK150: 959 | AL150: 1146 | AM150: 961.87 | AN150: 8203 | AO150: 6539.19 | AP150: 1774 | AQ150: 1403.39 | AR150: 1914 | AS150: 1664.33 | AT150: 2065 | AU150: 1647.34 | AV150: 100 | AW150: 99.76 | AX150: 100 | AY150: 102.27 | AZ150: 100 | BA150: 102.72 | BB150: 100 | BC150: 600.42 | BD150: 100 | BE150: 124.01 | BF150: 100 | BG150: 121.84 | BH150: 9744 | BI150: 8503.87 | BJ150: 999 | BK150: 871.46 | BL150: 662 | BM150: 858.7 | BN150: 661 | BO150: 632.28 | BP150: 641 | BQ150: 620.6
A151: MUNICIPIO DE PORTO ALEGRE | B151: 92.963.560/0001-60 | C151: PODER PUBLICO | D151: TRIFÁSICO | E151: RUA GIORDANO BRUNO, 335 - AP 00001 | F151: RIO BRANCO | G151: 39367606 | H151: 2369 | I151: 2019.77 | J151: 1770 | K151: 1540.55 | L151: 1451 | M151: 1316.57 | N151: 956 | O151: 830.92 | P151: 741 | Q151: 639.81 | R151: 610 | S151: 532.71 | T151: 591 | U151: 511.69 | V151: 1058 | W151: 915.56 | X151: 727 | Y151: 663.83 | Z151: 704 | AA151: 653.7 | AB151: 791 | AC151: 685.88 | AD151: 865 | AE151: 762.14 | AF151: 1373 | AG151: 464.84 | AH151: 1602 | AI151: 1353.37 | AJ151: 1107 | AK151: 917.98 | AL151: 1098 | AM151: 920.76 | AN151: 537 | AO151: 445 | AP151: 511 | AQ151: 410.72 | AR151: 593 | AS151: 473.23 | AT151: 645 | AU151: 519.35 | AV151: 533 | AW151: 431.78 | AX151: 486 | AY151: 407.72 | AZ151: 522 | BA151: 442.57 | BB151: 787 | BC151: 664.51 | BD151: 1072 | BE151: 1043.85 | BF151: 1013 | BG151: 885.25 | BH151: 1056 | BI151: 941.98 | BJ151: 924 | BK151: 878.51 | BL151: 763 | BM151: 678.05 | BN151: 586 | BO151: 533.13 | BP151: 675 | BQ151: 740.95
A152: MUNICIPIO DE PORTO ALEGRE | B152: 92.963.560/0001-60 | C152: PODER PUBLICO | D152: TRIFÁSICO | E152: PRC PEREIRA PAROBE, 131 | F152: CENTRO | G152: 51135337 | H152: 2358 | I152: 2010.48 | J152: 2414 | K152: 2093.73 | L152: 2279 | M152: 1985.11 | N152: 1994 | O152: 1711.29 | P152: 2284 | Q152: 1926.18 | R152: 2453 | S152: 2080.02 | T152: 2374 | U152: 1988.89 | V152: 2245 | W152: 1916.16 | X152: 2306 | Y152: 2052.49 | Z152: 2142 | AA152: 1943.93 | AB152: 2344 | AC152: 1984.53 | AD152: 1989 | AE152: 1723.77 | AF152: 2002 | AG152: 1667.81 | AH152: 2070 | AI152: 1722.81 | AJ152: 1836 | AK152: 1467.36 | AL152: 2097 | AM152: 1740.25 | AN152: 1978 | AO152: 1585.31 | AP152: 2052 | AQ152: 1588.77 | AR152: 2311 | AS152: 1786.04 | AT152: 2356 | AU152: 1841.47 | AV152: 2147 | AW152: 1675.88 | AX152: 2434 | AY152: 1958.09 | AZ152: 1996 | BA152: 1600.67 | BB152: 1964 | BC152: 1618.04 | BD152: 2232 | BE152: 2148.18 | BF152: 2092 | BG152: 1803.34 | BH152: 1903 | BI152: 1678.83 | BJ152: 2295 | BK152: 1971.79 | BL152: 2093 | BM152: 1761.57 | BN152: 2111 | BO152: 1848.58 | BP152: 2632 | BQ152: 2369.04
A153: MUNICIPIO DE PORTO ALEGRE | B153: 92.963.560/0001-60 | C153: PODER PUBLICO | D153: TRIFÁSICO | E153: RUA AMAPA, 2300 | F153: VILA NOVA | G153: 63637588 | H153: 2344 | I153: 2626.91 | J153: 2583 | K153: 2897.54 | L153: 2439 | M153: 2725.26 | N153: 2338 | O153: 2712.24 | P153: 2580 | Q153: 2843.33 | R153: 2874 | S153: 3037.96 | T153: 2466 | U153: 2724.27 | V153: 2939 | W153: 3107.49 | X153: 2976 | Y153: 3219.71 | Z153: 2524 | AA153: 2963.48 | AB153: 2547 | AC153: 2803.47 | AD153: 2746 | AE153: 3016.22 | AF153: 2605 | AG153: 2918.63 | AH153: 2643 | AI153: 2910.54 | AJ153: 2469 | AK153: 2588.39 | AL153: 2763 | AM153: 3053.13 | AN153: 2989 | AO153: 2989.53 | AP153: 2756 | AQ153: 2784.81 | AR153: 2622 | AS153: 2670.25 | AT153: 2719 | AU153: 2792.78 | AV153: 2427 | AW153: 2564.01 | AX153: 2644 | AY153: 2569.63 | AZ153: 2498 | BA153: 2615.84 | BB153: 2361 | BC153: 2673.97 | BD153: 2412 | BE153: 3236.87 | BF153: 2449 | BG153: 2877.78 | BH153: 2055 | BI153: 2702.99 | BJ153: 2303 | BK153: 2843.63 | BL153: 2171 | BM153: 2590.99 | BN153: 2322 | BO153: 2623.25 | BP153: 2397 | BQ153: 2643.46
A154: MUNICIPIO DE PORTO ALEGRE | B154: 92.963.560/0001-60 | C154: PODER PUBLICO | D154: TRIFÁSICO | E154: RUA ALBERTO GALIA, 233 - BL GDLENO-SAFIRANV | F154: MARIO QUINTANA | G154: 40925421 | H154: 2343 | I154: 1997.83 | J154: 2125 | K154: 1833.62 | L154: 1533 | M154: 1271.96 | N154: 1639 | O154: 1410.19 | P154: 1258 | Q154: 1063.67 | R154: 1151 | S154: 972.16 | T154: 1611 | U154: 1386.14 | V154: 1448 | W154: 1262.47 | X154: 1193 | Y154: 1073.66 | Z154: 1126 | AA154: 997.55 | AB154: 1547 | AC154: 1350.02 | AD154: 1574 | AE154: 1253.58 | AF154: 2765 | AG154: 2295.05 | AH154: 1774 | AI154: 1432.12 | AJ154: 1577 | AK154: 1263.18 | AL154: 1773 | AM154: 1474.46 | AN154: 1187 | AO154: 959.36 | AP154: 1174 | AQ154: 917.58 | AR154: 1705 | AS154: 1322.98 | AT154: 1465 | AU154: 1152.99 | AV154: 1572 | AW154: 1232.66 | AX154: 790 | AY154: 649.68 | AZ154: 1575 | BA154: 1284.45 | BB154: 1434 | BC154: 1340.53 | BD154: 2155 | BE154: 1941 | BF154: 2078 | BG154: 1791.42 | BH154: 2016 | BI154: 1777.14 | BJ154: 1665 | BK154: 1420.62 | BL154: 1465 | BM154: 1294.62 | BN154: 1460 | BO154: 1598.61 | BP154: 1564 | BQ154: 1476.59
A155: MUNICIPIO DE PORTO ALEGRE | B155: 92.963.560/0001-60 | C155: PODER PUBLICO | D155: TRIFÁSICO | E155: RUA MARCILIO DIAS, 1390 | F155: MENINO DEUS | G155: 24591467 | H155: 2337 | I155: 2977.25 | J155: 2287 | K155: 3049.26 | L155: 1719 | M155: 2592.36 | N155: 1397 | O155: 2340.15 | P155: 1073 | Q155: 2155.53 | R155: 973 | S155: 1993.58 | T155: 1496 | U155: 2379.5 | V155: 2870 | W155: 3448.13 | X155: 2493 | Y155: 3239.46 | Z155: 1589 | AA155: 2637.45 | AB155: 1806 | AC155: 2643.04 | AD155: 2198 | AE155: 251.03 | AF155: 3142 | AG155: 3576.93 | AH155: 3057 | AI155: 3554.74 | AJ155: 1868 | AK155: 2708.08 | AL155: 1221 | AM155: 2410.8 | AN155: 967 | AO155: 2178.63 | AP155: 1161 | AQ155: 2184.21 | AR155: 1781 | AS155: 2652.01 | AT155: 1712 | AU155: 2630.22 | AV155: 1104 | AW155: 2172.33 | AX155: 885 | AY155: 2103.29 | AZ155: 480 | BA155: 1803.14 | BB155: 1166 | BC155: 2377.25 | BD155: 1326 | BE155: 2874.12 | BF155: 2016 | BG155: 3082.51 | BH155: 1694 | BI155: 2979.51 | BJ155: 1703 | BK155: 2899.65 | BL155: 1325 | BM155: 2565.47 | BN155: 1120 | BO155: 2046.88 | BP155: 1235 | BQ155: 2146.31
A156: MUNICIPIO DE PORTO ALEGRE | B156: 92.963.560/0001-60 | C156: PODER PUBLICO | D156: TRIFÁSICO | E156: RUA LAVRADIO, 25 | F156: PETROPOLIS | G156: 64466540 | H156: 2335 | I156: 4207.53 | J156: 2499 | K156: 5043.59 | L156: 2429 | M156: 4414.09 | N156: 4261 | O156: 6438.59 | P156: 4102 | Q156: 6339.67 | R156: 4502 | S156: 6706.69 | T156: 4304 | U156: 6202.85 | V156: 3364 | W156: 5234.15 | X156: 3568 | Y156: 5754.47 | Z156: 3320 | AA156: 5481.2 | AB156: 3778 | AC156: 5841.48 | AD156: 3397 | AE156: 0 | AF156: 1861 | AG156: 3446.4 | AH156: 1421 | AI156: 3489.93 | AJ156: 1468 | AK156: 3842.38 | AL156: 147 | AM156: 2638.98 | AN156: 184 | AO156: 2457.04 | AP156: 148 | AQ156: 2351.85 | AR156: 124 | AS156: 2336.8 | AT156: 134 | AU156: 2371.05 | AV156: 152 | AW156: 2424.38 | AX156: 144 | AY156: 2499.65 | AZ156: 167 | BA156: 2450.2 | BB156: 540 | BC156: 2617.82 | BD156: 279 | BE156: 2989.39 | BF156: 102 | BG156: 2736.24 | BH156: 246 | BI156: 2919.37 | BJ156: 336 | BK156: 2966.69 | BL156: 307 | BM156: 2794.68 | BN156: 418 | BO156: 2186.15 | BP156: 680 | BQ156: 2322.75
A157: MUNICIPIO DE PORTO ALEGRE | B157: 92.963.560/0001-60 | C157: PODER PUBLICO | D157: TRIFÁSICO | E157: RUA MANOEL VITORINO, 10 | F157: PARTENON | G157: 23372753 | H157: 2320 | I157: 1978.4 | J157: 2426 | K157: 1879.18 | L157: 1856 | M157: 1664.17 | N157: 1202 | O157: 1039.55 | P157: 820 | Q157: 744.74 | R157: 754 | S157: 647.3 | T157: 1024 | U157: 882.02 | V157: 801 | W157: 715.14 | X157: 827 | Y157: 751.76 | Z157: 917 | AA157: 827.9 | AB157: 904 | AC157: 797.55 | AD157: 1215 | AE157: 172.27 | AF157: 1993 | AG157: 1660.41 | AH157: 1782 | AI157: 1491.66 | AJ157: 1764 | AK157: 1212.4 | AL157: 735 | AM157: 622.99 | AN157: 621 | AO157: 511.49 | AP157: 514 | AQ157: 413.02 | AR157: 720 | AS157: 570.28 | AT157: 584 | AU157: 472.21 | AV157: 746 | AW157: 595.97 | AX157: 711 | AY157: 596.12 | AZ157: 749 | BA157: 613.73 | BB157: 1109 | BC157: 1003.4 | BD157: 1302 | BE157: 1213.47 | BF157: 1559 | BG157: 1340.18 | BH157: 1454 | BI157: 1288.22 | BJ157: 1257 | BK157: 1090.52 | BL157: 845 | BM157: 716.42 | BN157: 752 | BO157: 721.7 | BP157: 787 | BQ157: 745.76
A158: MUNICIPIO DE PORTO ALEGRE | B158: 92.963.560/0001-60 | C158: PODER PUBLICO | D158: TRIFÁSICO | E158: RUA URUGUAI, 155 - AP 01101 | F158: CENTRO | G158: 40921344 | H158: 2315 | I158: 1975.85 | J158: 2732 | K158: 2390.32 | L158: 2199 | M158: 1917.77 | N158: 2044 | O158: 1755.33 | P158: 1861 | Q158: 1578.53 | R158: 1430 | S158: 1256.25 | T158: 1484 | U158: 1255.45 | V158: 1803 | W158: 1553.5 | X158: 1605 | Y158: 1437.62 | Z158: 1417 | AA158: 1288.62 | AB158: 1224 | AC158: 1081.96 | AD158: 1407 | AE158: 1218.69 | AF158: 1790 | AG158: 413.21 | AH158: 2424 | AI158: 2041.56 | AJ158: 1719 | AK158: 1409.08 | AL158: 1478 | AM158: 1234.11 | AN158: 1039 | AO158: 872.05 | AP158: 1306 | AQ158: 1046.55 | AR158: 1677 | AS158: 1320.06 | AT158: 1166 | AU158: 941.42 | AV158: 1494 | AW158: 1202.08 | AX158: 1257 | AY158: 996.99 | AZ158: 1278 | BA158: 1058.37 | BB158: 1611 | BC158: 1382.27 | BD158: 1675 | BE158: 1631.65 | BF158: 2058 | BG158: 1776.11 | BH158: 1417 | BI158: 1411.34 | BJ158: 1458 | BK158: 1262.9 | BL158: 1316 | BM158: 1247.74 | BN158: 1368 | BO158: 1242.64 | BP158: 1567 | BQ158: 1473.33
A159: MUNICIPIO DE PORTO ALEGRE | B159: 92.963.560/0001-60 | C159: PODER PUBLICO | D159: TRIFÁSICO | E159: RUA JOAQUIM DE CARVALHO, 315 | F159: VIL NOVA-LOT PRQ SALOMONI | G159: 15723798 | H159: 2286 | I159: 1947.34 | J159: 1599 | K159: 1393.63 | L159: 2193 | M159: 1910.94 | N159: 2306 | O159: 1975.92 | P159: 2413 | Q159: 2041.03 | R159: 2479 | S159: 2096.43 | T159: 2487 | U159: 2092.72 | V159: 2128 | W159: 1833.45 | X159: 2451 | Y159: 2179.98 | Z159: 2486 | AA159: 2233.51 | AB159: 2855 | AC159: 2427.78 | AD159: 2308 | AE159: 1948.24 | AF159: 2023 | AG159: 1685.05 | AH159: 2178 | AI159: 1805.26 | AJ159: 1878 | AK159: 1516.18 | AL159: 2333 | AM159: 1973.77 | AN159: 2335 | AO159: 1867.83 | AP159: 323 | AQ159: 305.9 | AR159: 2149 | AS159: 1662.25 | AT159: 988 | AU159: 784.4 | AV159: 1471 | AW159: 1191.54 | AX159: 1156 | AY159: 940.96 | AZ159: 1833 | BA159: 1471.66 | BB159: 2989 | BC159: 2538.58 | BD159: 1342 | BE159: 1286.25 | BF159: 1441 | BG159: 1249.42 | BH159: 1455 | BI159: 1320.8 | BJ159: 1421 | BK159: 1257.64 | BL159: 1708 | BM159: 1454.68 | BN159: 1991 | BO159: 1758.85 | BP159: 2052 | BQ159: 1868.29
A160: MUNICIPIO DE PORTO ALEGRE | B160: 92.963.560/0001-60 | C160: PODER PUBLICO | D160: TRIFÁSICO | E160: RUA CEL RICARDO LEAL KELLETER, 51 - BL GDNEB-SAOCRIST | F160: RUBEM BERTA | G160: 35134640 | H160: 2259 | I160: 1926.91 | J160: 2484 | K160: 2153.89 | L160: 1909 | M160: 1666.07 | N160: 1655 | O160: 1423.76 | P160: 1099 | Q160: 944.94 | R160: 916 | S160: 784.45 | T160: 1282 | U160: 1094.88 | V160: 1064 | W160: 936.89 | X160: 1168 | Y160: 1051.65 | Z160: 1089 | AA160: 983.76 | AB160: 1115 | AC160: 971.85 | AD160: 1808 | AE160: 1512.33 | AF160: 2294 | AG160: 1907.85 | AH160: 2422 | AI160: 1996.1 | AJ160: 3071 | AK160: 2440.89 | AL160: 2048 | AM160: 1700.04 | AN160: 1298 | AO160: 1047.21 | AP160: 1306 | AQ160: 1018.48 | AR160: 1553 | AS160: 1206.83 | AT160: 1377 | AU160: 1084.99 | AV160: 1303 | AW160: 1025.31 | AX160: 1308 | AY160: 1061.93 | AZ160: 1706 | BA160: 1362.75 | BB160: 2285 | BC160: 2015.88 | BD160: 2858 | BE160: 2668.9 | BF160: 2990 | BG160: 2567.41 | BH160: 2875 | BI160: 2524.46 | BJ160: 1741 | BK160: 1435.22 | BL160: 1432 | BM160: 1194.44 | BN160: 1372 | BO160: 1228.68 | BP160: 1560 | BQ160: 1772.92
A161: MUNICIPIO DE PORTO ALEGRE | B161: 92.963.560/0001-60 | C161: PODER PUBLICO | D161: TRIFÁSICO | E161: RUA PAULO GOMES DE OLIVEIRA, 120 | F161: VILA ELIZABETH | G161: 24953121 | H161: 2249 | I161: 1905.72 | J161: 2566 | K161: 2283.94 | L161: 2993 | M161: 2600.74 | N161: 3361 | O161: 2870.73 | P161: 2522 | Q161: 2157.78 | R161: 2422 | S161: 2023.48 | T161: 2917 | U161: 2492 | V161: 2756 | W161: 2435.9 | X161: 2616 | Y161: 2325.1 | Z161: 2970 | AA161: 2652.28 | AB161: 2888 | AC161: 2547.46 | AD161: 2663 | AE161: 2078.31 | AF161: 1345 | AG161: 1127.71 | AH161: 3161 | AI161: 2577.33 | AJ161: 3106 | AK161: 2468.49 | AL161: 1725 | AM161: 1435.08 | AN161: 1467 | AO161: 1180.96 | AP161: 1439 | AQ161: 1120.17 | AR161: 1534 | AS161: 1192.3 | AT161: 1425 | AU161: 1122.07 | AV161: 1612 | AW161: 1263.48 | AX161: 1743 | AY161: 1408.15 | AZ161: 1788 | BA161: 1455.33 | BB161: 1873 | BC161: 1742.63 | BD161: 1372 | BE161: 1244.23 | BF161: 1654 | BG161: 1430.66 | BH161: 1711 | BI161: 1511.81 | BJ161: 1813 | BK161: 1562.55 | BL161: 2454 | BM161: 2135.71 | BN161: 2608 | BO161: 2340.41 | BP161: 2609 | BQ161: 2443.6
A162: MUNICIPIO DE PORTO ALEGRE | B162: 92.963.560/0001-60 | C162: PODER PUBLICO | D162: TRIFÁSICO | E162: RUA PAULO GOMES DE OLIVEIRA, 170 - BL GDNEB-VL ELIZAB | F162: VILA ELIZABETH | G162: 39760201 | H162: 2233 | I162: 1898.71 | J162: 1804 | K162: 1569.73 | L162: 1351 | M162: 1184.94 | N162: 1675 | O162: 1440.72 | P162: 1278 | Q162: 1104.33 | R162: 1137 | S162: 960.57 | T162: 1488 | U162: 1281.99 | V162: 1282 | W162: 1146.17 | X162: 1069 | Y162: 964.6 | Z162: 1269 | AA162: 1121.42 | AB162: 1376 | AC162: 1203.54 | AD162: 1840 | AE162: 1456.7 | AF162: 2121 | AG162: 1765.64 | AH162: 2131 | AI162: 1718.25 | AJ162: 2017 | AK162: 1610.03 | AL162: 1512 | AM162: 1260.37 | AN162: 1125 | AO162: 910.32 | AP162: 1168 | AQ162: 912.97 | AR162: 1710 | AS162: 1326.79 | AT162: 1260 | AU162: 994.56 | AV162: 1273 | AW162: 1002.18 | AX162: 1059 | AY162: 863.77 | AZ162: 1292 | BA162: 1057.41 | BB162: 886 | BC162: 838.53 | BD162: 1452 | BE162: 1315.43 | BF162: 1959 | BG162: 1690.15 | BH162: 1856 | BI162: 1637.95 | BJ162: 1368 | BK162: 1184.77 | BL162: 1061 | BM162: 937.8 | BN162: 1134 | BO162: 1032.87 | BP162: 1204 | BQ162: 1143.45
A163: MUNICIPIO DE PORTO ALEGRE | B163: 92.963.560/0001-60 | C163: PODER PUBLICO | D163: TRIFÁSICO | E163: RUA MERCADO PUBLICO, 41 - BL C | F163: CENTRO | G163: 35083816 | H163: 2219 | I163: 1893.16 | J163: 2176 | K163: 1939.6 | L163: 2290 | M163: 1994.58 | N163: 2144 | O163: 1838.51 | P163: 2266 | Q163: 1911.16 | R163: 2347 | S163: 1990.97 | T163: 2279 | U163: 1956.18 | V163: 2304 | W163: 1965.88 | X163: 2374 | Y163: 2112.27 | Z163: 2057 | AA163: 1867.71 | AB163: 2137 | AC163: 1811.42 | AD163: 1952 | AE163: 1692.14 | AF163: 2015 | AG163: 1678.51 | AH163: 1949 | AI163: 1656.97 | AJ163: 1710 | AK163: 1368.04 | AL163: 1870 | AM163: 1554.05 | AN163: 2006 | AO163: 1607.47 | AP163: 1903 | AQ163: 1474.87 | AR163: 1997 | AS163: 1546.1 | AT163: 2064 | AU163: 1615.84 | AV163: 1909 | AW163: 1492.41 | AX163: 2008 | AY163: 1619.05 | AZ163: 1861 | BA163: 1493.83 | BB163: 1792 | BC163: 1478.71 | BD163: 1939 | BE163: 1869.25 | BF163: 1705 | BG163: 1474.04 | BH163: 1554 | BI163: 1432.13 | BJ163: 1746 | BK163: 1542.97 | BL163: 1529 | BM163: 1327.43 | BN163: 1603 | BO163: 1444.3 | BP163: 1764 | BQ163: 1597.46
A164: MUNICIPIO DE PORTO ALEGRE | B164: 92.963.560/0001-60 | C164: COMERCIAL, SERVICOS, OUTRAS ATIVIDADES | D164: TRIFÁSICO | E164: RUA JAYME CYRINO MACHADO DE OLIVEIRA, 245 | F164: RUBEM BERTA | G164: 24549894 | H164: 2210 | I164: 1885.56 | J164: 1491 | K164: 1345.51 | L164: 1528 | M164: 1222.3 | N164: 2088 | O164: 1791.01 | P164: 1765 | Q164: 1508.44 | R164: 1559 | S164: 1316.13 | T164: 1575 | U164: 1345.94 | V164: 1413 | W164: 1242.31 | X164: 1387 | Y164: 964.41 | Z164: 1613 | AA164: 1436.13 | AB164: 1718 | AC164: 1495.08 | AD164: 1702 | AE164: 1388.46 | AF164: 1237 | AG164: 1038.95 | AH164: 898 | AI164: 597.43 | AJ164: 1653 | AK164: 1346.53 | AL164: 856 | AM164: 722.25 | AN164: 1448 | AO164: 1165.91 | AP164: 1422 | AQ164: 1107.16 | AR164: 1410 | AS164: 1097.54 | AT164: 100 | AU164: 120.12 | AV164: 0 | AW164: 98.03 | AX164: 1171 | AY164: 952.9 | AZ164: 1135 | BA164: 919.24 | BB164: 1086 | BC164: 996.45 | BD164: 100 | BE164: 114.31 | BF164: 0 | BG164: 0 | BH164: 0 | BI164: 0 | BJ164: 0 | BK164: 127.58 | BL164: 689 | BM164: 611.45 | BN164: 998 | BO164: 865.6 | BP164: 978 | BQ164: 924.74
A165: MUNICIPIO DE PORTO ALEGRE | B165: 92.963.560/0001-60 | C165: PODER PUBLICO | D165: TRIFÁSICO | E165: RUA DR EDUARDO CHARTIER, 542 | F165: PASSO DA AREIA | G165: 24515981 | H165: 2196 | I165: 1873.73 | J165: 2552 | K165: 2212.3 | L165: 2466 | M165: 2146.33 | N165: 2394 | O165: 2050.54 | P165: 2291 | Q165: 1932 | R165: 2068 | S165: 1756.7 | T165: 1963 | U165: 1648.38 | V165: 2568 | W165: 2188.3 | X165: 2344 | Y165: 2085.89 | Z165: 2010 | AA165: 1825.52 | AB165: 1901 | AC165: 1614.09 | AD165: 1882 | AE165: 1632.25 | AF165: 2155 | AG165: 1793.59 | AH165: 2714 | AI165: 2252.56 | AJ165: 2306 | AK165: 1832.53 | AL165: 2380 | AM165: 1972.37 | AN165: 2014 | AO165: 1613.81 | AP165: 1885 | AQ165: 1461.1 | AR165: 1990 | AS165: 1540.76 | AT165: 2208 | AU165: 1725.2 | AV165: 2003 | AW165: 1564.89 | AX165: 1733 | AY165: 1311.94 | AZ165: 1595 | BA165: 1283.28 | BB165: 1673 | BC165: 1382.3 | BD165: 1682 | BE165: 1628.25 | BF165: 1889 | BG165: 1614.3 | BH165: 1446 | BI165: 1281.27 | BJ165: 1852 | BK165: 1595.65 | BL165: 1691 | BM165: 1428.08 | BN165: 1672 | BO165: 1469.73 | BP165: 1885 | BQ165: 1705
A166: MUNICIPIO DE PORTO ALEGRE | B166: 92.963.560/0001-60 | C166: PODER PUBLICO | D166: TRIFÁSICO | E166: RUA JOAO ALFREDO, 582 - AP 00001 | F166: CIDADE BAIXA | G166: 24276308 | H166: 2193 | I166: 1872.74 | J166: 2411 | K166: 2092.81 | L166: 2492 | M166: 2170.41 | N166: 2292 | O166: 1965.68 | P166: 2455 | Q166: 2069.12 | R166: 2727 | S166: 2314.39 | T166: 2595 | U166: 2171.56 | V166: 2333 | W166: 2035.69 | X166: 2545 | Y166: 2264.31 | Z166: 2332 | AA166: 2119.05 | AB166: 2166 | AC166: 1829.5 | AD166: 2441 | AE166: 2165.78 | AF166: 2019 | AG166: 1683.42 | AH166: 2381 | AI166: 1983.34 | AJ166: 2262 | AK166: 1804.83 | AL166: 2153 | AM166: 1787.83 | AN166: 1912 | AO166: 1534.83 | AP166: 1487 | AQ166: 1158.58 | AR166: 1668 | AS166: 1296.42 | AT166: 1511 | AU166: 1190.24 | AV166: 1381 | AW166: 1085.44 | AX166: 1365 | AY166: 1107.31 | AZ166: 1312 | BA166: 1059.31 | BB166: 1347 | BC166: 1111.42 | BD166: 1606 | BE166: 1549.5 | BF166: 1769 | BG166: 1553.29 | BH166: 1596 | BI166: 1439.78 | BJ166: 1297 | BK166: 1157.57 | BL166: 1374 | BM166: 1162.56 | BN166: 1499 | BO166: 1318.89 | BP166: 1559 | BQ166: 1406.26
A167: MUNICIPIO DE PORTO ALEGRE | B167: 92.963.560/0001-60 | C167: PODER PUBLICO | D167: TRIFÁSICO | E167: AV TRAMANDAI, 351 - BL GDSCS-IPANEMA | F167: IPANEMA | G167: 24190969 | H167: 2190 | I167: 1868.68 | J167: 2455 | K167: 2128.96 | L167: 1569 | M167: 1372.93 | N167: 1369 | O167: 1181.2 | P167: 996 | Q167: 862.87 | R167: 1018 | S167: 865.16 | T167: 1575 | U167: 1349.81 | V167: 1359 | W167: 1203.39 | X167: 1181 | Y167: 1063.09 | Z167: 944 | AA167: 844.93 | AB167: 1138 | AC167: 1000.22 | AD167: 1581 | AE167: 1285.42 | AF167: 1999 | AG167: 1665.35 | AH167: 2165 | AI167: 1774.4 | AJ167: 2045 | AK167: 1632.12 | AL167: 1418 | AM167: 1183.26 | AN167: 974 | AO167: 790.83 | AP167: 1078 | AQ167: 844.2 | AR167: 1783 | AS167: 1382.58 | AT167: 1352 | AU167: 1065.66 | AV167: 1231 | AW167: 969.82 | AX167: 951 | AY167: 777.83 | AZ167: 1369 | BA167: 1109.05 | BB167: 2092 | BC167: 1914.09 | BD167: 1906 | BE167: 1753.36 | BF167: 2303 | BG167: 1982.85 | BH167: 2186 | BI167: 1925.03 | BJ167: 1758 | BK167: 1515.85 | BL167: 1032 | BM167: 906.32 | BN167: 1166 | BO167: 1056.45 | BP167: 1274 | BQ167: 1197.83
A168: MUNICIPIO DE PORTO ALEGRE | B168: 92.963.560/0001-60 | C168: PODER PUBLICO | D168: TRIFÁSICO | E168: AV GUAIBA, 100 - BL A | F168: VILA ASSUNCAO | G168: 24183962 | H168: 2171 | I168: 1907.69 | J168: 2404 | K168: 2151.88 | L168: 2279 | M168: 2063.21 | N168: 2833 | O168: 2589.81 | P168: 2484 | Q168: 2110.9 | R168: 1526 | S168: 1294.32 | T168: 2153 | U168: 1907.89 | V168: 1184 | W168: 1155.31 | X168: 1967 | Y168: 1810.49 | Z168: 2124 | AA168: 1898.09 | AB168: 1651 | AC168: 1434.08 | AD168: 2439 | AE168: 2005.5 | AF168: 1890 | AG168: 1607.95 | AH168: 1278 | AI168: 1063.48 | AJ168: 1684 | AK168: 1387.3 | AL168: 707 | AM168: 601.73 | AN168: 209 | AO168: 187.2 | AP168: 292 | AQ168: 245.04 | AR168: 305 | AS168: 254.89 | AT168: 242 | AU168: 209.67 | AV168: 252 | AW168: 216.93 | AX168: 257 | AY168: 227.21 | AZ168: 358 | BA168: 330.09 | BB168: 527 | BC168: 507.59 | BD168: 985 | BE168: 936.8 | BF168: 990 | BG168: 888.38 | BH168: 897 | BI168: 805.4 | BJ168: 290 | BK168: 271.25 | BL168: 279 | BM168: 262.9 | BN168: 269 | BO168: 264.53 | BP168: 223 | BQ168: 253.98
A169: MUNICIPIO DE PORTO ALEGRE | B169: 92.963.560/0001-60 | C169: PODER PUBLICO | D169: TRIFÁSICO | E169: RUA DOM JAIME DE BARROS CAMARA, 815 | F169: SARANDI | G169: 24550167 | H169: 2158 | I169: 1841.65 | J169: 1850 | K169: 1637.87 | L169: 1920 | M169: 1675.55 | N169: 1984 | O169: 1702.82 | P169: 1716 | Q169: 1471.62 | R169: 1730 | S169: 1504.65 | T169: 1599 | U169: 1408.06 | V169: 1758 | W169: 1551.73 | X169: 1390 | Y169: 1276.57 | Z169: 1573 | AA169: 1391.18 | AB169: 1923 | AC169: 1670.68 | AD169: 2212 | AE169: 1783.99 | AF169: 2664 | AG169: 2212.01 | AH169: 2277 | AI169: 1898.61 | AJ169: 1668 | AK169: 1334.93 | AL169: 1461 | AM169: 1218.53 | AN169: 1207 | AO169: 975.19 | AP169: 1096 | AQ169: 857.94 | AR169: 1132 | AS169: 885.1 | AT169: 1229 | AU169: 970.6 | AV169: 1136 | AW169: 896.58 | AX169: 1159 | AY169: 929.31 | AZ169: 1182 | BA169: 962.8 | BB169: 1535 | BC169: 1416.64 | BD169: 1780 | BE169: 1634.45 | BF169: 1900 | BG169: 1639.97 | BH169: 1533 | BI169: 1356.95 | BJ169: 1467 | BK169: 1264.1 | BL169: 1357 | BM169: 1185.5 | BN169: 1601 | BO169: 1442.16 | BP169: 1479 | BQ169: 1422.04
A170: MUNICIPIO DE PORTO ALEGRE | B170: 92.963.560/0001-60 | C170: PODER PUBLICO | D170: TRIFÁSICO | E170: RUA NOVA OLINDA, 202 - BL GDRES -Â LAMIÂ | F170: LAMI | G170: 3855813 | H170: 2155 | I170: 1839.13 | J170: 2230 | K170: 1935.68 | L170: 1908 | M170: 1629.78 | N170: 1507 | O170: 1244.48 | P170: 969 | Q170: 835.02 | R170: 940 | S170: 803.97 | T170: 1262 | U170: 1079.04 | V170: 996 | W170: 884.95 | X170: 1043 | Y170: 941.73 | Z170: 854 | AA170: 775.2 | AB170: 977 | AC170: 857.61 | AD170: 1475 | AE170: 1220.56 | AF170: 2020 | AG170: 1671.69 | AH170: 2928 | AI170: 2377.25 | AJ170: 2696 | AK170: 2145.29 | AL170: 1649 | AM170: 1372.74 | AN170: 1234 | AO170: 996.58 | AP170: 1384 | AQ170: 1078.11 | AR170: 1430 | AS170: 1112.83 | AT170: 1557 | AU170: 1224.06 | AV170: 870 | AW170: 691.55 | AX170: 1109 | AY170: 844.95 | AZ170: 1423 | BA170: 1147.18 | BB170: 2220 | BC170: 1959.33 | BD170: 2520 | BE170: 2356.01 | BF170: 2998 | BG170: 2574.22 | BH170: 2974 | BI170: 2599.68 | BJ170: 2206 | BK170: 1896.21 | BL170: 1505 | BM170: 1207.1 | BN170: 1449 | BO170: 1296.12 | BP170: 1498 | BQ170: 1386.33
A171: MUNICIPIO DE PORTO ALEGRE | B171: 92.963.560/0001-60 | C171: PODER PUBLICO | D171: TRIFÁSICO | E171: RUA CEL FERNANDO MACHADO, 245 - BL B | F171: CENTRO | G171: 24309397 | H171: 2132 | I171: 1819.7 | J171: 725 | K171: 642.86 | L171: 504 | M171: 454.63 | N171: 770 | O171: 673.15 | P171: 655 | Q171: 568.11 | R171: 636 | S171: 554.55 | T171: 634 | U171: 547.32 | V171: 618 | W171: 545.19 | X171: 586 | Y171: 539.84 | Z171: 610 | AA171: 569.35 | AB171: 598 | AC171: 524.51 | AD171: 640 | AE171: 569.6 | AF171: 759 | AG171: 637.46 | AH171: 156 | AI171: 148.37 | AJ171: 594 | AK171: 504.23 | AL171: 605 | AM171: 519.48 | AN171: 591 | AO171: 487.74 | AP171: 586 | AQ171: 468.05 | AR171: 581 | AS171: 464.07 | AT171: 100 | AU171: 98.22 | AV171: 100 | AW171: 109.85 | AX171: 169 | AY171: 155.45 | AZ171: 374 | BA171: 316.93 | BB171: 398 | BC171: 349.37 | BD171: 418 | BE171: 421.24 | BF171: 389 | BG171: 354.3 | BH171: 409 | BI171: 392.33 | BJ171: 393 | BK171: 364.25 | BL171: 10 | BM171: 108.29 | BN171: 488 | BO171: 448.47 | BP171: 475 | BQ171: 451.7
A172: MUNICIPIO DE PORTO ALEGRE | B172: 92.963.560/0001-60 | C172: PODER PUBLICO | D172: TRIFÁSICO | E172: RUA SEISCENTOS E NOVENTA E OITO, 106 - BL GDNHNI-MARIOQUI | F172: HUMAITA NAVEGANTES | G172: 45597791 | H172: 2129 | I172: 1753.73 | J172: 1713 | K172: 1480.9 | L172: 1358 | M172: 1190.99 | N172: 1533 | O172: 1320.28 | P172: 1007 | Q172: 874.81 | R172: 938 | S172: 795.96 | T172: 1400 | U172: 1207.5 | V172: 1455 | W172: 1297.55 | X172: 597 | Y172: 545.89 | Z172: 850 | AA172: 758.41 | AB172: 1195 | AC172: 1048.42 | AD172: 1697 | AE172: 1365.89 | AF172: 1753 | AG172: 1463.11 | AH172: 1704 | AI172: 1392.95 | AJ172: 1291 | AK172: 1007 | AL172: 1375 | AM172: 1147.98 | AN172: 867 | AO172: 706.16 | AP172: 943 | AQ172: 740.99 | AR172: 1568 | AS172: 1218.27 | AT172: 1038 | AU172: 823.01 | AV172: 907 | AW172: 720.06 | AX172: 965 | AY172: 788.96 | AZ172: 1174 | BA172: 962.76 | BB172: 1621 | BC172: 1511.81 | BD172: 1888 | BE172: 1703.4 | BF172: 1889 | BG172: 1630.6 | BH172: 2086 | BI172: 1701.82 | BJ172: 1415 | BK172: 1224.65 | BL172: 982 | BM172: 878.92 | BN172: 983 | BO172: 1175.46 | BP172: 1236 | BQ172: 1173.09
A173: MUNICIPIO DE PORTO ALEGRE | B173: 92.963.560/0001-60 | C173: PODER PUBLICO | D173: TRIFÁSICO | E173: RUA DONARIO BRAGA, 175 - BL GDNEB-STAROSA AP 00001 | F173: ANT AV A VILA SANTA ROSA | G173: 24550019 | H173: 2106 | I173: 1797.76 | J173: 1887 | K173: 1641.06 | L173: 1861 | M173: 1624.7 | N173: 1477 | O173: 1272.78 | P173: 1076 | Q173: 927.67 | R173: 839 | S173: 718.01 | T173: 1187 | U173: 1018.89 | V173: 1074 | W173: 950.54 | X173: 1156 | Y173: 1041.11 | Z173: 1171 | AA173: 1051.12 | AB173: 1214 | AC173: 1062.64 | AD173: 1868 | AE173: 1526.68 | AF173: 2096 | AG173: 1745.07 | AH173: 2047 | AI173: 1686.48 | AJ173: 2268 | AK173: 1807.9 | AL173: 1306 | AM173: 1091.38 | AN173: 903 | AO173: 734.64 | AP173: 882 | AQ173: 694.32 | AR173: 1076 | AS173: 842.31 | AT173: 946 | AU173: 751.94 | AV173: 1019 | AW173: 806.39 | AX173: 896 | AY173: 734.05 | AZ173: 1326 | BA173: 1070.4 | BB173: 2172 | BC173: 1950.27 | BD173: 2599 | BE173: 2403.67 | BF173: 2707 | BG173: 2326.62 | BH173: 2565 | BI173: 2254.75 | BJ173: 2019 | BK173: 1737.45 | BL173: 1320 | BM173: 1152.71 | BN173: 1190 | BO173: 1393.48 | BP173: 1154 | BQ173: 1084.03
A174: MUNICIPIO DE PORTO ALEGRE | B174: 92.963.560/0001-60 | C174: PODER PUBLICO | D174: TRIFÁSICO | E174: RUA FREDERICO MENTZ, 857 - AP 00076 | F174: NAVEGANTES | G174: 45827265 | H174: 2093 | I174: 1788.43 | J174: 1887 | K174: 1642.71 | L174: 1640 | M174: 1435.76 | N174: 1820 | O174: 1565.36 | P174: 1704 | Q174: 1721.76 | R174: 1533 | S174: 1290.56 | T174: 1668 | U174: 1434.55 | V174: 7650 | W174: 6694.13 | X174: 0 | Y174: 117 | Z174: 0 | AA174: 110.46 | AB174: 0 | AC174: 111.83 | AD174: 1833 | AE174: 1478.14 | AF174: 2759 | AG174: 2291.77 | AH174: 2824 | AI174: 2298.94 | AJ174: 1953 | AK174: 1561.24 | AL174: 2883 | AM174: 2386.72 | AN174: 6197 | AO174: 4968.53 | AP174: 0 | AQ174: 162.18 | AR174: 0 | AS174: 234.15 | AT174: 2175 | AU174: 1705 | AV174: 1663 | AW174: 1304.52 | AX174: 1936 | AY174: 1570.69 | AZ174: 2019 | BA174: 1638.73 | BB174: 1976 | BC174: 2084.74 | BD174: 2099 | BE174: 2026.42 | BF174: 2252 | BG174: 2145.91 | BH174: 2115 | BI174: 1924.54 | BJ174: 1918 | BK174: 1651.68 | BL174: 1683 | BM174: 1528.47 | BN174: 2060 | BO174: 1889.45 | BP174: 1952 | BQ174: 1829.95
A175: MUNICIPIO DE PORTO ALEGRE | B175: 92.963.560/0001-60 | C175: PODER PUBLICO | D175: TRIFÁSICO | E175: RUA LORIS JOSE ISATTO, 95 | F175: RUBEM BERTA | G175: 24639818 | H175: 2061 | I175: 1739.69 | J175: 1080 | K175: 973.55 | L175: 1295 | M175: 1009.09 | N175: 1448 | O175: 1228.1 | P175: 890 | Q175: 748.86 | R175: 1362 | S175: 1132.24 | T175: 935 | U175: 785.9 | V175: 1108 | W175: 954.78 | X175: 985 | Y175: 724.58 | Z175: 1210 | AA175: 1082.84 | AB175: 1551 | AC175: 1352.84 | AD175: 2160 | AE175: 1756.13 | AF175: 1162 | AG175: 977.29 | AH175: 1148 | AI175: 784.98 | AJ175: 2340 | AK175: 1864.65 | AL175: 1358 | AM175: 1134.02 | AN175: 1351 | AO175: 1089.16 | AP175: 1389 | AQ175: 1081.94 | AR175: 100 | AS175: 118.44 | AT175: 0 | AU175: 99.76 | AV175: 0 | AW175: 99.62 | AX175: 0 | AY175: 100.54 | AZ175: 0 | BA175: 100.09 | BB175: 917 | BC175: 845.6 | BD175: 0 | BE175: 114.31 | BF175: 0 | BG175: 93.56 | BH175: 621 | BI175: 563.56 | BJ175: 626 | BK175: 554.75 | BL175: 759 | BM175: 670.99 | BN175: 368 | BO175: 350.97 | BP175: 1447 | BQ175: 1354.16
A176: MUNICIPIO DE PORTO ALEGRE | B176: 92.963.560/0001-60 | C176: PODER PUBLICO | D176: TRIFÁSICO | E176: RUA ALVARO DIFINI, 530 - BL GDRES-FARMREST. | F176: VILA NOVA RESTINGA | G176: 71529535 | H176: 2052 | I176: 2453.14 | J176: 2897 | K176: 3052.01 | L176: 2170 | M176: 2597.27 | N176: 1646 | O176: 2253.28 | P176: 1082 | Q176: 1845.95 | R176: 828 | S176: 1667.62 | T176: 956 | U176: 1744.66 | V176: 1167 | W176: 1774.55 | X176: 1027 | Y176: 1708.93 | Z176: 819 | AA176: 1703.6 | AB176: 784 | AC176: 1609.22 | AD176: 1304 | AE176: 1994.62 | AF176: 1565 | AG176: 2165.87 | AH176: 2431 | AI176: 2683.01 | AJ176: 3129 | AK176: 3029.17 | AL176: 2663 | AM176: 2881.77 | AN176: 1596 | AO176: 2215 | AP176: 1462 | AQ176: 2052.94 | AR176: 1533 | AS176: 2081.05 | AT176: 1625 | AU176: 2034.39 | AV176: 834 | AW176: 1706.22 | AX176: 1140 | AY176: 1933.71 | AZ176: 823 | BA176: 1580.11 | BB176: 2013 | BC176: 2440.84 | BD176: 4086 | BE176: 4340.34 | BF176: 7464 | BG176: 6442.63 | BH176: 6612 | BI176: 5721.06 | BJ176: 7923 | BK176: 6580.55 | BL176: 5212 | BM176: 4980.14 | BN176: 4126 | BO176: 4258.96 | BP176: 4158 | BQ176: 4088.61
A177: MUNICIPIO DE PORTO ALEGRE | B177: 92.963.560/0001-60 | C177: PODER PUBLICO | D177: TRIFÁSICO | E177: RUA MARTIM FERREIRA DE CARVALHO, 271 - BL GDNEB-SAO BORJA | F177: SARANDI | G177: 24848638 | H177: 2027 | I177: 1731.08 | J177: 1969 | K177: 1711.48 | L177: 1322 | M177: 1159.94 | N177: 1576 | O177: 1356.76 | P177: 1297 | Q177: 1116.99 | R177: 154 | S177: 147.9 | T177: 1023 | U177: 884.46 | V177: 938 | W177: 838.18 | X177: 772 | Y177: 703.38 | Z177: 861 | AA177: 772.57 | AB177: 1219 | AC177: 1069.68 | AD177: 1657 | AE177: 1346.18 | AF177: 2051 | AG177: 1708.08 | AH177: 1816 | AI177: 1491.61 | AJ177: 1627 | AK177: 1269.68 | AL177: 1112 | AM177: 932.25 | AN177: 717 | AO177: 587.46 | AP177: 788 | AQ177: 622.46 | AR177: 1120 | AS177: 875.94 | AT177: 757 | AU177: 605.9 | AV177: 665 | AW177: 533.53 | AX177: 712 | AY177: 578.15 | AZ177: 1095 | BA177: 887.58 | BB177: 2182 | BC177: 1974.92 | BD177: 2214 | BE177: 2038.64 | BF177: 2315 | BG177: 1993.08 | BH177: 2154 | BI177: 1897.21 | BJ177: 1890 | BK177: 1604.79 | BL177: 1053 | BM177: 792.94 | BN177: 1008 | BO177: 1198.4 | BP177: 1103 | BQ177: 1039.19
A178: MUNICIPIO DE PORTO ALEGRE | B178: 92.963.560/0001-60 | C178: PODER PUBLICO | D178: TRIFÁSICO | E178: RUA FREDERICO MENTZ, 857 - AP 00120 | F178: NAVEGANTES | G178: 45827524 | H178: 2003 | I178: 1712.47 | J178: 1870 | K178: 1628.09 | L178: 1666 | M178: 1458.19 | N178: 1778 | O178: 1529.73 | P178: 1762 | Q178: 1765.17 | R178: 1516 | S178: 1276.51 | T178: 1498 | U178: 1290.77 | V178: 1598 | W178: 1418.98 | X178: 801 | Y178: 733.5 | Z178: 826 | AA178: 740.3 | AB178: 822 | AC178: 730.69 | AD178: 748 | AE178: 617.22 | AF178: 569 | AG178: 491.47 | AH178: 571 | AI178: 482.17 | AJ178: 1180 | AK178: 951.92 | AL178: 36 | AM178: 103.85 | AN178: 535 | AO178: 471.08 | AP178: 501 | AQ178: 407.05 | AR178: 547 | AS178: 451.56 | AT178: 595 | AU178: 490.65 | AV178: 622 | AW178: 502.1 | AX178: 550 | AY178: 499.11 | AZ178: 654 | BA178: 546.16 | BB178: 750 | BC178: 802.32 | BD178: 742 | BE178: 736.53 | BF178: 717 | BG178: 658.62 | BH178: 688 | BI178: 643.99 | BJ178: 708 | BK178: 624.38 | BL178: 595 | BM178: 555.6 | BN178: 59 | BO178: 129.65 | BP178: 1770 | BQ178: 1662.03
A179: MUNICIPIO DE PORTO ALEGRE | B179: 92.963.560/0001-60 | C179: PODER PUBLICO | D179: TRIFÁSICO | E179: EST RETIRO PONTA GROSSA, 3581 | F179: PONTA GROSSA | G179: 26809532 | H179: 1991 | I179: 1676.16 | J179: 1158 | K179: 863.54 | L179: 2346 | M179: 2079.33 | N179: 2568 | O179: 2198.12 | P179: 2564 | Q179: 2010.88 | R179: 1791 | S179: 1516.86 | T179: 3606 | U179: 3034.08 | V179: 2180 | W179: 1870.2 | X179: 2409 | Y179: 2143.07 | Z179: 2225 | AA179: 1989.64 | AB179: 2118 | AC179: 1865.84 | AD179: 2017 | AE179: 1696.59 | AF179: 1568 | AG179: 1311.03 | AH179: 1245 | AI179: 988.36 | AJ179: 2239 | AK179: 1785.04 | AL179: 1676 | AM179: 1417.03 | AN179: 1304 | AO179: 1051.97 | AP179: 884 | AQ179: 695.87 | AR179: 918 | AS179: 721.56 | AT179: 984 | AU179: 771.29 | AV179: 1210 | AW179: 880.19 | AX179: 1219 | AY179: 991.12 | AZ179: 1887 | BA179: 1502.72 | BB179: 1650 | BC179: 1413.42 | BD179: 1179 | BE179: 1048.34 | BF179: 1130 | BG179: 946.89 | BH179: 1280 | BI179: 1044.84 | BJ179: 1152 | BK179: 1001.37 | BL179: 1665 | BM179: 1344.25 | BN179: 2037 | BO179: 1798.83 | BP179: 2036 | BQ179: 1853.95
A180: MUNICIPIO DE PORTO ALEGRE | B180: 92.963.560/0001-60 | C180: PODER PUBLICO | D180: TRIFÁSICO | E180: RUA JOAO PARIS, 180 - BL GDNEB-STÂº AGOST | F180: RUBEM BERTA | G180: 47593202 | H180: 1977 | I180: 1688.87 | J180: 1888 | K180: 1641.9 | L180: 1469 | M180: 1214.43 | N180: 1221 | O180: 1029.26 | P180: 868 | Q180: 753.71 | R180: 742 | S180: 636.91 | T180: 1189 | U180: 1021.49 | V180: 341 | W180: 317.86 | X180: 736 | Y180: 671.75 | Z180: 640 | AA180: 583.11 | AB180: 864 | AC180: 765.79 | AD180: 1141 | AE180: 938.04 | AF180: 1497 | AG180: 1252.69 | AH180: 1659 | AI180: 1355.22 | AJ180: 1659 | AK180: 1327.85 | AL180: 1194 | AM180: 999.51 | AN180: 669 | AO180: 549.47 | AP180: 568 | AQ180: 454.29 | AR180: 682 | AS180: 541.23 | AT180: 630 | AU180: 507.74 | AV180: 658 | AW180: 528.14 | AX180: 687 | AY180: 567.7 | AZ180: 783 | BA180: 640.65 | BB180: 1662 | BC180: 1510.68 | BD180: 1919 | BE180: 1770.11 | BF180: 1886 | BG180: 1628.05 | BH180: 1835 | BI180: 1619.69 | BJ180: 1370 | BK180: 1186.43 | BL180: 951 | BM180: 834.32 | BN180: 1277 | BO180: 1151.41 | BP180: 1378 | BQ180: 456.63
A181: MUNICIPIO DE PORTO ALEGRE | B181: 92.963.560/0001-60 | C181: PODER PUBLICO | D181: TRIFÁSICO | E181: RUA ALBA GARCIA DE OLIVEIRA, 87 | F181: VIL.STA.ROSA | G181: 28387007 | H181: 1971 | I181: 1683.82 | J181: 1627 | K181: 1466.79 | L181: 2284 | M181: 1989.42 | N181: 2301 | O181: 1971.65 | P181: 2386 | Q181: 2030.24 | R181: 2294 | S181: 1928.38 | T181: 2313 | U181: 1964.53 | V181: 2330 | W181: 2033.6 | X181: 2434 | Y181: 2165.04 | Z181: 2600 | AA181: 2306.97 | AB181: 2602 | AC181: 2249.62 | AD181: 2518 | AE181: 2050.25 | AF181: 1381 | AG181: 1157.3 | AH181: 1619 | AI181: 1382.05 | AJ181: 2840 | AK181: 2258.8 | AL181: 1477 | AM181: 1277.19 | AN181: 1038 | AO181: 841.48 | AP181: 869 | AQ181: 684.42 | AR181: 806 | AS181: 635.99 | AT181: 726 | AU181: 595.09 | AV181: 1093 | AW181: 863.45 | AX181: 1336 | AY181: 1084.22 | AZ181: 1556 | BA181: 1252.42 | BB181: 1495 | BC181: 1350.78 | BD181: 1091 | BE181: 958.76 | BF181: 820 | BG181: 720.85 | BH181: 1126 | BI181: 1023.66 | BJ181: 1203 | BK181: 1044.64 | BL181: 1181 | BM181: 1028.38 | BN181: 1775 | BO181: 1613.99 | BP181: 1683 | BQ181: 1567.49
A182: MUNICIPIO DE PORTO ALEGRE | B182: 92.963.560/0001-60 | C182: PODER PUBLICO | D182: TRIFÁSICO | E182: AV JUCA BATISTA, 3480 - BL GDSCS-BECADELAR | F182: CAMPO NOVO | G182: 37176366 | H182: 1959 | I182: 1673.69 | J182: 2128 | K182: 1848.06 | L182: 1405 | M182: 1229.55 | N182: 1450 | O182: 1249.9 | P182: 1022 | Q182: 886.05 | R182: 898 | S182: 763.81 | T182: 1455 | U182: 1251.66 | V182: 1111 | W182: 991.54 | X182: 947 | Y182: 857.3 | Z182: 961 | AA182: 857.27 | AB182: 1224 | AC182: 1071.97 | AD182: 1652 | AE182: 1335.2 | AF182: 1882 | AG182: 1569.15 | AH182: 1956 | AI182: 1602.14 | AJ182: 1781 | AK182: 1424.01 | AL182: 1154 | AM182: 966.7 | AN182: 920 | AO182: 748.11 | AP182: 1040 | AQ182: 815.11 | AR182: 1374 | AS182: 1070.03 | AT182: 1272 | AU182: 1003.85 | AV182: 1056 | AW182: 834.92 | AX182: 1020 | AY182: 832.73 | AZ182: 1162 | BA182: 948.96 | BB182: 1840 | BC182: 1698.75 | BD182: 2207 | BE182: 2012.76 | BF182: 2058 | BG182: 1774.38 | BH182: 2014 | BI182: 1775.39 | BJ182: 1458 | BK182: 1261.17 | BL182: 1309 | BM182: 1146.14 | BN182: 1460 | BO182: 1318.98 | BP182: 1578 | BQ182: 1482.55
A183: MUNICIPIO DE PORTO ALEGRE | B183: 92.963.560/0001-60 | C183: PODER PUBLICO | D183: TRIFÁSICO | E183: AV ALBERTO BINS, 679 | F183: CENTRO | G183: 26100266 | H183: 1946 | I183: 1662.7 | J183: 1539 | K183: 1343.79 | L183: 1282 | M183: 1125.45 | N183: 1163 | O183: 1006.46 | P183: 1046 | Q183: 896.73 | R183: 850 | S183: 732.46 | T183: 855 | U183: 781.45 | V183: 772 | W183: 679.74 | X183: 884 | Y183: 816.61 | Z183: 754 | AA183: 694.23 | AB183: 999 | AC183: 864.08 | AD183: 1090 | AE183: 944.38 | AF183: 1384 | AG183: 1159.78 | AH183: 1490 | AI183: 1262.08 | AJ183: 1288 | AK183: 1035.38 | AL183: 1622 | AM183: 1350.59 | AN183: 1217 | AO183: 983.12 | AP183: 1210 | AQ183: 945.07 | AR183: 1312 | AS183: 1022.66 | AT183: 1237 | AU183: 976.81 | AV183: 1089 | AW183: 860.36 | AX183: 938 | AY183: 767.45 | AZ183: 1088 | BA183: 882.03 | BB183: 1294 | BC183: 1107.77 | BD183: 1540 | BE183: 1476.53 | BF183: 1305 | BG183: 1133.7 | BH183: 1186 | BI183: 1055.08 | BJ183: 1292 | BK183: 1120.23 | BL183: 1226 | BM183: 1049.75 | BN183: 2086 | BO183: 1839.37 | BP183: 1815 | BQ183: 1680.95
A184: MUNICIPIO DE PORTO ALEGRE | B184: 92.963.560/0001-60 | C184: PODER PUBLICO | D184: TRIFÁSICO | E184: RUA DOMENICO FEOLI, 1 - BL GDNEB-DOMEN.FEO | F184: RUBEM BERTA | G184: 61621439 | H184: 1933 | I184: 1651.73 | J184: 2147 | K184: 1864.39 | L184: 1666 | M184: 1456.54 | N184: 1499 | O184: 1291.45 | P184: 976 | Q184: 841.65 | R184: 766 | S184: 659.25 | T184: 1063 | U184: 912.36 | V184: 965 | W184: 853.21 | X184: 891 | Y184: 808.05 | Z184: 820 | AA184: 738.25 | AB184: 821 | AC184: 722.05 | AD184: 1441 | AE184: 1209.82 | AF184: 1714 | AG184: 1431.06 | AH184: 1816 | AI184: 1501.69 | AJ184: 1489 | AK184: 1193.83 | AL184: 1237 | AM184: 1034.8 | AN184: 609 | AO184: 502 | AP184: 841 | AQ184: 663 | AR184: 1048 | AS184: 820.9 | AT184: 889 | AU184: 707.9 | AV184: 927 | AW184: 735.48 | AX184: 746 | AY184: 614.64 | AZ184: 790 | BA184: 646.2 | BB184: 1317 | BC184: 1172.08 | BD184: 1919 | BE184: 1799.68 | BF184: 1780 | BG184: 1537.86 | BH184: 1732 | BI184: 1530.06 | BJ184: 1036 | BK184: 902.87 | BL184: 836 | BM184: 727.55 | BN184: 817 | BO184: 743.27 | BP184: 814 | BQ184: 0
A185: MUNICIPIO DE PORTO ALEGRE | B185: 92.963.560/0001-60 | C185: PODER PUBLICO | D185: TRIFÁSICO | E185: EST RETIRO PONTA GROSSA, 3033 - BL GDRES-PTGROS AP 00001 | F185: PONTA GROSSA | G185: 24250511 | H185: 1905 | I185: 1628.09 | J185: 1768 | K185: 1521.72 | L185: 1450 | M185: 1270.32 | N185: 1256 | O185: 1085.37 | P185: 996 | Q185: 857.5 | R185: 778 | S185: 669.69 | T185: 985 | U185: 844.82 | V185: 983 | W185: 865.22 | X185: 1035 | Y185: 934.68 | Z185: 882 | AA185: 802 | AB185: 954 | AC185: 833.79 | AD185: 1442 | AE185: 1215.16 | AF185: 1646 | AG185: 1375.15 | AH185: 1810 | AI185: 1498.11 | AJ185: 1530 | AK185: 1226.14 | AL185: 1306 | AM185: 1091.38 | AN185: 855 | AO185: 696.66 | AP185: 1020 | AQ185: 799.83 | AR185: 1341 | AS185: 1044.82 | AT185: 1045 | AU185: 828.44 | AV185: 1093 | AW185: 863.45 | AX185: 824 | AY185: 676.74 | AZ185: 923 | BA185: 751.44 | BB185: 1366 | BC185: 1188.51 | BD185: 1675 | BE185: 1585.64 | BF185: 1710 | BG185: 1478.31 | BH185: 1749 | BI185: 1544.86 | BJ185: 1560 | BK185: 1347.75 | BL185: 1195 | BM185: 1029.12 | BN185: 1313 | BO185: 1173.18 | BP185: 1499 | BQ185: 1382.37
A186: MUNICIPIO DE PORTO ALEGRE | B186: 92.963.560/0001-60 | C186: PODER PUBLICO | D186: TRIFÁSICO | E186: RUA DR POTY MEDEIROS, 15 | F186: MOINHOS DE VENTO | G186: 24520322 | H186: 1899 | I186: 1642.74 | J186: 1824 | K186: 1586.91 | L186: 1884 | M186: 1654.27 | N186: 2173 | O186: 1863.12 | P186: 2208 | Q186: 1883.75 | R186: 2215 | S186: 1861.48 | T186: 2001 | U186: 1704.02 | V186: 2168 | W186: 1896.47 | X186: 2048 | Y186: 1825.59 | Z186: 2208 | AA186: 1957.76 | AB186: 2028 | AC186: 1764.48 | AD186: 1708 | AE186: 1393.28 | AF186: 1997 | AG186: 1600.23 | AH186: 1747 | AI186: 1437.61 | AJ186: 2013 | AK186: 1606.89 | AL186: 1332 | AM186: 1112.72 | AN186: 1661 | AO186: 1334.49 | AP186: 2098 | AQ186: 1623.94 | AR186: 2326 | AS186: 1797.51 | AT186: 2090 | AU186: 1635.93 | AV186: 2285 | AW186: 1782.24 | AX186: 1967 | AY186: 1586.41 | AZ186: 1681 | BA186: 1351.37 | BB186: 1604 | BC186: 1447.31 | BD186: 1803 | BE186: 1650.31 | BF186: 1780 | BG186: 1537.86 | BH186: 1756 | BI186: 1550.97 | BJ186: 1957 | BK186: 1684.82 | BL186: 1896 | BM186: 1635.64 | BN186: 2033 | BO186: 1815.19 | BP186: 1822 | BQ186: 1728.95
A187: MUNICIPIO DE PORTO ALEGRE | B187: 92.963.560/0001-60 | C187: PODER PUBLICO | D187: TRIFÁSICO | E187: VIA ACS TRES-CEFER UM, 10 - BL GDLENO-JDCARV. | F187: NOSSA SRA DAS GRACAS-CEFER UM | G187: 41824555 | H187: 1881 | I187: 1607.86 | J187: 1812 | K187: 1576.62 | L187: 1286 | M187: 1128.92 | N187: 1249 | O187: 1079.4 | P187: 902 | Q187: 782.7 | R187: 771 | S187: 660.75 | T187: 1161 | U187: 998.84 | V187: 975 | W187: 869.06 | X187: 893 | Y187: 809.81 | Z187: 847 | AA187: 763.6 | AB187: 898 | AC187: 795.72 | AD187: 1434 | AE187: 1172.64 | AF187: 1727 | AG187: 1441.75 | AH187: 1532 | AI187: 1262.63 | AJ187: 1455 | AK187: 1167.04 | AL187: 1167 | AM187: 977.37 | AN187: 749 | AO187: 612.78 | AP187: 622 | AQ187: 495.58 | AR187: 1005 | AS187: 788.06 | AT187: 888 | AU187: 707.12 | AV187: 969 | AW187: 767.86 | AX187: 801 | AY187: 653.88 | AZ187: 851 | BA187: 694.47 | BB187: 1593 | BC187: 1449.11 | BD187: 1921 | BE187: 1771.92 | BF187: 1935 | BG187: 1669.73 | BH187: 1967 | BI187: 1734.52 | BJ187: 1581 | BK187: 1350 | BL187: 1141 | BM187: 1004.84 | BN187: 1358 | BO187: 1484.04 | BP187: 1214 | BQ187: 1140.83
A188: MUNICIPIO DE PORTO ALEGRE | B188: 92.963.560/0001-60 | C188: PODER PUBLICO | D188: TRIFÁSICO | E188: RUA FERNANDO PESSOA, 302 | F188: VIL NOVA-DEMHAB | G188: 24780219 | H188: 1880 | I188: 1607 | J188: 1202 | K188: 1051.86 | L188: 2273 | M188: 1979.91 | N188: 2367 | O188: 2027.64 | P188: 2567 | Q188: 2174.03 | R188: 2446 | S188: 2063.7 | T188: 2516 | U188: 2121.7 | V188: 3032 | W188: 2614.19 | X188: 2638 | Y188: 2388.58 | Z188: 2840 | AA188: 2541.18 | AB188: 3171 | AC188: 2707.33 | AD188: 2844 | AE188: 2384.1 | AF188: 1855 | AG188: 1546.97 | AH188: 2505 | AI188: 2148.45 | AJ188: 2041 | AK188: 1628.96 | AL188: 2569 | AM188: 2173.96 | AN188: 2585 | AO188: 2065.67 | AP188: 2587 | AQ188: 1997.78 | AR188: 100 | AS188: 96.49 | AT188: 100 | AU188: 98.22 | AV188: 2153 | AW188: 1682.12 | AX188: 100 | AY188: 102.26 | AZ188: 100 | BA188: 100.09 | BB188: 100 | BC188: 111.98 | BD188: 3420 | BE188: 3213.29 | BF188: 1567 | BG188: 1356.64 | BH188: 1520 | BI188: 1422.73 | BJ188: 1791 | BK188: 1571.9 | BL188: 1929 | BM188: 1645.65 | BN188: 2227 | BO188: 1916.9 | BP188: 1952 | BQ188: 1791.28
A189: MUNICIPIO DE PORTO ALEGRE | B189: 92.963.560/0001-60 | C189: PODER PUBLICO | D189: TRIFÁSICO | E189: RUA CAMOATI, 83 | F189: SANTA MARIA GORETTI | G189: 35553065 | H189: 1880 | I189: 1674.46 | J189: 4908 | K189: 4255.9 | L189: 4076 | M189: 3572.26 | N189: 1062 | O189: 922.47 | P189: 1102 | Q189: 944.41 | R189: 947 | S189: 814.23 | T189: 1001 | U189: 873.53 | V189: 915 | W189: 799.59 | X189: 892 | Y189: 808.92 | Z189: 917 | AA189: 840.63 | AB189: 911 | AC189: 788.92 | AD189: 973 | AE189: 865.05 | AF189: 1307 | AG189: 307.56 | AH189: 5025 | AI189: 4163.22 | AJ189: 2665 | AK189: 2146.35 | AL189: 1476 | AM189: 1328.74 | AN189: 1511 | AO189: 1215.77 | AP189: 0 | AQ189: 96.53 | AR189: 1466 | AS189: 1140.33 | AT189: 1505 | AU189: 1183.89 | AV189: 0 | AW189: 98.03 | AX189: 0 | AY189: 100.54 | AZ189: 0 | BA189: 101.68 | BB189: 1327 | BC189: 1124.29 | BD189: 1357 | BE189: 1307.34 | BF189: 1361 | BG189: 1181.33 | BH189: 100 | BI189: 89.72 | BJ189: 842 | BK189: 767.3 | BL189: 0 | BM189: 108.57 | BN189: 663 | BO189: 601.96 | BP189: 0 | BQ189: 118.6
A190: MUNICIPIO DE PORTO ALEGRE | B190: 92.963.560/0001-60 | C190: ILUMINACAO PUBLICA | D190: TRIFÁSICO | E190: RUA GEN SALUSTIANO, 375 - BL A | F190: CENTRO | G190: 999414623 | H190: 1848 | I190: 740.73 | J190: 2314 | K190: 915.81 | L190: 2039 | M190: 835.39 | N190: 1583 | O190: 639.39 | P190: 3003 | Q190: 1231.4 | R190: 3004 | S190: 1188.71 | T190: 1582 | U190: 652.83 | V190: 4696 | W190: 2071.5 | X190: 2766 | Y190: 1228.55 | Z190: 2597 | AA190: 1099.83 | AB190: 2572 | AC190: 1115.5 | AD190: 2451 | AE190: 950.52 | AF190: 2190 | AG190: 874.65 | AH190: 2474 | AI190: 922.16 | AJ190: 2563 | AK190: 938.12 | AL190: 2623 | AM190: 1020.8 | AN190: 2710 | AO190: 1022.35 | AP190: 2686 | AQ190: 983.36 | AT190: 2601 | AU190: 959.1 | AV190: 1770 | AW190: 648.28 | AX190: 2148 | AY190: 818.52 | AZ190: 1926 | BA190: 904.1 | BB190: 580 | BC190: 251.24 | BD190: 1293 | BE190: 523.76 | BF190: 1984 | BG190: 838.11 | BH190: 2159 | BI190: 892.86 | BJ190: 2120 | BK190: 924.88 | BL190: 2071 | BM190: 955.79 | BN190: 6760 | BO190: 3366.39
A191: MUNICIPIO DE PORTO ALEGRE | B191: 92.963.560/0001-60 | C191: PODER PUBLICO | D191: TRIFÁSICO | E191: RUA JOAO INACIO DA SILVEIRA, 1 - BL GDNHNI-I.MARINH | F191: ARQUIPELAGO-ILHA GRANDE DOS MARINHEIROS | G191: 24174726 | H191: 1841 | I191: 1574.09 | J191: 2231 | K191: 1894.37 | L191: 1641 | M191: 1365.48 | N191: 1400 | O191: 1126.26 | P191: 1151 | Q191: 950.39 | R191: 793 | S191: 684.68 | T191: 912 | U191: 780.74 | V191: 1139 | W191: 991.27 | X191: 974 | Y191: 873.64 | Z191: 851 | AA191: 709.54 | AB191: 941 | AC191: 803.13 | AD191: 1405 | AE191: 1195.86 | AF191: 1934 | AG191: 1554.51 | AH191: 2276 | AI191: 1838.31 | AJ191: 1648 | AK191: 1200.87 | AL191: 2157 | AM191: 1789.48 | AN191: 843 | AO191: 687.15 | AP191: 879 | AQ191: 692.06 | AR191: 1060 | AS191: 830.09 | AT191: 1096 | AU191: 867.85 | AV191: 930 | AW191: 737.81 | AX191: 751 | AY191: 590.24 | AZ191: 880 | BA191: 662.65 | BB191: 1394 | BC191: 1182.44 | BD191: 1927 | BE191: 1841.74 | BF191: 2133 | BG191: 1774.77 | BH191: 2379 | BI191: 1837 | BJ191: 1774 | BK191: 1529.45 | BL191: 1318 | BM191: 616.58 | BN191: 974 | BO191: 632.52 | BP191: 1057 | BQ191: 1264.52
A192: MUNICIPIO DE PORTO ALEGRE | B192: 92.963.560/0001-60 | C192: PODER PUBLICO | D192: BIFÁSICO | E192: RUA DENIZE CRESPO GAY DA FONSECA, 50 - BL SAMU-BASESERR | F192: ESPIRITO SANTO | G192: 55477917 | H192: 1824 | I192: 1559.71 | J192: 1582 | K192: 1379.04 | L192: 1264 | M192: 1107.3 | N192: 1012 | O192: 878.4 | P192: 730 | Q192: 638.71 | R192: 676 | S192: 580.85 | T192: 840 | U192: 731.3 | V192: 710 | W192: 641.27 | X192: 607 | Y192: 558.29 | Z192: 625 | AA192: 566.07 | AB192: 912 | AC192: 805.2 | AD192: 1100 | AE192: 898.23 | AF192: 1611 | AG192: 1346.37 | AH192: 1394 | AI192: 1148.62 | AJ192: 1298 | AK192: 1043.27 | AL192: 688 | AM192: 584.44 | AN192: 533 | AO192: 441.85 | AP192: 476 | AQ192: 383.95 | AR192: 983 | AS192: 771.25 | AT192: 780 | AU192: 623.66 | AV192: 609 | AW192: 490.37 | AX192: 682 | AY192: 563.71 | AZ192: 893 | BA192: 732.52 | BB192: 1394 | BC192: 1288.99 | BD192: 2027 | BE192: 1858 | BF192: 1895 | BG192: 1456.98 | BH192: 1749 | BI192: 1517.09 | BJ192: 1218 | BK192: 1057.39 | BL192: 859 | BM192: 746.02 | BN192: 916 | BO192: 836.6 | BP192: 1117 | BQ192: 1055.62
A193: MUNICIPIO DE PORTO ALEGRE | B193: 92.963.560/0001-60 | C193: PODER PUBLICO | D193: TRIFÁSICO | E193: RUA SIQUEIRA CAMPOS, 1171 - AP 00002 | F193: CENTRO | G193: 53328264 | H193: 1809 | I193: 1547.08 | J193: 2352 | K193: 2040.49 | L193: 1965 | M193: 1714.36 | N193: 1755 | O193: 1508.57 | P193: 1539 | Q193: 1307.86 | R193: 1181 | S193: 1010.49 | T193: 1143 | U193: 970.74 | V193: 1212 | W193: 1051.19 | X193: 1082 | Y193: 976.03 | Z193: 1192 | AA193: 1086.17 | AB193: 1349 | AC193: 1156.48 | AD193: 1475 | AE193: 1274.79 | AF193: 1708 | AG193: 1426.12 | AH193: 2298 | AI193: 1906.84 | AJ193: 1672 | AK193: 1338.1 | AL193: 1467 | AM193: 1223.46 | AN193: 2399 | AO193: 1918.46 | AP193: 1167 | AQ193: 912.21 | AR193: 860 | AS193: 677.26 | AT193: 1045 | AU193: 828.44 | AV193: 1268 | AW193: 998.33 | AX193: 1099 | AY193: 895.61 | AZ193: 1222 | BA193: 988.09 | BB193: 1680 | BC193: 1434 | BD193: 1753 | BE193: 1682.04 | BF193: 2249 | BG193: 1936.92 | BH193: 1766 | BI193: 1608.06 | BJ193: 1054 | BK193: 953.28 | BL193: 1163 | BM193: 993.3 | BN193: 1138 | BO193: 1013.97 | BP193: 1348 | BQ193: 1233.03
A194: MUNICIPIO DE PORTO ALEGRE | B194: 92.963.560/0001-60 | C194: PODER PUBLICO | D194: TRIFÁSICO | E194: RUA FREDERICO MENTZ, 857 - AP 00195 | F194: NAVEGANTES | G194: 45827630 | H194: 1807 | I194: 1547.02 | J194: 1315 | K194: 1151.34 | L194: 1478 | M194: 1296.09 | N194: 1666 | O194: 1434.73 | P194: 1039 | Q194: 1111.9 | R194: 1248 | S194: 1054.7 | T194: 1332 | U194: 1150.36 | V194: 1329 | W194: 1184.51 | X194: 1287 | Y194: 1160.91 | Z194: 1255 | AA194: 1112.45 | AB194: 1380 | AC194: 1208.99 | AD194: 1464 | AE194: 1185.34 | AF194: 1378 | AG194: 1156.49 | AH194: 1353 | AI194: 1112.75 | AJ194: 1351 | AK194: 1086.71 | AL194: 1340 | AM194: 1120.99 | AN194: 1212 | AO194: 1010.57 | AP194: 1043 | AQ194: 848.88 | AR194: 1310 | AS194: 1049.47 | AT194: 1309 | AU194: 1051.23 | AV194: 1307 | AW194: 1030.1 | AX194: 100 | AY194: 102.27 | AZ194: 100 | BA194: 102.72 | BB194: 100 | BC194: 441.25 | BD194: 100 | BE194: 215.28 | BF194: 100 | BG194: 112.61 | BH194: 100 | BI194: 127.14 | BJ194: 677 | BK194: 598.09 | BL194: 622 | BM194: 562.83 | BN194: 572 | BO194: 547.24 | BP194: 533 | BQ194: 520.98
A195: MUNICIPIO DE PORTO ALEGRE | B195: 92.963.560/0001-60 | C195: PODER PUBLICO | D195: TRIFÁSICO | E195: RUA SIQUEIRA CAMPOS, 1171 - AP 00003 | F195: CENTRO | G195: 53328329 | H195: 1792 | I195: 1532.7 | J195: 2201 | K195: 1910.78 | L195: 1894 | M195: 1653.12 | N195: 1634 | O195: 1405.96 | P195: 1383 | Q195: 1177.51 | R195: 1082 | S195: 927.45 | T195: 994 | U195: 847.08 | V195: 1037 | W195: 902.92 | X195: 967 | Y195: 874.9 | Z195: 1014 | AA195: 927.24 | AB195: 1112 | AC195: 957.62 | AD195: 1340 | AE195: 1160.15 | AF195: 1487 | AG195: 1244.48 | AH195: 1831 | AI195: 1523.43 | AJ195: 1647 | AK195: 1318.38 | AL195: 1294 | AM195: 1081.53 | AN195: 0 | AO195: 99.2 | AP195: 754 | AQ195: 596.48 | AR195: 971 | AS195: 762.09 | AT195: 717 | AU195: 575 | AV195: 799 | AW195: 636.82 | AX195: 924 | AY195: 756.34 | AZ195: 993 | BA195: 806.86 | BB195: 1248 | BC195: 1073.91 | BD195: 1236 | BE195: 1192.83 | BF195: 1655 | BG195: 1431.48 | BH195: 1348 | BI195: 1230.35 | BJ195: 950 | BK195: 856.77 | BL195: 510 | BM195: 449.85 | BN195: 785 | BO195: 707.8 | BP195: 836 | BQ195: 775.81
A196: MUNICIPIO DE PORTO ALEGRE | B196: 92.963.560/0001-60 | C196: PODER PUBLICO | D196: TRIFÁSICO | E196: RUA SANTO EXPEDITO, 200 | F196: RUBEM BERTA | G196: 69495891 | H196: 1786 | I196: 1527.65 | J196: 1379 | K196: 1245.01 | L196: 1849 | M196: 1614.33 | N196: 2113 | O196: 1812.2 | P196: 2194 | Q196: 1866.68 | R196: 1991 | S196: 1623.75 | T196: 1918 | U196: 1631.38 | V196: 1666 | W196: 1457.28 | X196: 1892 | Y196: 1688.4 | Z196: 2222 | AA196: 1977.52 | AB196: 2773 | AC196: 2392.56 | AD196: 3188 | AE196: 2602.13 | AF196: 1544 | AG196: 1291.3 | AH196: 1742 | AI196: 1439.49 | AJ196: 3364 | AK196: 2699.37 | AL196: 1384 | AM196: 1155.37 | AN196: 1337 | AO196: 1078.07 | AP196: 1248 | AQ196: 974.15 | AR196: 1205 | AS196: 940.9 | AT196: 1008 | AU196: 818.57 | AV196: 929 | AW196: 737.03 | AX196: 1216 | AY196: 988.72 | AZ196: 956 | BA196: 777.56 | BB196: 863 | BC196: 783.42 | BD196: 733 | BE196: 691.24 | BF196: 782 | BG196: 688.69 | BH196: 1016 | BI196: 921.31 | BJ196: 911 | BK196: 783.72 | BL196: 1698 | BM196: 1455.3 | BN196: 1891 | BO196: 1686.47 | BP196: 1980 | BQ196: 1831.82
A197: MUNICIPIO DE PORTO ALEGRE | B197: 92.963.560/0001-60 | C197: PODER PUBLICO | D197: TRIFÁSICO | E197: RUA RICARDO LEONIDAS RIBAS, 75 | F197: RESTINGA LOT.INDUSTRIAL RESTINGA | G197: 48284459 | H197: 1779 | I197: 1523.4 | J197: 1768 | K197: 1540.48 | L197: 1688 | M197: 1477.15 | N197: 1773 | O197: 1525.49 | P197: 1957 | Q197: 1679.09 | R197: 1858 | S197: 1559.59 | T197: 1809 | U197: 1553.84 | V197: 1598 | W197: 1418.98 | X197: 1514 | Y197: 1357.6 | Z197: 1622 | AA197: 1430.83 | AB197: 1432 | AC197: 1253.57 | AD197: 1135 | AE197: 924.29 | AF197: 1275 | AG197: 1071.84 | AH197: 1307 | AI197: 1075.66 | AJ197: 1217 | AK197: 981.07 | AL197: 1210 | AM197: 1014.35 | AN197: 1097 | AO197: 889.89 | AP197: 955 | AQ197: 751.87 | AR197: 1114 | AS197: 873.06 | AT197: 933 | AU197: 741.9 | AV197: 986 | AW197: 780.96 | AX197: 850 | AY197: 679.03 | AZ197: 820 | BA197: 677.3 | BB197: 928 | BC197: 874.24 | BD197: 750 | BE197: 706.45 | BF197: 949 | BG197: 819.98 | BH197: 1027 | BI197: 935.97 | BJ197: 999 | BK197: 886.44 | BL197: 1044 | BM197: 921.78 | BN197: 1060 | BO197: 966.04 | BP197: 1008 | BQ197: 959.16
A198: MUNICIPIO DE PORTO ALEGRE | B198: 92.963.560/0001-60 | C198: PODER PUBLICO | D198: TRIFÁSICO | E198: AV CERES, 325 - BL GDPLP-CERES | F198: PARTENON | G198: 57326550 | H198: 1762 | I198: 1507.39 | J198: 1738 | K198: 1513.06 | L198: 1173 | M198: 1031.49 | N198: 1245 | O198: 1076.01 | P198: 953 | Q198: 827.08 | R198: 874 | S198: 745.09 | T198: 1469 | U198: 1262.37 | V198: 1292 | W198: 1146.87 | X198: 897 | Y198: 813.33 | Z198: 1069 | AA198: 952.52 | AB198: 1190 | AC198: 1043.17 | AD198: 1489 | AE198: 1208.09 | AF198: 1544 | AG198: 1291.3 | AH198: 1518 | AI198: 1249.02 | AJ198: 1363 | AK198: 1078.87 | AL198: 935 | AM198: 787.05 | AN198: 749 | AO198: 612.78 | AP198: 685 | AQ198: 543.73 | AR198: 1040 | AS198: 814.79 | AT198: 1020 | AU198: 809.11 | AV198: 973 | AW198: 770.93 | AX198: 970 | AY198: 792.93 | AZ198: 1008 | BA198: 824.16 | BB198: 1181 | BC198: 1096.14 | BD198: 1145 | BE198: 1059.67 | BF198: 1423 | BG198: 1234.11 | BH198: 1481 | BI198: 1311.71 | BJ198: 1227 | BK198: 1065.03 | BL198: 1267 | BM198: 1108.55 | BN198: 1409 | BO198: 1272.42 | BP198: 1421 | BQ198: 1334.94
A199: MUNICIPIO DE PORTO ALEGRE | B199: 92.963.560/0001-60 | C199: PODER PUBLICO | D199: TRIFÁSICO | E199: RUA CONDE D EU, 95 | F199: SANTANA | G199: 55223249 | H199: 1749 | I199: 1498.06 | J199: 1886 | K199: 1610.63 | L199: 1639 | M199: 1434.91 | N199: 1678 | O199: 1506.66 | P199: 1683 | Q199: 1443.89 | R199: 1331 | S199: 1124.09 | T199: 1727 | U199: 1473.57 | V199: 2029 | W199: 1792.29 | X199: 1424 | Y199: 1284.34 | Z199: 1596 | AA199: 1410.83 | AB199: 1728 | AC199: 1504.95 | AD199: 1867 | AE199: 1513.78 | AF199: 2186 | AG199: 2873.49 | AH199: 1896 | AI199: 1537.41 | AJ199: 1550 | AK199: 1243.56 | AL199: 999 | AM199: 841.29 | AN199: 704 | AO199: 612.18 | AP199: 1091 | AQ199: 876.95 | AR199: 1144 | AS199: 910.99 | AT199: 1184 | AU199: 955.13 | AV199: 1091 | AW199: 863.64 | AX199: 1131 | AY199: 922.79 | AZ199: 1011 | BA199: 830.08 | BB199: 1466 | BC199: 1644.93 | BD199: 1541 | BE199: 1479.82 | BF199: 1334 | BG199: 1297.65 | BH199: 1025 | BI199: 943.12 | BJ199: 805 | BK199: 706.76 | BL199: 976 | BM199: 887 | BN199: 1049 | BO199: 970.83 | BP199: 1280 | BQ199: 1208.7
A200: MUNICIPIO DE PORTO ALEGRE | B200: 92.963.560/0001-60 | C200: PODER PUBLICO | D200: TRIFÁSICO | E200: AV VITORIA, 35 - BL GDNEB-B.COQ. AP 00001 | F200: PASSO DAS PEDRAS-VIL.DOS COQUEIROS DOIS | G200: 38094967 | H200: 1742 | I200: 1490.51 | J200: 1561 | K200: 1361 | L200: 1482 | M200: 1297.91 | N200: 1145 | O200: 991.2 | P200: 892 | Q200: 771.55 | R200: 846 | S200: 725.59 | T200: 771 | U200: 667.82 | V200: 740 | W200: 659.96 | X200: 895 | Y200: 811.56 | Z200: 676 | AA200: 618.24 | AB200: 776 | AC200: 665.34 | AD200: 1155 | AE200: 960.55 | AF200: 1125 | AG200: 946.85 | AH200: 1325 | AI200: 1100.13 | AJ200: 1240 | AK200: 892.95 | AL200: 1025 | AM200: 860.88 | AN200: 778 | AO200: 635.73 | AP200: 639 | AQ200: 508.57 | AR200: 884 | AS200: 695.6 | AT200: 813 | AU200: 649.18 | AV200: 851 | AW200: 676.91 | AX200: 572 | AY200: 472.1 | AZ200: 724 | BA200: 593.96 | BB200: 1075 | BC200: 968.06 | BD200: 1270 | BE200: 1195.65 | BF200: 1220 | BG200: 1053.55 | BH200: 1211 | BI200: 1076.84 | BJ200: 1089 | BK200: 947.85 | BL200: 812 | BM200: 711.65 | BN200: 766 | BO200: 698.64 | BP200: 836 | BQ200: 957.91
... 364 more rows
